Workbook

Sheet Orçamento
O3: UNIDADE ESCOLAR | X3: CÓDIGO INEP
O4: COLÉGIO ESTADUAL JUSCELINO KUBITSCHEK DE OLIVEIRA | X4: 52075583
A6: Nmax | O6: OBRA | S6: DATA | X6: CIDADE
A7: =MAX($C$18:$C$618) -> 3 | O7: REFORMA E IMPLANTAÇÃO | S7: 2020-07-07 | X7: ÁGUAS LINDAS DE GOIÁS
O9: CRE | R9: ENDEREÇO | X9: REFERÊNCIA AGETOP
O10: ÁGUAS LINDAS | R10: AREA ESPECIAL S/N, JARDIM SANTA LUCIA, CEP:72910-001 | X10: ABR/19 | Y10: DESONERADA
O12: ÁREA EXISTENTE (M²) | R12: ÁREA A CONSTRUIR (M²) | S12: ÁREA TOTAL CONSTRUÍDA (M²) | X12: REFERÊNCIA SINAPI
O13: 2454.88 | R13: 619.21 | S13: 3074.09 | X13: SET/19 | Y13: DESONERADA
L15: FILTRO | O15: PLANILHA ORÇAMENTÁRIA
A16: Nível E | B16: Save Nivel | C16: Nível C | D16: Altura | E16: n1 | F16: n2 | G16: n3 | H16: n4 | I16: n5 | J16: Czero | K16: Cnível | L16: ↓ | M16: Nível | N16: Nível Corrigido | O16: ITEM | P16: TABELA | Q16: CODIGO | R16: DESCRIÇÃO DOS SERVIÇOS | S16: UNID | T16: QUANT | U16: REPET | V16: QUANT TOTAL | W16: MAT | X16: MO | Y16: T.SERVIÇO UNIT | Z16: VALOR TOTAL | AA16: OBSERVAÇÕES¹
A17: =CHOOSE(1+LOG(1+2*(ORÇAMENTO.Nivel="Nível 1")+4*(ORÇAMENTO.Nivel="Nível 2")+8*(ORÇAMENTO.Nivel="Nível 3")+16*(ORÇAMENTO.Nivel="Nível 4")+32*(ORÇAMENTO.Nivel="Serviço"),2),0,1,2,3,4,"S") -> S | B17: =IF(OR(C17="s",C17=0),OFFSET(B17,-1,0),C17) -> Save Nivel | C17: =IF(OFFSET(C17,-1,0)="L",1,IF(OFFSET(C17,-1,0)=1,2,IF(OR(A17="s",A17=0),"S",IF(AND(OFFSET(C17,-1,0)=2,A17=4),3,IF(AND(OR(OFFSET(C17,-1,0)="s",OFFSET(C17,-1,0)=0),A17<>"s",A17>OFFSET(B17,-1,0)),OFFSET(B17,-1,0),A17))))) -> S | D17: =IF(OR(C17="S",C17=0),0,IF(ISERROR(K17),J17,SMALL(J17:K17,1))) -> 0 | E17: =IF($C17=1,OFFSET(E17,-1,0)+1,OFFSET(E17,-1,0)) -> n1 | F17: =IF($C17=1,0,IF($C17=2,OFFSET(F17,-1,0)+1,OFFSET(F17,-1,0))) -> n2 | G17: =IF(AND($C17<=2,$C17<>0),0,IF($C17=3,OFFSET(G17,-1,0)+1,OFFSET(G17,-1,0))) -> n3 | H17: =IF(AND($C17<=3,$C17<>0),0,IF($C17=4,OFFSET(H17,-1,0)+1,OFFSET(H17,-1,0))) -> n4 | I17: =IF(AND($C17<=4,$C17<>0),0,IF(AND($C17="S",$Y17>0),OFFSET(I17,-1,0)+1,OFFSET(I17,-1,0))) -> n5 | J17: =IF(OR($C17="S",$C17=0),0,MATCH(0,OFFSET($D17,1,$C17,ROW($C$618)-ROW($C17)),0)) -> 0 | K17: =IF(OR($C17="S",$C17=0),0,MATCH(OFFSET($D17,0,$C17)+1,OFFSET($D17,1,$C17,ROW($C$618)-ROW($C17)),0)) -> 0 | M17: Serviço | N17: Serviço | O17: - | P17: SINAPI | R17: (sem código) | S17: - | U17: REPET | V17: - | W17: 0 | X17: 0 | Y17: 0 | Z17: -
A18: 0 | C18: L | D18: =COUNTA(OFFSET(D18,1,0):D$618) -> 599 | E18: =LEFT(O19,1)-1 -> 0 | L18: F | M18: LOTE | N18: LOTE | O18: REFORMA E IMPLANTAÇÃO - COLÉGIO ESTADUAL JUSCELINO KUBITSCHEK DE OLIVEIRA | Z18: 808382.72
A19: 1 | B19: =IF(OR(C19="s",C19=0),OFFSET(B19,-1,0),C19) -> 1 | C19: =IF(OFFSET(C19,-1,0)="L",1,IF(OFFSET(C19,-1,0)=1,2,IF(OR(A19="s",A19=0),"S",IF(AND(OFFSET(C19,-1,0)=2,A19=4),3,IF(AND(OR(OFFSET(C19,-1,0)="s",OFFSET(C19,-1,0)=0),A19<>"s",A19>OFFSET(B19,-1,0)),OFFSET(B19,-1,0),A19))))) -> 1 | D19: =IF(OR(C19="S",C19=0),0,IF(ISERROR(K19),J19,SMALL(J19:K19,1))) -> 312 | E19: =IF($C19=1,OFFSET(E19,-1,0)+1,OFFSET(E19,-1,0)) -> 1 | F19: =IF($C19=1,0,IF($C19=2,OFFSET(F19,-1,0)+1,OFFSET(F19,-1,0))) -> 0 | G19: =IF(AND($C19<=2,$C19<>0),0,IF($C19=3,OFFSET(G19,-1,0)+1,OFFSET(G19,-1,0))) -> 0 | H19: =IF(AND($C19<=3,$C19<>0),0,IF($C19=4,OFFSET(H19,-1,0)+1,OFFSET(H19,-1,0))) -> 0 | I19: 0 | J19: =IF(OR($C19="S",$C19=0),0,MATCH(0,OFFSET($D19,1,$C19,ROW($C$618)-ROW($C19)),0)) -> 599 | K19: =IF(OR($C19="S",$C19=0),0,MATCH(OFFSET($D19,0,$C19)+1,OFFSET($D19,1,$C19,ROW($C$618)-ROW($C19)),0)) -> 312 | L19: F | M19: Nível 1 | N19: Nível 1 | O19: 1. | P19: AGETOP | R19: REFORMA E IMPLANTAÇÃO | S19: UN | T19: 1 | U19: 1
A20: 2 | B20: =IF(OR(C20="s",C20=0),OFFSET(B20,-1,0),C20) -> 2 | C20: =IF(OFFSET(C20,-1,0)="L",1,IF(OFFSET(C20,-1,0)=1,2,IF(OR(A20="s",A20=0),"S",IF(AND(OFFSET(C20,-1,0)=2,A20=4),3,IF(AND(OR(OFFSET(C20,-1,0)="s",OFFSET(C20,-1,0)=0),A20<>"s",A20>OFFSET(B20,-1,0)),OFFSET(B20,-1,0),A20))))) -> 2 | D20: =IF(OR(C20="S",C20=0),0,IF(ISERROR(K20),J20,SMALL(J20:K20,1))) -> 21 | E20: =IF($C20=1,OFFSET(E20,-1,0)+1,OFFSET(E20,-1,0)) -> 1 | F20: =IF($C20=1,0,IF($C20=2,OFFSET(F20,-1,0)+1,OFFSET(F20,-1,0))) -> 1 | G20: =IF(AND($C20<=2,$C20<>0),0,IF($C20=3,OFFSET(G20,-1,0)+1,OFFSET(G20,-1,0))) -> 0 | H20: =IF(AND($C20<=3,$C20<>0),0,IF($C20=4,OFFSET(H20,-1,0)+1,OFFSET(H20,-1,0))) -> 0 | I20: 0 | J20: 311 | K20: 21 | L20: F | M20: Nível 2 | N20: Nível 2 | O20: 1.1. | P20: AGETOP | R20: SERVIÇOS PRELIMINARES | S20: - | U20: 1
A21: 3 | B21: 3 | C21: 3 | D21: 3 | E21: 1 | F21: 1 | G21: 1 | H21: 0 | I21: 0 | J21: 20 | K21: 3 | L21: F | M21: Nível 3 | N21: Nível 3 | O21: 1.1.1. | P21: SINAPI | R21: FORRO PVC COM ESTRUTURA | S21: - | U21: 1
A22: S | B22: 3 | C22: S | D22: 0 | E22: 1 | F22: 1 | G22: 1 | H22: 0 | I22: 0 | J22: 0 | K22: 0 | L22: F | M22: Serviço | N22: Serviço | O22: 1.1.1.1. | P22: SINAPI | Q22: 97640 | R22: REMOÇÃO DE FORROS DE DRYWALL, PVC E FIBROMINERAL, DE FORMA MANUAL, SEM REAPROVEITAMENTO. AF_12/2017 | S22: M2 | T22: 131.87 | U22: 1
A23: S | B23: 3 | C23: S | D23: 0 | E23: 1 | F23: 1 | G23: 1 | H23: 0 | I23: 0 | J23: 0 | K23: 0 | L23: F | M23: Serviço | N23: Serviço | O23: 1.1.1.2. | P23: SINAPI | Q23: 97642 | R23: REMOÇÃO DE TRAMA METÁLICA OU DE MADEIRA PARA FORRO, DE FORMA MANUAL, SEM REAPROVEITAMENTO. AF_12/2017 | S23: M2 | T23: 131.87 | U23: 1
A24: 3 | B24: 3 | C24: 3 | D24: 17 | E24: 1 | F24: 1 | G24: 2 | H24: 0 | I24: 0 | J24: 17 | K24: 26 | L24: F | M24: Nível 3 | N24: Nível 3 | O24: 1.1.2. | P24: SINAPI | R24: OUTROS | S24: - | U24: 1
A25: S | B25: 3 | C25: S | D25: 0 | E25: 1 | F25: 1 | G25: 2 | H25: 0 | I25: 0 | J25: 0 | K25: 0 | L25: F | M25: Serviço | N25: Serviço | O25: 1.1.2.1. | P25: SINAPI | Q25: 97622 | R25: DEMOLIÇÃO DE ALVENARIA DE BLOCO FURADO, DE FORMA MANUAL, SEM REAPROVEITAMENTO. AF_12/2017 | S25: M3 | T25: 1.8675 | U25: 1 | AA25: Referência: AGETOP - 20118
A26: S | B26: 3 | C26: S | D26: 0 | E26: 1 | F26: 1 | G26: 2 | H26: 0 | I26: 0 | J26: 0 | K26: 0 | L26: F | M26: Serviço | N26: Serviço | O26: 1.1.2.2. | P26: AGETOP | Q26: 20101 | R26: DEMOLICAO COBERTURA TELHA CERAMICA C/ TRANSP. ATÉ CB. E CARGA | S26: m2 | T26: 268.85 | U26: 1
A27: S | B27: 3 | C27: S | D27: 0 | E27: 1 | F27: 1 | G27: 2 | H27: 0 | I27: 0 | J27: 0 | K27: 0 | L27: F | M27: Serviço | N27: Serviço | O27: 1.1.2.3. | P27: AGETOP | Q27: 20111 | R27: DEM.PISO CERAM.SOBRE LASTRO CONC.C/TR.CB.E CARGA | S27: m2 | T27: 46.86 | U27: 1
A28: S | B28: 3 | C28: S | D28: 0 | E28: 1 | F28: 1 | G28: 2 | H28: 0 | I28: 0 | J28: 0 | K28: 0 | L28: F | M28: Serviço | N28: Serviço | O28: 1.1.2.4. | P28: SINAPI | Q28: 97633 | R28: DEMOLIÇÃO DE REVESTIMENTO CERÂMICO, DE FORMA MANUAL, SEM REAPROVEITAMENTO. AF_12/2017 | S28: M2 | T28: 158.98 | U28: 1 | AA28: Referência: AGETOP - 20115
A29: S | B29: 3 | C29: S | D29: 0 | E29: 1 | F29: 1 | G29: 2 | H29: 0 | I29: 0 | J29: 0 | K29: 0 | L29: F | M29: Serviço | N29: Serviço | O29: 1.1.2.5. | P29: AGETOP | Q29: 20137 | R29: DEMOLIÇAO BACIA SANITARIA C/ TRANSP. ATÉ CB. E CARGA | S29: Un | T29: 6 | U29: 1
A30: S | B30: 3 | C30: S | D30: 0 | E30: 1 | F30: 1 | G30: 2 | H30: 0 | I30: 0 | J30: 0 | K30: 0 | L30: F | M30: Serviço | N30: Serviço | O30: 1.1.2.6. | P30: AGETOP | Q30: 20139 | R30: DEMOLIÇAO DE BANCADAS C/ TRANSP. ATÉ CB. E CARGA | S30: m2 | T30: 3.71 | U30: 1
A31: S | B31: 3 | C31: S | D31: 0 | E31: 1 | F31: 1 | G31: 2 | H31: 0 | I31: 0 | J31: 0 | K31: 0 | L31: F | M31: Serviço | N31: Serviço | O31: 1.1.2.7. | P31: AGETOP | Q31: 20141 | R31: DEMOLIÇAO DE CAIXA DESCARGA EXTERNA C/ TRANSP. ATÉ CB. E CARGA | S31: Un | T31: 6 | U31: 1
A32: S | B32: 3 | C32: S | D32: 0 | E32: 1 | F32: 1 | G32: 2 | H32: 0 | I32: 0 | J32: 0 | K32: 0 | L32: F | M32: Serviço | N32: Serviço | O32: 1.1.2.8. | P32: AGETOP | Q32: 20163 | R32: DEMOLIÇÃO DAS INSTALAÇÕES HIDROSANITÁRIAS E AFINS C/ TRANSP. ATÉ CB. E CARGA | S32: H | T32: 4 | U32: 1
A33: S | B33: 3 | C33: S | D33: 0 | E33: 1 | F33: 1 | G33: 2 | H33: 0 | I33: 0 | J33: 0 | K33: 0 | L33: F | M33: Serviço | N33: Serviço | O33: 1.1.2.9. | P33: SINAPI | Q33: 97661 | R33: REMOÇÃO DE CABOS ELÉTRICOS, DE FORMA MANUAL, SEM REAPROVEITAMENTO. AF_12/2017 | S33: M | T33: 500 | U33: 1
A34: S | B34: 3 | C34: S | D34: 0 | E34: 1 | F34: 1 | G34: 2 | H34: 0 | I34: 0 | J34: 0 | K34: 0 | L34: F | M34: Serviço | N34: Serviço | O34: 1.1.2.10. | P34: SINAPI | Q34: 97660 | R34: REMOÇÃO DE INTERRUPTORES/TOMADAS ELÉTRICAS, DE FORMA MANUAL, SEM REAPROVEITAMENTO. AF_12/2017 | S34: UN | T34: 20 | U34: 1
A35: S | B35: 3 | C35: S | D35: 0 | E35: 1 | F35: 1 | G35: 2 | H35: 0 | I35: 0 | J35: 0 | K35: 0 | L35: F | M35: Serviço | N35: Serviço | O35: 1.1.2.11. | P35: SINAPI | Q35: 97665 | R35: REMOÇÃO DE LUMINÁRIAS, DE FORMA MANUAL, SEM REAPROVEITAMENTO. AF_12/2017 | S35: UN | T35: 28 | U35: 1
A36: S | B36: 3 | C36: S | D36: 0 | E36: 1 | F36: 1 | G36: 2 | H36: 0 | I36: 0 | J36: 0 | K36: 0 | L36: F | M36: Serviço | N36: Serviço | O36: 1.1.2.12. | P36: AGETOP | Q36: 20121 | R36: DEM. MANUAL EM CONCR.SIMPLES C/TR.ATE CB.E CARGA (O.C.) | S36: m3 | T36: 1.34 | U36: 1
A37: S | B37: 3 | C37: S | D37: 0 | E37: 1 | F37: 1 | G37: 2 | H37: 0 | I37: 0 | J37: 0 | K37: 0 | L37: F | M37: Serviço | N37: Serviço | O37: 1.1.2.13. | P37: COMPOSIÇÃO | Q37: COMP 010_SEE | R37: DEMOLIÇÃO DE GRADE/GRELHA/GUARDA CORPO - METÁLICO | S37: M2 | T37: 8.08 | U37: 1
A38: S | B38: 3 | C38: S | D38: 0 | E38: 1 | F38: 1 | G38: 2 | H38: 0 | I38: 0 | J38: 0 | K38: 0 | L38: F | M38: Serviço | N38: Serviço | O38: 1.1.2.14. | P38: COMPOSIÇÃO | Q38: COMP 385_SEE | R38: DEMOLIÇÃO POSTE DE CONCRETO/METALICA ENTRE 10 E 15 METROS C/ REAPROVEITAMENTO C/ TRANSPORTE ATE CAÇAMBA E CARGA | S38: UN | T38: 2 | U38: 1
A39: S | B39: 3 | C39: S | D39: 0 | E39: 1 | F39: 1 | G39: 2 | H39: 0 | I39: 0 | J39: 0 | K39: 0 | L39: F | M39: Serviço | N39: Serviço | O39: 1.1.2.15. | P39: AGETOP | Q39: 20190 | R39: LIMPEZA MECANICA DE TERRENO | S39: m2 | T39: 1302.35 | U39: 1
A40: S | B40: 3 | C40: S | D40: 0 | E40: 1 | F40: 1 | G40: 2 | H40: 0 | I40: 0 | J40: 0 | K40: 0 | L40: F | M40: Serviço | N40: Serviço | O40: 1.1.2.16. | P40: SINAPI | Q40: 74209/1 | R40: PLACA DE OBRA EM CHAPA DE ACO GALVANIZADO | S40: M2 | T40: 7.5 | U40: 1 | AA40: Referência: AGETOP - 21301
A41: 2 | B41: 2 | C41: 2 | D41: 3 | E41: 1 | F41: 2 | G41: 0 | H41: 0 | I41: 0 | J41: 290 | K41: 3 | L41: F | M41: Nível 2 | N41: Nível 2 | O41: 1.2. | P41: AGETOP | R41: TRANSPORTES | S41: - | U41: 1
A42: S | B42: 2 | C42: S | D42: 0 | E42: 1 | F42: 2 | G42: 0 | H42: 0 | I42: 0 | J42: 0 | K42: 0 | L42: F | M42: Serviço | N42: Serviço | O42: 1.2.0.1. | P42: SINAPI | Q42: 72900 | R42: TRANSPORTE DE ENTULHO COM CAMINHAO BASCULANTE 6 M3, RODOVIA PAVIMENTADA, DMT 0,5 A 1,0 KM | S42: M3 | T42: 34.13 | U42: 1
A43: S | B43: 2 | C43: S | D43: 0 | E43: 1 | F43: 2 | G43: 0 | H43: 0 | I43: 0 | J43: 0 | K43: 0 | L43: F | M43: Serviço | N43: Serviço | O43: 1.2.0.2. | P43: SINAPI | Q43: 72897 | R43: CARGA MANUAL DE ENTULHO EM CAMINHAO BASCULANTE 6 M3 | S43: M3 | T43: 34.13 | U43: 1
A44: 2 | B44: 2 | C44: 2 | D44: 20 | E44: 1 | F44: 3 | G44: 0 | H44: 0 | I44: 0 | J44: 287 | K44: 20 | L44: F | M44: Nível 2 | N44: Nível 2 | O44: 1.3. | P44: AGETOP | R44: SERVIÇO EM TERRA | S44: - | U44: 1
A45: 3 | B45: 3 | C45: 3 | D45: 3 | E45: 1 | F45: 3 | G45: 1 | H45: 0 | I45: 0 | J45: 19 | K45: 3 | L45: F | M45: Nível 3 | N45: Nível 3 | O45: 1.3.1. | P45: SINAPI | R45: INST. ELÉTRICAS | S45: - | U45: 1
A46: S | B46: 3 | C46: S | D46: 0 | E46: 1 | F46: 3 | G46: 1 | H46: 0 | I46: 0 | J46: 0 | K46: 0 | L46: F | M46: Serviço | N46: Serviço | O46: 1.3.1.1. | P46: SINAPI | Q46: 93358 | R46: ESCAVAÇÃO MANUAL DE VALA COM PROFUNDIDADE MENOR OU IGUAL A 1,30 M. AF_03/2016 | S46: M3 | T46: 18 | U46: 1 | AA46: Referência: AGETOP - 40101
A47: S | B47: 3 | C47: S | D47: 0 | E47: 1 | F47: 3 | G47: 1 | H47: 0 | I47: 0 | J47: 0 | K47: 0 | L47: F | M47: Serviço | N47: Serviço | O47: 1.3.1.2. | P47: SINAPI | Q47: 96995 | R47: REATERRO MANUAL APILOADO COM SOQUETE. AF_10/2017 | S47: M3 | T47: 18 | U47: 1 | AA47: Referência: AGETOP - 40902
A48: 3 | B48: 3 | C48: 3 | D48: 2 | E48: 1 | F48: 3 | G48: 2 | H48: 0 | I48: 0 | J48: 16 | K48: 2 | L48: F | M48: Nível 3 | N48: Nível 3 | O48: 1.3.2. | P48: SINAPI | R48: CALÇADA ACESSÍVEL | S48: - | U48: 1
A49: S | B49: 3 | C49: S | D49: 0 | E49: 1 | F49: 3 | G49: 2 | H49: 0 | I49: 0 | J49: 0 | K49: 0 | L49: F | M49: Serviço | N49: Serviço | O49: 1.3.2.1. | P49: AGETOP | Q49: 41002 | R49: APILOAMENTO | S49: m2 | T49: 462.4 | U49: 1
A50: 3 | B50: 3 | C50: 3 | D50: 7 | E50: 1 | F50: 3 | G50: 3 | H50: 0 | I50: 0 | J50: 14 | K50: 7 | L50: F | M50: Nível 3 | N50: Nível 3 | O50: 1.3.3. | R50: FOSSA SEPTICA E SUMIDOURO | S50: - | U50: 1
A51: S | B51: 3 | C51: S | D51: 0 | E51: 1 | F51: 3 | G51: 3 | H51: 0 | I51: 0 | J51: 0 | K51: 0 | L51: F | M51: Serviço | N51: Serviço | O51: 1.3.3.1. | P51: SINAPI | Q51: 79480 | R51: ESCAVACAO MECANICA CAMPO ABERTO EM SOLO EXCETO ROCHA ATE 2,00M PROFUNDIDADE | S51: M3 | T51: 22.18 | U51: 1 | AA51: Referência: AGETOP - 41004
A52: S | B52: 3 | C52: S | D52: 0 | E52: 1 | F52: 3 | G52: 3 | H52: 0 | I52: 0 | J52: 0 | K52: 0 | L52: F | M52: Serviço | N52: Serviço | O52: 1.3.3.2. | P52: SINAPI | Q52: 72898 | R52: CARGA E DESCARGA MECANIZADAS DE ENTULHO EM CAMINHAO BASCULANTE 6 M3 | S52: M3 | T52: 22.18 | U52: 1 | AA52: Referência: AGETOP - 41005
A53: S | B53: 3 | C53: S | D53: 0 | E53: 1 | F53: 3 | G53: 3 | H53: 0 | I53: 0 | J53: 0 | K53: 0 | L53: F | M53: Serviço | N53: Serviço | O53: 1.3.3.3. | P53: AGETOP | Q53: 41012 | R53: INDENIZAÇÃO DE JAZIDA | S53: m3 | T53: 22.18 | U53: 1
A54: S | B54: 3 | C54: S | D54: 0 | E54: 1 | F54: 3 | G54: 3 | H54: 0 | I54: 0 | J54: 0 | K54: 0 | L54: F | M54: Serviço | N54: Serviço | O54: 1.3.3.4. | P54: AGETOP | Q54: 41006 | R54: TRANSPORTE DE MATERIAL ESCAVADO M3.KM | S54: m3km | T54: 221.8 | U54: 1
A55: S | B55: 3 | C55: S | D55: 0 | E55: 1 | F55: 3 | G55: 3 | H55: 0 | I55: 0 | J55: 0 | K55: 0 | L55: F | M55: Serviço | N55: Serviço | O55: 1.3.3.5. | P55: AGETOP | Q55: 40902 | R55: REATERRO COM APILOAMENTO | S55: m3 | T55: 17.75 | U55: 1
A56: S | B56: 3 | C56: S | D56: 0 | E56: 1 | F56: 3 | G56: 3 | H56: 0 | I56: 0 | J56: 0 | K56: 0 | L56: F | M56: Serviço | N56: Serviço | O56: 1.3.3.6. | P56: AGETOP | Q56: 50620 | R56: PEDRA MARROADA COM LANCAMENTO | S56: m3 | T56: 2 | U56: 1
A57: 3 | B57: 3 | C57: 3 | D57: 7 | E57: 1 | F57: 3 | G57: 4 | H57: 0 | I57: 0 | J57: 7 | K57: 262 | L57: F | M57: Nível 3 | N57: Nível 3 | O57: 1.3.4. | R57: IMPLANTAÇÃO PADRÃO | S57: - | U57: 1
A58: S | B58: 3 | C58: S | D58: 0 | E58: 1 | F58: 3 | G58: 4 | H58: 0 | I58: 0 | J58: 0 | K58: 0 | L58: F | M58: Serviço | N58: Serviço | O58: 1.3.4.1. | P58: SINAPI | Q58: 79480 | R58: ESCAVACAO MECANICA CAMPO ABERTO EM SOLO EXCETO ROCHA ATE 2,00M PROFUNDIDADE | S58: M3 | T58: 295.97 | U58: 1 | AA58: Referência: AGETOP - 41004
A59: S | B59: 3 | C59: S | D59: 0 | E59: 1 | F59: 3 | G59: 4 | H59: 0 | I59: 0 | J59: 0 | K59: 0 | L59: F | M59: Serviço | N59: Serviço | O59: 1.3.4.2. | P59: SINAPI | Q59: 72898 | R59: CARGA E DESCARGA MECANIZADAS DE ENTULHO EM CAMINHAO BASCULANTE 6 M3 | S59: M3 | T59: 295.97 | U59: 1 | AA59: Referência: AGETOP - 41005
A60: S | B60: 3 | C60: S | D60: 0 | E60: 1 | F60: 3 | G60: 4 | H60: 0 | I60: 0 | J60: 0 | K60: 0 | L60: F | M60: Serviço | N60: Serviço | O60: 1.3.4.3. | P60: AGETOP | Q60: 41012 | R60: INDENIZAÇÃO DE JAZIDA | S60: m3 | T60: 295.97 | U60: 1
A61: S | B61: 3 | C61: S | D61: 0 | E61: 1 | F61: 3 | G61: 4 | H61: 0 | I61: 0 | J61: 0 | K61: 0 | L61: F | M61: Serviço | N61: Serviço | O61: 1.3.4.4. | P61: AGETOP | Q61: 41006 | R61: TRANSPORTE DE MATERIAL ESCAVADO M3.KM | S61: m3km | T61: 2959.7 | U61: 1
A62: S | B62: 3 | C62: S | D62: 0 | E62: 1 | F62: 3 | G62: 4 | H62: 0 | I62: 0 | J62: 0 | K62: 0 | L62: F | M62: Serviço | N62: Serviço | O62: 1.3.4.5. | P62: SINAPI | Q62: 74005/1 | R62: COMPACTACAO MECANICA, SEM CONTROLE DO GC (C/COMPACTADOR PLACA 400 KG) | S62: M3 | T62: 236.78 | U62: 1 | AA62: Referência: AGETOP - 41009
A63: S | B63: 3 | C63: S | D63: 0 | E63: 1 | F63: 3 | G63: 4 | H63: 0 | I63: 0 | J63: 0 | K63: 0 | L63: F | M63: Serviço | N63: Serviço | O63: 1.3.4.6. | P63: AGETOP | Q63: 40905 | R63: APILOAMENTO MECÂNICO | S63: m2 | T63: 839.49 | U63: 1
A64: 2 | B64: 2 | C64: 2 | D64: 11 | E64: 1 | F64: 4 | G64: 0 | H64: 0 | I64: 0 | J64: 267 | K64: 11 | L64: F | M64: Nível 2 | N64: Nível 2 | O64: 1.4. | P64: SINAPI | R64: FUNDAÇÕES E SONDAGENS | S64: - | U64: 1
A65: 3 | B65: 3 | C65: 3 | D65: 10 | E65: 1 | F65: 4 | G65: 1 | H65: 0 | I65: 0 | J65: 10 | K65: 20 | L65: F | M65: Nível 3 | N65: Nível 3 | O65: 1.4.1. | P65: SINAPI | R65: ESTACAS E BLOCOS | S65: - | U65: 1
A66: S | B66: 3 | C66: S | D66: 0 | E66: 1 | F66: 4 | G66: 1 | H66: 0 | I66: 0 | J66: 0 | K66: 0 | L66: F | M66: Serviço | N66: Serviço | O66: 1.4.1.1. | P66: SINAPI | Q66: 98230 | R66: ESTACA BROCA DE CONCRETO, DIÂMETRO DE 30 CM, PROFUNDIDADE DE ATÉ 3 M, ESCAVAÇÃO MANUAL COM TRADO CONCHA, NÃO ARMADA. AF_03/2018 | S66: M | T66: 376 | U66: 1 | AA66: Referência: AGETOP - 50302
A67: S | B67: 3 | C67: S | D67: 0 | E67: 1 | F67: 4 | G67: 1 | H67: 0 | I67: 0 | J67: 0 | K67: 0 | L67: F | M67: Serviço | N67: Serviço | O67: 1.4.1.2. | P67: SINAPI | Q67: 96522 | R67: ESCAVAÇÃO MANUAL PARA BLOCO DE COROAMENTO OU SAPATA, SEM PREVISÃO DE FÔRMA. AF_06/2017 | S67: M3 | T67: 14.66 | U67: 1 | AA67: Referência: AGETOP - 50901
A68: S | B68: 3 | C68: S | D68: 0 | E68: 1 | F68: 4 | G68: 1 | H68: 0 | I68: 0 | J68: 0 | K68: 0 | L68: F | M68: Serviço | N68: Serviço | O68: 1.4.1.3. | P68: SINAPI | Q68: 96619 | R68: LASTRO DE CONCRETO MAGRO, APLICADO EM BLOCOS DE COROAMENTO OU SAPATAS, ESPESSURA DE 5 CM. AF_08/2017 | S68: M2 | T68: 1.13 | U68: 1
A69: S | B69: 3 | C69: S | D69: 0 | E69: 1 | F69: 4 | G69: 1 | H69: 0 | I69: 0 | J69: 0 | K69: 0 | L69: F | M69: Serviço | N69: Serviço | O69: 1.4.1.4. | P69: SINAPI | Q69: 94963 | R69: CONCRETO FCK = 15MPA, TRAÇO 1:3,4:3,5 (CIMENTO/ AREIA MÉDIA/ BRITA 1) - PREPARO MECÂNICO COM BETONEIRA 400 L. AF_07/2016 | S69: M3 | T69: 13.53 | U69: 1
A70: S | B70: 3 | C70: S | D70: 0 | E70: 1 | F70: 4 | G70: 1 | H70: 0 | I70: 0 | J70: 0 | K70: 0 | L70: F | M70: Serviço | N70: Serviço | O70: 1.4.1.5. | P70: SINAPI | Q70: 74157/4 | R70: LANCAMENTO/APLICACAO MANUAL DE CONCRETO EM FUNDACOES | S70: M3 | T70: 14.66 | U70: 1 | AA70: Referência: AGETOP - 51026
A71: S | B71: 3 | C71: S | D71: 0 | E71: 1 | F71: 4 | G71: 1 | H71: 0 | I71: 0 | J71: 0 | K71: 0 | L71: F | M71: Serviço | N71: Serviço | O71: 1.4.1.6. | P71: SINAPI | Q71: 96544 | R71: ARMAÇÃO DE BLOCO, VIGA BALDRAME OU SAPATA UTILIZANDO AÇO CA-50 DE 6,3 MM - MONTAGEM. AF_06/2017 | S71: KG | T71: 232.2 | U71: 1 | AA71: Referência: AGETOP - 52003
A72: S | B72: 3 | C72: S | D72: 0 | E72: 1 | F72: 4 | G72: 1 | H72: 0 | I72: 0 | J72: 0 | K72: 0 | L72: F | M72: Serviço | N72: Serviço | O72: 1.4.1.7. | P72: SINAPI | Q72: 96545 | R72: ARMAÇÃO DE BLOCO, VIGA BALDRAME OU SAPATA UTILIZANDO AÇO CA-50 DE 8 MM - MONTAGEM. AF_06/2017 | S72: KG | T72: 447.3 | U72: 1 | AA72: Referência: AGETOP - 52004
A73: S | B73: 3 | C73: S | D73: 0 | E73: 1 | F73: 4 | G73: 1 | H73: 0 | I73: 0 | J73: 0 | K73: 0 | L73: F | M73: Serviço | N73: Serviço | O73: 1.4.1.8. | P73: SINAPI | Q73: 96546 | R73: ARMAÇÃO DE BLOCO, VIGA BALDRAME OU SAPATA UTILIZANDO AÇO CA-50 DE 10 MM - MONTAGEM. AF_06/2017 | S73: KG | T73: 400.5 | U73: 1 | AA73: Referência: AGETOP - 52005
A74: S | B74: 3 | C74: S | D74: 0 | E74: 1 | F74: 4 | G74: 1 | H74: 0 | I74: 0 | J74: 0 | K74: 0 | L74: F | M74: Serviço | N74: Serviço | O74: 1.4.1.9. | P74: SINAPI | Q74: 96543 | R74: ARMAÇÃO DE BLOCO, VIGA BALDRAME E SAPATA UTILIZANDO AÇO CA-60 DE 5 MM - MONTAGEM. AF_06/2017 | S74: KG | T74: 145.8 | U74: 1 | AA74: Referência: AGETOP - 52014
A75: 2 | B75: 2 | C75: 2 | D75: 26 | E75: 1 | F75: 5 | G75: 0 | H75: 0 | I75: 0 | J75: 256 | K75: 26 | L75: F | M75: Nível 2 | N75: Nível 2 | O75: 1.5. | P75: SINAPI | R75: ESTRUTURA | S75: - | U75: 1
A76: 3 | B76: 3 | C76: 3 | D76: 9 | E76: 1 | F76: 5 | G76: 1 | H76: 0 | I76: 0 | J76: 25 | K76: 9 | L76: F | M76: Nível 3 | N76: Nível 3 | O76: 1.5.1. | P76: SINAPI | R76: VIGAS BALDRAMES | S76: - | U76: 1
A77: S | B77: 3 | C77: S | D77: 0 | E77: 1 | F77: 5 | G77: 1 | H77: 0 | I77: 0 | J77: 0 | K77: 0 | L77: F | M77: Serviço | N77: Serviço | O77: 1.5.1.1. | P77: SINAPI | Q77: 96527 | R77: ESCAVAÇÃO MANUAL DE VALA PARA VIGA BALDRAME, COM PREVISÃO DE FÔRMA. AF_06/2017 | S77: M3 | T77: 36.08 | U77: 1 | AA77: Referência: AGETOP - 40101
A78: S | B78: 3 | C78: S | D78: 0 | E78: 1 | F78: 5 | G78: 1 | H78: 0 | I78: 0 | J78: 0 | K78: 0 | L78: F | M78: Serviço | N78: Serviço | O78: 1.5.1.2. | P78: SINAPI | Q78: 96995 | R78: REATERRO MANUAL APILOADO COM SOQUETE. AF_10/2017 | S78: M3 | T78: 21.38 | U78: 1 | AA78: Referência: AGETOP - 40902
A79: S | B79: 3 | C79: S | D79: 0 | E79: 1 | F79: 5 | G79: 1 | H79: 0 | I79: 0 | J79: 0 | K79: 0 | L79: F | M79: Serviço | N79: Serviço | O79: 1.5.1.3. | P79: AGETOP | Q79: 60191 | R79: FORMA DE TABUA CINTA BALDRAME U=8 VEZES | S79: m2 | T79: 217.61 | U79: 1
A80: S | B80: 3 | C80: S | D80: 0 | E80: 1 | F80: 5 | G80: 1 | H80: 0 | I80: 0 | J80: 0 | K80: 0 | L80: F | M80: Serviço | N80: Serviço | O80: 1.5.1.4. | P80: SINAPI | Q80: 94964 | R80: CONCRETO FCK = 20MPA, TRAÇO 1:2,7:3 (CIMENTO/ AREIA MÉDIA/ BRITA 1) - PREPARO MECÂNICO COM BETONEIRA 400 L. AF_07/2016 | S80: M3 | T80: 14.7 | U80: 1
A81: S | B81: 3 | C81: S | D81: 0 | E81: 1 | F81: 5 | G81: 1 | H81: 0 | I81: 0 | J81: 0 | K81: 0 | L81: F | M81: Serviço | N81: Serviço | O81: 1.5.1.5. | P81: SINAPI | Q81: 92873 | R81: LANÇAMENTO COM USO DE BALDES, ADENSAMENTO E ACABAMENTO DE CONCRETO EM ESTRUTURAS. AF_12/2015 | S81: M3 | T81: 14.7 | U81: 1 | AA81: Referência: AGETOP - 60801
A82: S | B82: 3 | C82: S | D82: 0 | E82: 1 | F82: 5 | G82: 1 | H82: 0 | I82: 0 | J82: 0 | K82: 0 | L82: F | M82: Serviço | N82: Serviço | O82: 1.5.1.6. | P82: SINAPI | Q82: 96543 | R82: ARMAÇÃO DE BLOCO, VIGA BALDRAME E SAPATA UTILIZANDO AÇO CA-60 DE 5 MM - MONTAGEM. AF_06/2017 | S82: KG | T82: 328.5 | U82: 1 | AA82: Referência: AGETOP - 52014
A83: S | B83: 3 | C83: S | D83: 0 | E83: 1 | F83: 5 | G83: 1 | H83: 0 | I83: 0 | J83: =IF(OR($C83="S",$C83=0),0,MATCH(0,OFFSET($D83,1,$C83,ROW($C$618)-ROW($C83)),0)) -> 0 | K83: =IF(OR($C83="S",$C83=0),0,MATCH(OFFSET($D83,0,$C83)+1,OFFSET($D83,1,$C83,ROW($C$618)-ROW($C83)),0)) -> 0 | L83: F | M83: Serviço | N83: Serviço | O83: 1.5.1.7. | P83: SINAPI | Q83: 96545 | R83: ARMAÇÃO DE BLOCO, VIGA BALDRAME OU SAPATA UTILIZANDO AÇO CA-50 DE 8 MM - MONTAGEM. AF_06/2017 | S83: KG | T83: 591.3 | U83: 1 | AA83: Referência: AGETOP - 52004
A84: S | B84: 3 | C84: S | D84: 0 | E84: 1 | F84: 5 | G84: 1 | H84: 0 | I84: 0 | J84: 0 | K84: 0 | L84: F | M84: Serviço | N84: Serviço | O84: 1.5.1.8. | P84: SINAPI | Q84: 96546 | R84: ARMAÇÃO DE BLOCO, VIGA BALDRAME OU SAPATA UTILIZANDO AÇO CA-50 DE 10 MM - MONTAGEM. AF_06/2017 | S84: KG | T84: 21.6 | U84: 1 | AA84: Referência: AGETOP - 52005
A85: 3 | B85: 3 | C85: 3 | D85: 6 | E85: 1 | F85: 5 | G85: 2 | H85: 0 | I85: 0 | J85: 16 | K85: 6 | L85: F | M85: Nível 3 | N85: Nível 3 | O85: 1.5.2. | P85: SINAPI | R85: PILARES | S85: - | U85: 1
A86: S | B86: 3 | C86: S | D86: 0 | E86: 1 | F86: 5 | G86: 2 | H86: 0 | I86: 0 | J86: 0 | K86: 0 | L86: F | M86: Serviço | N86: Serviço | O86: 1.5.2.1. | P86: SINAPI | Q86: 92426 | R86: MONTAGEM E DESMONTAGEM DE FÔRMA DE PILARES RETANGULARES E ESTRUTURAS SIMILARES COM ÁREA MÉDIA DAS SEÇÕES MENOR OU IGUAL A 0,25 M², PÉ-DIREITO SIMPLES, EM CHAPA DE MADEIRA COMPENSADA RESINADA, 8 UTILIZAÇÕES. AF_12/2015 | S86: M2 | T86: 141.86 | U86: 1
A87: S | B87: 3 | C87: S | D87: 0 | E87: 1 | F87: 5 | G87: 2 | H87: 0 | I87: 0 | J87: 0 | K87: 0 | L87: F | M87: Serviço | N87: Serviço | O87: 1.5.2.2. | P87: SINAPI | Q87: 94964 | R87: CONCRETO FCK = 20MPA, TRAÇO 1:2,7:3 (CIMENTO/ AREIA MÉDIA/ BRITA 1) - PREPARO MECÂNICO COM BETONEIRA 400 L. AF_07/2016 | S87: M3 | T87: 6.77 | U87: 1
A88: S | B88: 3 | C88: S | D88: 0 | E88: 1 | F88: 5 | G88: 2 | H88: 0 | I88: 0 | J88: 0 | K88: 0 | L88: F | M88: Serviço | N88: Serviço | O88: 1.5.2.3. | P88: SINAPI | Q88: 92873 | R88: LANÇAMENTO COM USO DE BALDES, ADENSAMENTO E ACABAMENTO DE CONCRETO EM ESTRUTURAS. AF_12/2015 | S88: M3 | T88: 6.77 | U88: 1 | AA88: Referência: AGETOP - 60801
A89: S | B89: 3 | C89: S | D89: 0 | E89: 1 | F89: 5 | G89: 2 | H89: 0 | I89: 0 | J89: 0 | K89: 0 | L89: F | M89: Serviço | N89: Serviço | O89: 1.5.2.4. | P89: SINAPI | Q89: 92778 | R89: ARMAÇÃO DE PILAR OU VIGA DE UMA ESTRUTURA CONVENCIONAL DE CONCRETO ARMADO EM UMA EDIFICAÇÃO TÉRREA OU SOBRADO UTILIZANDO AÇO CA-50 DE 10,0 MM - MONTAGEM. AF_12/2015 | S89: KG | T89: 415.8 | U89: 1 | AA89: Referência: AGETOP - 60305
A90: S | B90: 3 | C90: S | D90: 0 | E90: 1 | F90: 5 | G90: 2 | H90: 0 | I90: 0 | J90: 0 | K90: 0 | L90: F | M90: Serviço | N90: Serviço | O90: 1.5.2.5. | P90: SINAPI | Q90: 92775 | R90: ARMAÇÃO DE PILAR OU VIGA DE UMA ESTRUTURA CONVENCIONAL DE CONCRETO ARMADO EM UMA EDIFICAÇÃO TÉRREA OU SOBRADO UTILIZANDO AÇO CA-60 DE 5,0 MM - MONTAGEM. AF_12/2015 | S90: KG | T90: 182.7 | U90: 1 | AA90: Referência: AGETOP - 60314
A91: 3 | B91: 3 | C91: 3 | D91: 8 | E91: 1 | F91: 5 | G91: 3 | H91: 0 | I91: 0 | J91: 10 | K91: 8 | L91: F | M91: Nível 3 | N91: Nível 3 | O91: 1.5.3. | P91: SINAPI | R91: VIGAS DE COBERTURA | S91: - | U91: 1
A92: S | B92: 3 | C92: S | D92: 0 | E92: 1 | F92: 5 | G92: 3 | H92: 0 | I92: 0 | J92: 0 | K92: 0 | L92: F | M92: Serviço | N92: Serviço | O92: 1.5.3.1. | P92: SINAPI | Q92: 92464 | R92: MONTAGEM E DESMONTAGEM DE FÔRMA DE VIGA, ESCORAMENTO METÁLICO, PÉ-DIREITO SIMPLES, EM CHAPA DE MADEIRA RESINADA, 8 UTILIZAÇÕES. AF_12/2015 | S92: M2 | T92: 239.99 | U92: 1 | AA92: Referência: AGETOP - 60209
A93: S | B93: 3 | C93: S | D93: 0 | E93: 1 | F93: 5 | G93: 3 | H93: 0 | I93: 0 | J93: 0 | K93: 0 | L93: F | M93: Serviço | N93: Serviço | O93: 1.5.3.2. | P93: SINAPI | Q93: 94964 | R93: CONCRETO FCK = 20MPA, TRAÇO 1:2,7:3 (CIMENTO/ AREIA MÉDIA/ BRITA 1) - PREPARO MECÂNICO COM BETONEIRA 400 L. AF_07/2016 | S93: M3 | T93: 14.24 | U93: 1
A94: S | B94: 3 | C94: S | D94: 0 | E94: 1 | F94: 5 | G94: 3 | H94: 0 | I94: 0 | J94: 0 | K94: 0 | L94: F | M94: Serviço | N94: Serviço | O94: 1.5.3.3. | P94: SINAPI | Q94: 92873 | R94: LANÇAMENTO COM USO DE BALDES, ADENSAMENTO E ACABAMENTO DE CONCRETO EM ESTRUTURAS. AF_12/2015 | S94: M3 | T94: 14.24 | U94: 1 | AA94: Referência: AGETOP - 60801
A95: S | B95: 3 | C95: S | D95: 0 | E95: 1 | F95: 5 | G95: 3 | H95: 0 | I95: 0 | J95: 0 | K95: 0 | L95: F | M95: Serviço | N95: Serviço | O95: 1.5.3.4. | P95: SINAPI | Q95: 92777 | R95: ARMAÇÃO DE PILAR OU VIGA DE UMA ESTRUTURA CONVENCIONAL DE CONCRETO ARMADO EM UMA EDIFICAÇÃO TÉRREA OU SOBRADO UTILIZANDO AÇO CA-50 DE 8,0 MM - MONTAGEM. AF_12/2015 | S95: KG | T95: 219.6 | U95: 1 | AA95: Referência: AGETOP - 60304
A96: S | B96: 3 | C96: S | D96: 0 | E96: 1 | F96: 5 | G96: 3 | H96: 0 | I96: 0 | J96: 0 | K96: 0 | L96: F | M96: Serviço | N96: Serviço | O96: 1.5.3.5. | P96: SINAPI | Q96: 92778 | R96: ARMAÇÃO DE PILAR OU VIGA DE UMA ESTRUTURA CONVENCIONAL DE CONCRETO ARMADO EM UMA EDIFICAÇÃO TÉRREA OU SOBRADO UTILIZANDO AÇO CA-50 DE 10,0 MM - MONTAGEM. AF_12/2015 | S96: KG | T96: 484.2 | U96: 1 | AA96: Referência: AGETOP - 60305
A97: S | B97: 3 | C97: S | D97: 0 | E97: 1 | F97: 5 | G97: 3 | H97: 0 | I97: 0 | J97: 0 | K97: 0 | L97: F | M97: Serviço | N97: Serviço | O97: 1.5.3.6. | P97: SINAPI | Q97: 92779 | R97: ARMAÇÃO DE PILAR OU VIGA DE UMA ESTRUTURA CONVENCIONAL DE CONCRETO ARMADO EM UMA EDIFICAÇÃO TÉRREA OU SOBRADO UTILIZANDO AÇO CA-50 DE 12,5 MM - MONTAGEM. AF_12/2015 | S97: KG | T97: 176.4 | U97: 1
A98: S | B98: 3 | C98: S | D98: 0 | E98: 1 | F98: 5 | G98: 3 | H98: 0 | I98: 0 | J98: 0 | K98: 0 | L98: F | M98: Serviço | N98: Serviço | O98: 1.5.3.7. | P98: SINAPI | Q98: 92775 | R98: ARMAÇÃO DE PILAR OU VIGA DE UMA ESTRUTURA CONVENCIONAL DE CONCRETO ARMADO EM UMA EDIFICAÇÃO TÉRREA OU SOBRADO UTILIZANDO AÇO CA-60 DE 5,0 MM - MONTAGEM. AF_12/2015 | S98: KG | T98: 225.9 | U98: 1 | AA98: Referência: AGETOP - 60314
A99: 3 | B99: 3 | C99: 3 | D99: 2 | E99: 1 | F99: 5 | G99: 4 | H99: 0 | I99: 0 | J99: 2 | K99: 220 | L99: F | M99: Nível 3 | N99: Nível 3 | O99: 1.5.4. | P99: SINAPI | R99: LAJE | S99: - | U99: 1
A100: S | B100: 3 | C100: S | D100: 0 | E100: 1 | F100: 5 | G100: 4 | H100: 0 | I100: 0 | J100: 0 | K100: 0 | L100: F | M100: Serviço | N100: Serviço | O100: 1.5.4.1. | P100: SINAPI | Q100: 74202/1 | R100: LAJE PRE-MOLDADA P/FORRO, SOBRECARGA 100KG/M2, VAOS ATE 3,50M/E=8CM, C/LAJOTAS E CAP.C/CONC FCK=20MPA, 3CM, INTER-EIXO 38CM, C/ESCORAMENTO (REAPR.3X) E FERRAGEM NEGATIVA | S100: M2 | T100: 433.26 | U100: 1
A101: 2 | B101: 2 | C101: 2 | D101: 57 | E101: 1 | F101: 6 | G101: 0 | H101: 0 | I101: 0 | J101: 230 | K101: 57 | L101: F | M101: Nível 2 | N101: Nível 2 | O101: 1.6. | R101: INSTALAÇÕES ELÉTRICAS | S101: - | U101: 1
A102: S | B102: 2 | C102: S | D102: 0 | E102: 1 | F102: 6 | G102: 0 | H102: 0 | I102: 0 | J102: 0 | K102: 0 | L102: F | M102: Serviço | N102: Serviço | O102: 1.6.0.1. | P102: AGETOP | Q102: 70351 | R102: BRACADEIRA METALICA TIPO "U" DIAM. 3/4" | S102: Un | T102: 425 | U102: 1
A103: S | B103: 2 | C103: S | D103: 0 | E103: 1 | F103: 6 | G103: 0 | H103: 0 | I103: 0 | J103: 0 | K103: 0 | L103: F | M103: Serviço | N103: Serviço | O103: 1.6.0.2. | P103: AGETOP | Q103: 70352 | R103: BRACADEIRA METALICA TIPO "U" DIAM. 1" | S103: Un | T103: 150 | U103: 1
A104: S | B104: 2 | C104: S | D104: 0 | E104: 1 | F104: 6 | G104: 0 | H104: 0 | I104: 0 | J104: 0 | K104: 0 | L104: F | M104: Serviço | N104: Serviço | O104: 1.6.0.3. | P104: AGETOP | Q104: 70355 | R104: BRACADEIRA METALICA TIPO "U" DIAM. 2" | S104: Un | T104: 15 | U104: 1
A105: S | B105: 2 | C105: S | D105: 0 | E105: 1 | F105: 6 | G105: 0 | H105: 0 | I105: 0 | J105: 0 | K105: 0 | L105: F | M105: Serviço | N105: Serviço | O105: 1.6.0.4. | P105: AGETOP | Q105: 70421 | R105: BUCHA E ARRUELA METALICA DIAM. 3/4" | S105: PR | T105: 30 | U105: 1
A106: S | B106: 2 | C106: S | D106: 0 | E106: 1 | F106: 6 | G106: 0 | H106: 0 | I106: 0 | J106: 0 | K106: 0 | L106: F | M106: Serviço | N106: Serviço | O106: 1.6.0.5. | P106: AGETOP | Q106: 70422 | R106: BUCHA E ARRUELA METALICA DIAM. 1" | S106: PR | T106: 20 | U106: 1
A107: S | B107: 2 | C107: S | D107: 0 | E107: 1 | F107: 6 | G107: 0 | H107: 0 | I107: 0 | J107: 0 | K107: 0 | L107: F | M107: Serviço | N107: Serviço | O107: 1.6.0.6. | P107: AGETOP | Q107: 70425 | R107: BUCHA E ARRUELA METALICA DIAM. 2" | S107: PR | T107: 4 | U107: 1
A108: S | B108: 2 | C108: S | D108: 0 | E108: 1 | F108: 6 | G108: 0 | H108: 0 | I108: 0 | J108: 0 | K108: 0 | L108: F | M108: Serviço | N108: Serviço | O108: 1.6.0.7. | P108: SINAPI | Q108: 92980 | R108: CABO DE COBRE FLEXÍVEL ISOLADO, 10 MM², ANTI-CHAMA 0,6/1,0 KV, PARA DISTRIBUIÇÃO - FORNECIMENTO E INSTALAÇÃO. AF_12/2015 | S108: M | T108: 6 | U108: 1
A109: S | B109: 2 | C109: S | D109: 0 | E109: 1 | F109: 6 | G109: 0 | H109: 0 | I109: 0 | J109: 0 | K109: 0 | L109: F | M109: Serviço | N109: Serviço | O109: 1.6.0.8. | P109: SINAPI | Q109: 92982 | R109: CABO DE COBRE FLEXÍVEL ISOLADO, 16 MM², ANTI-CHAMA 0,6/1,0 KV, PARA DISTRIBUIÇÃO - FORNECIMENTO E INSTALAÇÃO. AF_12/2015 | S109: M | T109: 10 | U109: 1 | AA109: Referência: AGETOP - 70510
A110: S | B110: 2 | C110: S | D110: 0 | E110: 1 | F110: 6 | G110: 0 | H110: 0 | I110: 0 | J110: 0 | K110: 0 | L110: F | M110: Serviço | N110: Serviço | O110: 1.6.0.9. | P110: SINAPI | Q110: 92984 | R110: CABO DE COBRE FLEXÍVEL ISOLADO, 25 MM², ANTI-CHAMA 0,6/1,0 KV, PARA DISTRIBUIÇÃO - FORNECIMENTO E INSTALAÇÃO. AF_12/2015 | S110: M | T110: 50 | U110: 1 | AA110: Referência: AGETOP - 70511
A111: S | B111: 2 | C111: S | D111: 0 | E111: 1 | F111: 6 | G111: 0 | H111: 0 | I111: 0 | J111: 0 | K111: 0 | L111: F | M111: Serviço | N111: Serviço | O111: 1.6.0.10. | P111: SINAPI | Q111: 92986 | R111: CABO DE COBRE FLEXÍVEL ISOLADO, 35 MM², ANTI-CHAMA 0,6/1,0 KV, PARA DISTRIBUIÇÃO - FORNECIMENTO E INSTALAÇÃO. AF_12/2015 | S111: M | T111: 120 | U111: 1 | AA111: Referência: AGETOP - 70512
A112: S | B112: 2 | C112: S | D112: 0 | E112: 1 | F112: 6 | G112: 0 | H112: 0 | I112: 0 | J112: 0 | K112: 0 | L112: F | M112: Serviço | N112: Serviço | O112: 1.6.0.11. | P112: SINAPI | Q112: 96971 | R112: CORDOALHA DE COBRE NU 16 MM², NÃO ENTERRADA, COM ISOLADOR - FORNECIMENTO E INSTALAÇÃO. AF_12/2017 | S112: M | T112: 12 | U112: 1 | AA112: Referência: AGETOP - 70541
A113: S | B113: 2 | C113: S | D113: 0 | E113: 1 | F113: 6 | G113: 0 | H113: 0 | I113: 0 | J113: 0 | K113: 0 | L113: F | M113: Serviço | N113: Serviço | O113: 1.6.0.12. | P113: SINAPI | Q113: 91927 | R113: CABO DE COBRE FLEXÍVEL ISOLADO, 2,5 MM², ANTI-CHAMA 0,6/1,0 KV, PARA CIRCUITOS TERMINAIS - FORNECIMENTO E INSTALAÇÃO. AF_12/2015 | S113: M | T113: 2935 | U113: 1 | AA113: Referência: AGETOP - 70581
A114: S | B114: 2 | C114: S | D114: 0 | E114: 1 | F114: 6 | G114: 0 | H114: 0 | I114: 0 | J114: 0 | K114: 0 | L114: F | M114: Serviço | N114: Serviço | O114: 1.6.0.13. | P114: SINAPI | Q114: 91929 | R114: CABO DE COBRE FLEXÍVEL ISOLADO, 4 MM², ANTI-CHAMA 0,6/1,0 KV, PARA CIRCUITOS TERMINAIS - FORNECIMENTO E INSTALAÇÃO. AF_12/2015 | S114: M | T114: 150 | U114: 1 | AA114: Referência: AGETOP - 70582
A115: S | B115: 2 | C115: S | D115: 0 | E115: 1 | F115: 6 | G115: 0 | H115: 0 | I115: 0 | J115: 0 | K115: 0 | L115: F | M115: Serviço | N115: Serviço | O115: 1.6.0.14. | P115: SINAPI | Q115: 91931 | R115: CABO DE COBRE FLEXÍVEL ISOLADO, 6 MM², ANTI-CHAMA 0,6/1,0 KV, PARA CIRCUITOS TERMINAIS - FORNECIMENTO E INSTALAÇÃO. AF_12/2015 | S115: M | T115: 790 | U115: 1 | AA115: Referência: AGETOP - 70583
A116: S | B116: 2 | C116: S | D116: 0 | E116: 1 | F116: 6 | G116: 0 | H116: 0 | I116: 0 | J116: 0 | K116: 0 | L116: F | M116: Serviço | N116: Serviço | O116: 1.6.0.15. | P116: SINAPI | Q116: 91933 | R116: CABO DE COBRE FLEXÍVEL ISOLADO, 10 MM², ANTI-CHAMA 0,6/1,0 KV, PARA CIRCUITOS TERMINAIS - FORNECIMENTO E INSTALAÇÃO. AF_12/2015 | S116: M | T116: 250 | U116: 1 | AA116: Referência: AGETOP - 70584
A117: S | B117: 2 | C117: S | D117: 0 | E117: 1 | F117: 6 | G117: 0 | H117: 0 | I117: 0 | J117: 0 | K117: 0 | L117: F | M117: Serviço | N117: Serviço | O117: 1.6.0.16. | P117: SINAPI | Q117: 92865 | R117: CAIXA OCTOGONAL 4" X 4", METÁLICA, INSTALADA EM LAJE - FORNECIMENTO E INSTALAÇÃO. AF_12/2015 | S117: UN | T117: 80 | U117: 1 | AA117: Referência: AGETOP - 70682
A118: S | B118: 2 | C118: S | D118: 0 | E118: 1 | F118: 6 | G118: 0 | H118: 0 | I118: 0 | J118: 0 | K118: 0 | L118: F | M118: Serviço | N118: Serviço | O118: 1.6.0.17. | P118: SINAPI | Q118: 92868 | R118: CAIXA RETANGULAR 4" X 2" MÉDIA (1,30 M DO PISO), METÁLICA, INSTALADA EM PAREDE - FORNECIMENTO E INSTALAÇÃO. AF_12/2015 | S118: UN | T118: 33 | U118: 1 | AA118: Referência: AGETOP - 70691
A119: S | B119: 2 | C119: S | D119: 0 | E119: 1 | F119: 6 | G119: 0 | H119: 0 | I119: 0 | J119: 0 | K119: 0 | L119: F | M119: Serviço | N119: Serviço | O119: 1.6.0.18. | P119: SINAPI | Q119: 91939 | R119: CAIXA RETANGULAR 4" X 2" ALTA (2,00 M DO PISO), PVC, INSTALADA EM PAREDE - FORNECIMENTO E INSTALAÇÃO. AF_12/2015 | S119: UN | T119: 70 | U119: 1
A120: S | B120: 2 | C120: S | D120: 0 | E120: 1 | F120: 6 | G120: 0 | H120: 0 | I120: 0 | J120: 0 | K120: 0 | L120: F | M120: Serviço | N120: Serviço | O120: 1.6.0.19. | P120: SINAPI | Q120: 97892 | R120: CAIXA ENTERRADA ELÉTRICA RETANGULAR, EM ALVENARIA COM BLOCOS DE CONCRETO, FUNDO COM BRITA, DIMENSÕES INTERNAS: 0,6X0,6X0,6 M. AF_05/2018 | S120: UN | T120: 5 | U120: 1
A121: S | B121: 2 | C121: S | D121: 0 | E121: 1 | F121: 6 | G121: 0 | H121: 0 | I121: 0 | J121: 0 | K121: 0 | L121: F | M121: Serviço | N121: Serviço | O121: 1.6.0.20. | P121: AGETOP | Q121: 70720 | R121: CAIXA METÁLICA PARA MEDIDOR POLIFÁSICO PADRÃO ENEL 500X380X166MM | S121: Un | T121: 1 | U121: 1
A122: S | B122: 2 | C122: S | D122: 0 | E122: 1 | F122: 6 | G122: 0 | H122: 0 | I122: 0 | J122: 0 | K122: 0 | L122: F | M122: Serviço | N122: Serviço | O122: 1.6.0.21. | P122: AGETOP | Q122: 70924 | R122: CONDULETE DE PVC - CAIXA COM 5 ENTRADAS | S122: un | T122: 43 | U122: 1
A123: S | B123: 2 | C123: S | D123: 0 | E123: 1 | F123: 6 | G123: 0 | H123: 0 | I123: 0 | J123: 0 | K123: 0 | L123: F | M123: Serviço | N123: Serviço | O123: 1.6.0.22. | P123: AGETOP | Q123: 70930 | R123: CONDULETE METÁLICO - ADAPTADOR DE SAÍDA 3/4" | S123: un | T123: 166 | U123: 1
A124: S | B124: 2 | C124: S | D124: 0 | E124: 1 | F124: 6 | G124: 0 | H124: 0 | I124: 0 | J124: 0 | K124: 0 | L124: F | M124: Serviço | N124: Serviço | O124: 1.6.0.23. | P124: SINAPI | Q124: 91902 | R124: CURVA 90 GRAUS PARA ELETRODUTO, PVC, ROSCÁVEL, DN 25 MM (3/4"), PARA CIRCUITOS TERMINAIS, INSTALADA EM LAJE - FORNECIMENTO E INSTALAÇÃO. AF_12/2015 | S124: UN | T124: 40 | U124: 1 | AA124: Referência: AGETOP - 71141
A125: S | B125: 2 | C125: S | D125: 0 | E125: 1 | F125: 6 | G125: 0 | H125: 0 | I125: 0 | J125: 0 | K125: 0 | L125: F | M125: Serviço | N125: Serviço | O125: 1.6.0.24. | P125: SINAPI | Q125: 91905 | R125: CURVA 90 GRAUS PARA ELETRODUTO, PVC, ROSCÁVEL, DN 32 MM (1"), PARA CIRCUITOS TERMINAIS, INSTALADA EM LAJE - FORNECIMENTO E INSTALAÇÃO. AF_12/2015 | S125: UN | T125: 15 | U125: 1 | AA125: Referência: AGETOP - 71142
A126: S | B126: 2 | C126: S | D126: 0 | E126: 1 | F126: 6 | G126: 0 | H126: 0 | I126: 0 | J126: 0 | K126: 0 | L126: F | M126: Serviço | N126: Serviço | O126: 1.6.0.25. | P126: SINAPI | Q126: 93653 | R126: DISJUNTOR MONOPOLAR TIPO DIN, CORRENTE NOMINAL DE 10A - FORNECIMENTO E INSTALAÇÃO. AF_04/2016 | S126: UN | T126: 10 | U126: 1
A127: S | B127: 2 | C127: S | D127: 0 | E127: 1 | F127: 6 | G127: 0 | H127: 0 | I127: 0 | J127: 0 | K127: 0 | L127: F | M127: Serviço | N127: Serviço | O127: 1.6.0.26. | P127: SINAPI | Q127: 93020 | R127: CURVA 90 GRAUS PARA ELETRODUTO, PVC, ROSCÁVEL, DN 60 MM (2") - FORNECIMENTO E INSTALAÇÃO. AF_12/2015 | S127: UN | T127: 2 | U127: 1
A128: S | B128: 2 | C128: S | D128: 0 | E128: 1 | F128: 6 | G128: 0 | H128: 0 | I128: 0 | J128: 0 | K128: 0 | L128: F | M128: Serviço | N128: Serviço | O128: 1.6.0.27. | P128: SINAPI | Q128: 93654 | R128: DISJUNTOR MONOPOLAR TIPO DIN, CORRENTE NOMINAL DE 16A - FORNECIMENTO E INSTALAÇÃO. AF_04/2016 | S128: UN | T128: 8 | U128: 1
A129: S | B129: 2 | C129: S | D129: 0 | E129: 1 | F129: 6 | G129: 0 | H129: 0 | I129: 0 | J129: 0 | K129: 0 | L129: F | M129: Serviço | N129: Serviço | O129: 1.6.0.28. | P129: SINAPI | Q129: 93656 | R129: DISJUNTOR MONOPOLAR TIPO DIN, CORRENTE NOMINAL DE 25A - FORNECIMENTO E INSTALAÇÃO. AF_04/2016 | S129: UN | T129: 13 | U129: 1
A130: S | B130: 2 | C130: S | D130: 0 | E130: 1 | F130: 6 | G130: 0 | H130: 0 | I130: 0 | J130: 0 | K130: 0 | L130: F | M130: Serviço | N130: Serviço | O130: 1.6.0.29. | P130: SINAPI | Q130: 93657 | R130: DISJUNTOR MONOPOLAR TIPO DIN, CORRENTE NOMINAL DE 32A - FORNECIMENTO E INSTALAÇÃO. AF_04/2016 | S130: UN | T130: 1 | U130: 1
A131: S | B131: 2 | C131: S | D131: 0 | E131: 1 | F131: 6 | G131: 0 | H131: 0 | I131: 0 | J131: 0 | K131: 0 | L131: F | M131: Serviço | N131: Serviço | O131: 1.6.0.30. | P131: SINAPI | Q131: 93673 | R131: DISJUNTOR TRIPOLAR TIPO DIN, CORRENTE NOMINAL DE 50A - FORNECIMENTO E INSTALAÇÃO. AF_04/2016 | S131: UN | T131: 4 | U131: 1 | AA131: Referência: AGETOP - 71174
A132: S | B132: 2 | C132: S | D132: 0 | E132: 1 | F132: 6 | G132: 0 | H132: 0 | I132: 0 | J132: 0 | K132: 0 | L132: F | M132: Serviço | N132: Serviço | O132: 1.6.0.31. | P132: SINAPI | Q132: 74130/5 | R132: DISJUNTOR TERMOMAGNETICO TRIPOLAR PADRAO NEMA (AMERICANO) 60 A 100A 240V, FORNECIMENTO E INSTALACAO | S132: UN | T132: 2 | U132: 1
A133: S | B133: 2 | C133: S | D133: 0 | E133: 1 | F133: 6 | G133: 0 | H133: 0 | I133: 0 | J133: 0 | K133: 0 | L133: F | M133: Serviço | N133: Serviço | O133: 1.6.0.32. | P133: AGETOP | Q133: 71184 | R133: DISPOSITIVO DE PROTEÇÃO CONTRA SURTOS (D.P.S.) 275V DE 8 A 40KA | S133: Un | T133: 3 | U133: 1
A134: S | B134: 2 | C134: S | D134: 0 | E134: 1 | F134: 6 | G134: 0 | H134: 0 | I134: 0 | J134: 0 | K134: 0 | L134: F | M134: Serviço | N134: Serviço | O134: 1.6.0.33. | P134: SINAPI | Q134: 91844 | R134: ELETRODUTO FLEXÍVEL CORRUGADO, PVC, DN 25 MM (3/4"), PARA CIRCUITOS TERMINAIS, INSTALADO EM LAJE - FORNECIMENTO E INSTALAÇÃO. AF_12/2015 | S134: M | T134: 865 | U134: 1
A135: S | B135: 2 | C135: S | D135: 0 | E135: 1 | F135: 6 | G135: 0 | H135: 0 | I135: 0 | J135: 0 | K135: 0 | L135: F | M135: Serviço | N135: Serviço | O135: 1.6.0.34. | P135: SINAPI | Q135: 91846 | R135: ELETRODUTO FLEXÍVEL CORRUGADO, PVC, DN 32 MM (1"), PARA CIRCUITOS TERMINAIS, INSTALADO EM LAJE - FORNECIMENTO E INSTALAÇÃO. AF_12/2015 | S135: M | T135: 300 | U135: 1
A136: S | B136: 2 | C136: S | D136: 0 | E136: 1 | F136: 6 | G136: 0 | H136: 0 | I136: 0 | J136: 0 | K136: 0 | L136: F | M136: Serviço | N136: Serviço | O136: 1.6.0.35. | P136: SINAPI | Q136: 93009 | R136: ELETRODUTO RÍGIDO ROSCÁVEL, PVC, DN 60 MM (2") - FORNECIMENTO E INSTALAÇÃO. AF_12/2015 | S136: M | T136: 30 | U136: 1
A137: S | B137: 2 | C137: S | D137: 0 | E137: 1 | F137: 6 | G137: 0 | H137: 0 | I137: 0 | J137: 0 | K137: 0 | L137: F | M137: Serviço | N137: Serviço | O137: 1.6.0.36. | P137: AGETOP | Q137: 71215 | R137: ELETRODUTO EM AÇO GALVANIZADO A FOGO DIÂMETRO 2" - PESADO | S137: M | T137: 6 | U137: 1
A138: S | B138: 2 | C138: S | D138: 0 | E138: 1 | F138: 6 | G138: 0 | H138: 0 | I138: 0 | J138: 0 | K138: 0 | L138: F | M138: Serviço | N138: Serviço | O138: 1.6.0.37. | P138: AGETOP | Q138: 71321 | R138: FITA DE AUTO FUSAO, ROLO E 10,00 MM | S138: Un | T138: 2 | U138: 1
A139: S | B139: 2 | C139: S | D139: 0 | E139: 1 | F139: 6 | G139: 0 | H139: 0 | I139: 0 | J139: 0 | K139: 0 | L139: F | M139: Serviço | N139: Serviço | O139: 1.6.0.38. | P139: AGETOP | Q139: 71331 | R139: FITA ISOLANTE, ROLO DE 20,00 M | S139: Un | T139: 10 | U139: 1
A140: S | B140: 2 | C140: S | D140: 0 | E140: 1 | F140: 6 | G140: 0 | H140: 0 | I140: 0 | J140: 0 | K140: 0 | L140: F | M140: Serviço | N140: Serviço | O140: 1.6.0.39. | P140: AGETOP | Q140: 71381 | R140: HASTE REV.COBRE(COPPERWELD) 5/8" X 3,00 M C/CONECTOR | S140: Un | T140: 3 | U140: 1
A141: S | B141: 2 | C141: S | D141: 0 | E141: 1 | F141: 6 | G141: 0 | H141: 0 | I141: 0 | J141: 0 | K141: 0 | L141: F | M141: Serviço | N141: Serviço | O141: 1.6.0.40. | P141: SINAPI | Q141: 91955 | R141: INTERRUPTOR PARALELO (1 MÓDULO), 10A/250V, INCLUINDO SUPORTE E PLACA - FORNECIMENTO E INSTALAÇÃO. AF_12/2015 | S141: UN | T141: 2 | U141: 1 | AA141: Referência: AGETOP - 71431
A142: S | B142: 2 | C142: S | D142: 0 | E142: 1 | F142: 6 | G142: 0 | H142: 0 | I142: 0 | J142: 0 | K142: 0 | L142: F | M142: Serviço | N142: Serviço | O142: 1.6.0.41. | P142: SINAPI | Q142: 91953 | R142: INTERRUPTOR SIMPLES (1 MÓDULO), 10A/250V, INCLUINDO SUPORTE E PLACA - FORNECIMENTO E INSTALAÇÃO. AF_12/2015 | S142: UN | T142: 15 | U142: 1 | AA142: Referência: AGETOP - 71440
A143: S | B143: 2 | C143: S | D143: 0 | E143: 1 | F143: 6 | G143: 0 | H143: 0 | I143: 0 | J143: 0 | K143: 0 | L143: F | M143: Serviço | N143: Serviço | O143: 1.6.0.42. | P143: SINAPI | Q143: 97610 | R143: LÂMPADA COMPACTA DE LED 10 W, BASE E27 - FORNECIMENTO E INSTALAÇÃO. AF_11/2017 | S143: UN | T143: 4 | U143: 1
A144: S | B144: 2 | C144: S | D144: 0 | E144: 1 | F144: 6 | G144: 0 | H144: 0 | I144: 0 | J144: 0 | K144: 0 | L144: F | M144: Serviço | N144: Serviço | O144: 1.6.0.43. | P144: COMPOSIÇÃO | Q144: COMP 387_SEE | R144: LÂMPADA LED TUBULAR 18W | S144: UN | T144: 218 | U144: 1
A145: S | B145: 2 | C145: S | D145: 0 | E145: 1 | F145: 6 | G145: 0 | H145: 0 | I145: 0 | J145: 0 | K145: 0 | L145: F | M145: Serviço | N145: Serviço | O145: 1.6.0.44. | P145: SINAPI | Q145: 97585 | R145: LUMINÁRIA TIPO CALHA, DE SOBREPOR, COM 2 LÂMPADAS TUBULARES DE 18 W - FORNECIMENTO E INSTALAÇÃO. AF_11/2017 | S145: UN | T145: 109 | U145: 1
A146: S | B146: 2 | C146: S | D146: 0 | E146: 1 | F146: 6 | G146: 0 | H146: 0 | I146: 0 | J146: 0 | K146: 0 | L146: F | M146: Serviço | N146: Serviço | O146: 1.6.0.45. | P146: SINAPI | Q146: 97593 | R146: LUMINÁRIA TIPO SPOT, DE SOBREPOR, COM 1 LÂMPADA DE 15 W - FORNECIMENTO E INSTALAÇÃO. AF_11/2017 | S146: UN | T146: 4 | U146: 1 | AA146: Referência: AGETOP - 71688
A147: S | B147: 2 | C147: S | D147: 0 | E147: 1 | F147: 6 | G147: 0 | H147: 0 | I147: 0 | J147: =IF(OR($C147="S",$C147=0),0,MATCH(0,OFFSET($D147,1,$C147,ROW($C$618)-ROW($C147)),0)) -> 0 | K147: =IF(OR($C147="S",$C147=0),0,MATCH(OFFSET($D147,0,$C147)+1,OFFSET($D147,1,$C147,ROW($C$618)-ROW($C147)),0)) -> 0 | L147: F | M147: Serviço | N147: Serviço | O147: 1.6.0.46. | P147: SINAPI | Q147: 93014 | R147: LUVA PARA ELETRODUTO, PVC, ROSCÁVEL, DN 60 MM (2") - FORNECIMENTO E INSTALAÇÃO. AF_12/2015 | S147: UN | T147: 14 | U147: 1 | AA147: Referência: AGETOP - 71745
A148: S | B148: 2 | C148: S | D148: 0 | E148: 1 | F148: 6 | G148: 0 | H148: 0 | I148: 0 | J148: 0 | K148: 0 | L148: F | M148: Serviço | N148: Serviço | O148: 1.6.0.47. | P148: AGETOP | Q148: 71824 | R148: PADRÃO TRIFASICO 35 MM H=7 METROS | S148: Un | T148: 1 | U148: 1
A149: S | B149: 2 | C149: S | D149: 0 | E149: 1 | F149: 6 | G149: 0 | H149: 0 | I149: 0 | J149: 0 | K149: 0 | L149: F | M149: Serviço | N149: Serviço | O149: 1.6.0.48. | P149: SINAPI | Q149: 74131/5 | R149: QUADRO DE DISTRIBUICAO DE ENERGIA DE EMBUTIR, EM CHAPA METALICA, PARA 24 DISJUNTORES TERMOMAGNETICOS MONOPOLARES, COM BARRAMENTO TRIFASICO E NEUTRO, FORNECIMENTO E INSTALACAO | S149: UN | T149: 1 | U149: 1
A150: S | B150: 2 | C150: S | D150: 0 | E150: 1 | F150: 6 | G150: 0 | H150: 0 | I150: 0 | J150: 0 | K150: 0 | L150: F | M150: Serviço | N150: Serviço | O150: 1.6.0.49. | P150: SINAPI | Q150: 74131/6 | R150: QUADRO DE DISTRIBUICAO DE ENERGIA DE EMBUTIR, EM CHAPA METALICA, PARA 32 DISJUNTORES TERMOMAGNETICOS MONOPOLARES, COM BARRAMENTO TRIFASICO E NEUTRO, FORNECIMENTO E INSTALACAO | S150: UN | T150: 1 | U150: 1 | AA150: Referência: AGETOP - 72198
A151: S | B151: 2 | C151: S | D151: 0 | E151: 1 | F151: 6 | G151: 0 | H151: 0 | I151: 0 | J151: 0 | K151: 0 | L151: F | M151: Serviço | N151: Serviço | O151: 1.6.0.50. | P151: AGETOP | Q151: 72425 | R151: TAMPA CEGA PLASTICA RETANGULAR 4"X2" | S151: Un | T151: 36 | U151: 1
A152: S | B152: 2 | C152: S | D152: 0 | E152: 1 | F152: 6 | G152: 0 | H152: 0 | I152: 0 | J152: 0 | K152: 0 | L152: F | M152: Serviço | N152: Serviço | O152: 1.6.0.51. | P152: SINAPI | Q152: 91996 | R152: TOMADA MÉDIA DE EMBUTIR (1 MÓDULO), 2P+T 10 A, INCLUINDO SUPORTE E PLACA - FORNECIMENTO E INSTALAÇÃO. AF_12/2015 | S152: UN | T152: 10 | U152: 1 | AA152: Referência: AGETOP - 72578
A153: S | B153: 2 | C153: S | D153: 0 | E153: 1 | F153: 6 | G153: 0 | H153: 0 | I153: 0 | J153: 0 | K153: 0 | L153: F | M153: Serviço | N153: Serviço | O153: 1.6.0.52. | P153: SINAPI | Q153: 92000 | R153: TOMADA BAIXA DE EMBUTIR (1 MÓDULO), 2P+T 10 A, INCLUINDO SUPORTE E PLACA - FORNECIMENTO E INSTALAÇÃO. AF_12/2015 | S153: UN | T153: 9 | U153: 1 | AA153: Referência: AGETOP - 72578
A154: S | B154: 2 | C154: S | D154: 0 | E154: 1 | F154: 6 | G154: 0 | H154: 0 | I154: 0 | J154: 0 | K154: 0 | L154: F | M154: Serviço | N154: Serviço | O154: 1.6.0.53. | P154: SINAPI | Q154: 91992 | R154: TOMADA ALTA DE EMBUTIR (1 MÓDULO), 2P+T 10 A, INCLUINDO SUPORTE E PLACA - FORNECIMENTO E INSTALAÇÃO. AF_12/2015 | S154: UN | T154: 9 | U154: 1
A155: S | B155: 2 | C155: S | D155: 0 | E155: 1 | F155: 6 | G155: 0 | H155: 0 | I155: 0 | J155: 0 | K155: 0 | L155: F | M155: Serviço | N155: Serviço | O155: 1.6.0.54. | P155: SINAPI | Q155: 98111 | R155: CAIXA DE INSPEÇÃO PARA ATERRAMENTO, CIRCULAR, EM POLIETILENO, DIÂMETRO INTERNO = 0,3 M. AF_05/2018 | S155: UN | T155: 1 | U155: 1
A156: S | B156: 2 | C156: S | D156: 0 | E156: 1 | F156: 6 | G156: 0 | H156: 0 | I156: 0 | J156: 0 | K156: 0 | L156: F | M156: Serviço | N156: Serviço | O156: 1.6.0.55. | P156: AGETOP | Q156: 70255 | R156: ATERRAMENTO - SOLDA EXOTÉRMICA - CARTUCHO 90 G | S156: un | T156: 3 | U156: 1
A157: S | B157: 2 | C157: S | D157: 0 | E157: 1 | F157: 6 | G157: 0 | H157: 0 | I157: 0 | J157: 0 | K157: 0 | L157: F | M157: Serviço | N157: Serviço | O157: 1.6.0.56. | P157: AGETOP | Q157: 72080 | R157: POSTE/TRAFO - CAMINHÃO MUNCK 12 TON. (MÍNIMO 4H/DIA) | S157: H | T157: 4 | U157: 1
A158: 2 | B158: 2 | C158: 2 | D158: 90 | E158: 1 | F158: 7 | G158: 0 | H158: 0 | I158: 0 | J158: 173 | K158: 90 | L158: F | M158: Nível 2 | N158: Nível 2 | O158: 1.7. | P158: AGETOP | R158: INSTALAÇÕES HIDROSSANITÁRIAS | S158: - | U158: 1
A159: 3 | B159: 3 | C159: 3 | D159: 50 | E159: 1 | F159: 7 | G159: 1 | H159: 0 | I159: 0 | J159: 89 | K159: 50 | L159: F | M159: Nível 3 | N159: Nível 3 | O159: 1.7.1. | P159: SINAPI | R159: PEÇAS E ACESSÓRIOS | S159: - | U159: 1
A160: S | B160: 3 | C160: S | D160: 0 | E160: 1 | F160: 7 | G160: 1 | H160: 0 | I160: 0 | J160: 0 | K160: 0 | L160: F | M160: Serviço | N160: Serviço | O160: 1.7.1.1. | P160: SINAPI | Q160: 95470 | R160: VASO SANITARIO SIFONADO CONVENCIONAL COM LOUÇA BRANCA, INCLUSO CONJUNTO DE LIGAÇÃO PARA BACIA SANITÁRIA AJUSTÁVEL - FORNECIMENTO E INSTALAÇÃO. AF_10/2016 | S160: UN | T160: 6 | U160: 1
A161: S | B161: 3 | C161: S | D161: 0 | E161: 1 | F161: 7 | G161: 1 | H161: 0 | I161: 0 | J161: 0 | K161: 0 | L161: F | M161: Serviço | N161: Serviço | O161: 1.7.1.2. | P161: AGETOP | Q161: 80511 | R161: CAIXA DE DESCARGA EXTERNA | S161: Un | T161: 6 | U161: 1
A162: S | B162: 3 | C162: S | D162: 0 | E162: 1 | F162: 7 | G162: 1 | H162: 0 | I162: 0 | J162: 0 | K162: 0 | L162: F | M162: Serviço | N162: Serviço | O162: 1.7.1.3. | P162: AGETOP | Q162: 80510 | R162: ANEL DE VEDAÇÃO PARA VASO SANITÁRIO | S162: Un | T162: 6 | U162: 1
A163: S | B163: 3 | C163: S | D163: 0 | E163: 1 | F163: 7 | G163: 1 | H163: 0 | I163: 0 | J163: 0 | K163: 0 | L163: F | M163: Serviço | N163: Serviço | O163: 1.7.1.4. | P163: AGETOP | Q163: 80512 | R163: TUBO DE DESCIDA PARA CAIXA DE DESCARGA ( LONGO 1 1/4" ) | S163: Un | T163: 6 | U163: 1
A164: S | B164: 3 | C164: S | D164: 0 | E164: 1 | F164: 7 | G164: 1 | H164: 0 | I164: 0 | J164: 0 | K164: 0 | L164: F | M164: Serviço | N164: Serviço | O164: 1.7.1.5. | P164: AGETOP | Q164: 80520 | R164: CONJUNTO DE FIXACAO P/VASO SANITARIO (PAR) | S164: CJ | T164: 6 | U164: 1
A165: S | B165: 3 | C165: S | D165: 0 | E165: 1 | F165: 7 | G165: 1 | H165: 0 | I165: 0 | J165: 0 | K165: 0 | L165: F | M165: Serviço | N165: Serviço | O165: 1.7.1.6. | P165: AGETOP | Q165: 80526 | R165: ASSENTO EM POLIPROPILENO COM SISTEMA DE FECHAMENTO SUAVE PARA VASO SANITÁRIO | S165: Un | T165: 6 | U165: 1
A166: S | B166: 3 | C166: S | D166: 0 | E166: 1 | F166: 7 | G166: 1 | H166: 0 | I166: 0 | J166: 0 | K166: 0 | L166: F | M166: Serviço | N166: Serviço | O166: 1.7.1.7. | P166: SINAPI | Q166: 95544 | R166: PAPELEIRA DE PAREDE EM METAL CROMADO SEM TAMPA, INCLUSO FIXAÇÃO. AF_10/2016 | S166: UN | T166: 6 | U166: 1
A167: S | B167: 3 | C167: S | D167: 0 | E167: 1 | F167: 7 | G167: 1 | H167: 0 | I167: 0 | J167: 0 | K167: 0 | L167: F | M167: Serviço | N167: Serviço | O167: 1.7.1.8. | P167: AGETOP | Q167: 80686 | R167: CUBA INOX 56X34X17CM E=0,6MM-AÇO 304 (CUBA Nº2) | S167: Un | T167: 2 | U167: 1
A168: S | B168: 3 | C168: S | D168: 0 | E168: 1 | F168: 7 | G168: 1 | H168: 0 | I168: 0 | J168: 0 | K168: 0 | L168: F | M168: Serviço | N168: Serviço | O168: 1.7.1.9. | P168: SINAPI | Q168: 86912 | R168: TORNEIRA CROMADA LONGA, DE PAREDE, 1/2" OU 3/4", PARA PIA DE COZINHA, PADRÃO MÉDIO - FORNECIMENTO E INSTALAÇÃO. AF_12/2013 | S168: UN | T168: 3 | U168: 1
A169: S | B169: 3 | C169: S | D169: 0 | E169: 1 | F169: 7 | G169: 1 | H169: 0 | I169: 0 | J169: 0 | K169: 0 | L169: F | M169: Serviço | N169: Serviço | O169: 1.7.1.10. | P169: AGETOP | Q169: 80693 | R169: TANQUE (PANELAO) INOX 60 X 70 X 40 CM CH.18 | S169: Un | T169: 1 | U169: 1
A170: S | B170: 3 | C170: S | D170: 0 | E170: 1 | F170: 7 | G170: 1 | H170: 0 | I170: 0 | J170: 0 | K170: 0 | L170: F | M170: Serviço | N170: Serviço | O170: 1.7.1.11. | P170: SINAPI | Q170: 86881 | R170: SIFÃO DO TIPO GARRAFA EM METAL CROMADO 1 X 1.1/2" - FORNECIMENTO E INSTALAÇÃO. AF_12/2013 | S170: UN | T170: 3 | U170: 1 | AA170: Referência: AGETOP - 80670
A171: S | B171: 3 | C171: S | D171: 0 | E171: 1 | F171: 7 | G171: 1 | H171: 0 | I171: 0 | J171: 0 | K171: 0 | L171: F | M171: Serviço | N171: Serviço | O171: 1.7.1.12. | P171: SINAPI | Q171: 86878 | R171: VÁLVULA EM METAL CROMADO TIPO AMERICANA 3.1/2" X 1.1/2" PARA PIA - FORNECIMENTO E INSTALAÇÃO. AF_12/2013 | S171: UN | T171: 3 | U171: 1
A172: S | B172: 3 | C172: S | D172: 0 | E172: 1 | F172: 7 | G172: 1 | H172: 0 | I172: 0 | J172: 0 | K172: 0 | L172: F | M172: Serviço | N172: Serviço | O172: 1.7.1.13. | P172: SINAPI | Q172: 95543 | R172: PORTA TOALHA BANHO EM METAL CROMADO, TIPO BARRA, INCLUSO FIXAÇÃO. AF_10/2016 | S172: UN | T172: 4 | U172: 1
A173: S | B173: 3 | C173: S | D173: 0 | E173: 1 | F173: 7 | G173: 1 | H173: 0 | I173: 0 | J173: 0 | K173: 0 | L173: F | M173: Serviço | N173: Serviço | O173: 1.7.1.14. | P173: SINAPI | Q173: 88571 | R173: SABONETEIRA DE SOBREPOR (FIXADA NA PAREDE), TIPO CONCHA, EM ACO INOXIDAVEL - FORNECIMENTO E INSTALACAO | S173: UN | T173: 4 | U173: 1 | AA173: Referência: AGETOP - 80741
A174: S | B174: 3 | C174: S | D174: 0 | E174: 1 | F174: 7 | G174: 1 | H174: 0 | I174: 0 | J174: 0 | K174: 0 | L174: F | M174: Serviço | N174: Serviço | O174: 1.7.1.15. | P174: AGETOP | Q174: 80903 | R174: REGISTRO DE GAVETA BRUTO DIAMETRO 1" | S174: Un | T174: 1 | U174: 1
A175: S | B175: 3 | C175: S | D175: 0 | E175: 1 | F175: 7 | G175: 1 | H175: 0 | I175: 0 | J175: 0 | K175: 0 | L175: F | M175: Serviço | N175: Serviço | O175: 1.7.1.16. | P175: AGETOP | Q175: 80981 | R175: REGISTRO DE ESFERA DIAMETRO 2.1/2" | S175: Un | T175: 1 | U175: 1
A176: S | B176: 3 | C176: S | D176: 0 | E176: 1 | F176: 7 | G176: 1 | H176: 0 | I176: 0 | J176: 0 | K176: 0 | L176: F | M176: Serviço | N176: Serviço | O176: 1.7.1.17. | P176: SINAPI | Q176: 89447 | R176: TUBO, PVC, SOLDÁVEL, DN 32MM, INSTALADO EM PRUMADA DE ÁGUA - FORNECIMENTO E INSTALAÇÃO. AF_12/2014 | S176: M | T176: 72 | U176: 1
A177: S | B177: 3 | C177: S | D177: 0 | E177: 1 | F177: 7 | G177: 1 | H177: 0 | I177: 0 | J177: 0 | K177: 0 | L177: F | M177: Serviço | N177: Serviço | O177: 1.7.1.18. | P177: SINAPI | Q177: 89451 | R177: TUBO, PVC, SOLDÁVEL, DN 75MM, INSTALADO EM PRUMADA DE ÁGUA - FORNECIMENTO E INSTALAÇÃO. AF_12/2014 | S177: M | T177: 78 | U177: 1
A178: S | B178: 3 | C178: S | D178: 0 | E178: 1 | F178: 7 | G178: 1 | H178: 0 | I178: 0 | J178: 0 | K178: 0 | L178: F | M178: Serviço | N178: Serviço | O178: 1.7.1.19. | P178: SINAPI | Q178: 89553 | R178: ADAPTADOR CURTO COM BOLSA E ROSCA PARA REGISTRO, PVC, SOLDÁVEL, DN 32MM X 1, INSTALADO EM PRUMADA DE ÁGUA - FORNECIMENTO E INSTALAÇÃO. AF_12/2014 | S178: UN | T178: 4 | U178: 1 | AA178: Referência: AGETOP - 81067
A179: S | B179: 3 | C179: S | D179: 0 | E179: 1 | F179: 7 | G179: 1 | H179: 0 | I179: 0 | J179: 0 | K179: 0 | L179: F | M179: Serviço | N179: Serviço | O179: 1.7.1.20. | P179: SINAPI | Q179: 89613 | R179: ADAPTADOR CURTO COM BOLSA E ROSCA PARA REGISTRO, PVC, SOLDÁVEL, DN 75MM X 2.1/2, INSTALADO EM PRUMADA DE ÁGUA - FORNECIMENTO E INSTALAÇÃO. AF_12/2014 | S179: UN | T179: 4 | U179: 1 | AA179: Referência: AGETOP - 81071
A180: S | B180: 3 | C180: S | D180: 0 | E180: 1 | F180: 7 | G180: 1 | H180: 0 | I180: 0 | J180: 0 | K180: 0 | L180: F | M180: Serviço | N180: Serviço | O180: 1.7.1.21. | P180: SINAPI | Q180: 89579 | R180: LUVA DE REDUÇÃO, PVC, SOLDÁVEL, DN 50MM X 25MM, INSTALADO EM PRUMADA DE ÁGUA FORNECIMENTO E INSTALAÇÃO. AF_12/2014 | S180: UN | T180: 4 | U180: 1
A181: S | B181: 3 | C181: S | D181: 0 | E181: 1 | F181: 7 | G181: 1 | H181: 0 | I181: 0 | J181: 0 | K181: 0 | L181: F | M181: Serviço | N181: Serviço | O181: 1.7.1.22. | P181: AGETOP | Q181: 81180 | R181: BUCHA DE REDUCAO SOLDAVEL LONGA 50 X 32 mm | S181: Un | T181: 4 | U181: 1
A182: S | B182: 3 | C182: S | D182: 0 | E182: 1 | F182: 7 | G182: 1 | H182: 0 | I182: 0 | J182: 0 | K182: 0 | L182: F | M182: Serviço | N182: Serviço | O182: 1.7.1.23. | P182: AGETOP | Q182: 81185 | R182: BUCHA DE REDUÇÃO SOLDÁVEL LONGA 75 X 50 MM | S182: un | T182: 4 | U182: 1
A183: S | B183: 3 | C183: S | D183: 0 | E183: 1 | F183: 7 | G183: 1 | H183: 0 | I183: 0 | J183: 0 | K183: 0 | L183: F | M183: Serviço | N183: Serviço | O183: 1.7.1.24. | P183: AGETOP | Q183: 81501 | R183: ADESIVO PLASTICO - FRASCO 850 G | S183: Un | T183: 7 | U183: 1
A184: S | B184: 3 | C184: S | D184: 0 | E184: 1 | F184: 7 | G184: 1 | H184: 0 | I184: 0 | J184: 0 | K184: 0 | L184: F | M184: Serviço | N184: Serviço | O184: 1.7.1.25. | P184: AGETOP | Q184: 81504 | R184: SOLUCAO LIMPADORA 1000 CM3 | S184: Un | T184: 7 | U184: 1
A185: S | B185: 3 | C185: S | D185: 0 | E185: 1 | F185: 7 | G185: 1 | H185: 0 | I185: 0 | J185: 0 | K185: 0 | L185: F | M185: Serviço | N185: Serviço | O185: 1.7.1.26. | P185: AGETOP | Q185: 81663 | R185: CORPO CX. SIFONADA DIAM. 150 X 150 X 50 | S185: Un | T185: 3 | U185: 1
A186: S | B186: 3 | C186: S | D186: 0 | E186: 1 | F186: 7 | G186: 1 | H186: 0 | I186: 0 | J186: 0 | K186: 0 | L186: F | M186: Serviço | N186: Serviço | O186: 1.7.1.27. | P186: AGETOP | Q186: 81679 | R186: CORPO RALO SIFONADO CONICO DIAM. 100 X 40 | S186: Un | T186: 1 | U186: 1
A187: S | B187: 3 | C187: S | D187: 0 | E187: 1 | F187: 7 | G187: 1 | H187: 0 | I187: 0 | J187: 0 | K187: 0 | L187: F | M187: Serviço | N187: Serviço | O187: 1.7.1.28. | P187: AGETOP | Q187: 81702 | R187: CURVA 45 GRAUS DIAMETRO 100 MM | S187: Un | T187: 2 | U187: 1
A188: S | B188: 3 | C188: S | D188: 0 | E188: 1 | F188: 7 | G188: 1 | H188: 0 | I188: 0 | J188: 0 | K188: 0 | L188: F | M188: Serviço | N188: Serviço | O188: 1.7.1.29. | P188: AGETOP | Q188: 81730 | R188: CURVA 90 GRAUS CURTA DIAM. 40 MM | S188: Un | T188: 5 | U188: 1
A189: S | B189: 3 | C189: S | D189: 0 | E189: 1 | F189: 7 | G189: 1 | H189: 0 | I189: 0 | J189: 0 | K189: 0 | L189: F | M189: Serviço | N189: Serviço | O189: 1.7.1.30. | P189: SINAPI | Q189: 89802 | R189: JOELHO 45 GRAUS, PVC, SERIE NORMAL, ESGOTO PREDIAL, DN 50 MM, JUNTA ELÁSTICA, FORNECIDO E INSTALADO EM PRUMADA DE ESGOTO SANITÁRIO OU VENTILAÇÃO. AF_12/2014 | S189: UN | T189: 2 | U189: 1
A190: S | B190: 3 | C190: S | D190: 0 | E190: 1 | F190: 7 | G190: 1 | H190: 0 | I190: 0 | J190: 0 | K190: 0 | L190: F | M190: Serviço | N190: Serviço | O190: 1.7.1.31. | P190: SINAPI | Q190: 89810 | R190: JOELHO 45 GRAUS, PVC, SERIE NORMAL, ESGOTO PREDIAL, DN 100 MM, JUNTA ELÁSTICA, FORNECIDO E INSTALADO EM PRUMADA DE ESGOTO SANITÁRIO OU VENTILAÇÃO. AF_12/2014 | S190: UN | T190: 2 | U190: 1
A191: S | B191: 3 | C191: S | D191: 0 | E191: 1 | F191: 7 | G191: 1 | H191: 0 | I191: 0 | J191: 0 | K191: 0 | L191: F | M191: Serviço | N191: Serviço | O191: 1.7.1.32. | P191: SINAPI | Q191: 89731 | R191: JOELHO 90 GRAUS, PVC, SERIE NORMAL, ESGOTO PREDIAL, DN 50 MM, JUNTA ELÁSTICA, FORNECIDO E INSTALADO EM RAMAL DE DESCARGA OU RAMAL DE ESGOTO SANITÁRIO. AF_12/2014 | S191: UN | T191: 5 | U191: 1
A192: S | B192: 3 | C192: S | D192: 0 | E192: 1 | F192: 7 | G192: 1 | H192: 0 | I192: 0 | J192: 0 | K192: 0 | L192: F | M192: Serviço | N192: Serviço | O192: 1.7.1.33. | P192: AGETOP | Q192: 81973 | R192: JUNCAO SIMPLES DIAM. 100 X 50 MM | S192: Un | T192: 3 | U192: 1
A193: S | B193: 3 | C193: S | D193: 0 | E193: 1 | F193: 7 | G193: 1 | H193: 0 | I193: 0 | J193: 0 | K193: 0 | L193: F | M193: Serviço | N193: Serviço | O193: 1.7.1.34. | P193: SINAPI | Q193: 89797 | R193: JUNÇÃO SIMPLES, PVC, SERIE NORMAL, ESGOTO PREDIAL, DN 100 X 100 MM, JUNTA ELÁSTICA, FORNECIDO E INSTALADO EM RAMAL DE DESCARGA OU RAMAL DE ESGOTO SANITÁRIO. AF_12/2014 | S193: UN | T193: 7 | U193: 1 | AA193: Referência: AGETOP - 81975
A194: S | B194: 3 | C194: S | D194: 0 | E194: 1 | F194: 7 | G194: 1 | H194: 0 | I194: 0 | J194: 0 | K194: 0 | L194: F | M194: Serviço | N194: Serviço | O194: 1.7.1.35. | P194: AGETOP | Q194: 82103 | R194: REDUCAO EXCENTRICA 100 X 50 MM | S194: Un | T194: 3 | U194: 1
A195: S | B195: 3 | C195: S | D195: 0 | E195: 1 | F195: 7 | G195: 1 | H195: 0 | I195: 0 | J195: 0 | K195: 0 | L195: F | M195: Serviço | N195: Serviço | O195: 1.7.1.36. | P195: SINAPI | Q195: 89825 | R195: TE, PVC, SERIE NORMAL, ESGOTO PREDIAL, DN 50 X 50 MM, JUNTA ELÁSTICA, FORNECIDO E INSTALADO EM PRUMADA DE ESGOTO SANITÁRIO OU VENTILAÇÃO. AF_12/2014 | S195: UN | T195: 4 | U195: 1
A196: S | B196: 3 | C196: S | D196: 0 | E196: 1 | F196: 7 | G196: 1 | H196: 0 | I196: 0 | J196: 0 | K196: 0 | L196: F | M196: Serviço | N196: Serviço | O196: 1.7.1.37. | P196: SINAPI | Q196: 89711 | R196: TUBO PVC, SERIE NORMAL, ESGOTO PREDIAL, DN 40 MM, FORNECIDO E INSTALADO EM RAMAL DE DESCARGA OU RAMAL DE ESGOTO SANITÁRIO. AF_12/2014 | S196: M | T196: 12 | U196: 1 | AA196: Referência: AGETOP - 82301
A197: S | B197: 3 | C197: S | D197: 0 | E197: 1 | F197: 7 | G197: 1 | H197: 0 | I197: 0 | J197: 0 | K197: 0 | L197: F | M197: Serviço | N197: Serviço | O197: 1.7.1.38. | P197: SINAPI | Q197: 89798 | R197: TUBO PVC, SERIE NORMAL, ESGOTO PREDIAL, DN 50 MM, FORNECIDO E INSTALADO EM PRUMADA DE ESGOTO SANITÁRIO OU VENTILAÇÃO. AF_12/2014 | S197: M | T197: 24 | U197: 1
A198: S | B198: 3 | C198: S | D198: 0 | E198: =IF($C198=1,OFFSET(E198,-1,0)+1,OFFSET(E198,-1,0)) -> 1 | F198: =IF($C198=1,0,IF($C198=2,OFFSET(F198,-1,0)+1,OFFSET(F198,-1,0))) -> 7 | G198: =IF(AND($C198<=2,$C198<>0),0,IF($C198=3,OFFSET(G198,-1,0)+1,OFFSET(G198,-1,0))) -> 1 | H198: =IF(AND($C198<=3,$C198<>0),0,IF($C198=4,OFFSET(H198,-1,0)+1,OFFSET(H198,-1,0))) -> 0 | I198: 0 | J198: 0 | K198: 0 | L198: F | M198: Serviço | N198: Serviço | O198: 1.7.1.39. | P198: SINAPI | Q198: 89800 | R198: TUBO PVC, SERIE NORMAL, ESGOTO PREDIAL, DN 100 MM, FORNECIDO E INSTALADO EM PRUMADA DE ESGOTO SANITÁRIO OU VENTILAÇÃO. AF_12/2014 | S198: M | T198: 156 | U198: 1
A199: =CHOOSE(1+LOG(1+2*(ORÇAMENTO.Nivel="Nível 1")+4*(ORÇAMENTO.Nivel="Nível 2")+8*(ORÇAMENTO.Nivel="Nível 3")+16*(ORÇAMENTO.Nivel="Nível 4")+32*(ORÇAMENTO.Nivel="Serviço"),2),0,1,2,3,4,"S") -> S | B199: 3 | C199: S | D199: 0 | E199: 1 | F199: 7 | G199: 1 | H199: 0 | I199: =IF(AND($C199<=4,$C199<>0),0,IF(AND($C199="S",$Y199>0),OFFSET(I199,-1,0)+1,OFFSET(I199,-1,0))) -> 0 | J199: 0 | K199: 0 | L199: F | M199: Serviço | N199: Serviço | O199: 1.7.1.40. | P199: SINAPI | Q199: 95674 | R199: HIDRÔMETRO DN 20 (½), 3,0 M³/H  FORNECIMENTO E INSTALAÇÃO. AF_11/2016 | S199: UN | T199: 1 | U199: 1 | AA199: Referência: AGETOP - 81811
A200: S | B200: 3 | C200: S | D200: 0 | E200: 1 | F200: 7 | G200: 1 | H200: 0 | I200: 0 | J200: 0 | K200: 0 | L200: F | M200: Serviço | N200: Serviço | O200: 1.7.1.41. | P200: AGETOP | Q200: 81815 | R200: KIT CAVALETE D=25MM P/HIDRÔMETRO 1,5-3,0-5,0 M3/MURETA/CAIXA | S200: Un | T200: 1 | U200: 1
A201: S | B201: 3 | C201: S | D201: 0 | E201: 1 | F201: 7 | G201: 1 | H201: 0 | I201: 0 | J201: 0 | K201: 0 | L201: F | M201: Serviço | N201: Serviço | O201: 1.7.1.42. | P201: AGETOP | Q201: 81825 | R201: CAIXA DE PASSAGEM 60 X 60 CM SEM TAMPA | S201: Un | T201: 9 | U201: 1
A202: S | B202: 3 | C202: S | D202: 0 | E202: 1 | F202: 7 | G202: 1 | H202: 0 | I202: 0 | J202: 0 | K202: 0 | L202: F | M202: Serviço | N202: Serviço | O202: 1.7.1.43. | P202: AGETOP | Q202: 81826 | R202: TAMPA EM CONCRETO ARMADO 25 MPA E=5CM PARA A CAIXA DE PASSAGEM 60X60CM | S202: Un | T202: 9 | U202: 1
A203: S | B203: 3 | C203: S | D203: 0 | E203: 1 | F203: 7 | G203: 1 | H203: 0 | I203: 0 | J203: 0 | K203: 0 | L203: F | M203: Serviço | N203: Serviço | O203: 1.7.1.44. | P203: AGETOP | Q203: 81827 | R203: CAIXA DE AREIA 60X60CM FUNDO DE BRITA SEM TAMPA | S203: Un | T203: 2 | U203: 1
A204: S | B204: 3 | C204: S | D204: 0 | E204: 1 | F204: 7 | G204: 1 | H204: 0 | I204: 0 | J204: 0 | K204: 0 | L204: F | M204: Serviço | N204: Serviço | O204: 1.7.1.45. | P204: AGETOP | Q204: 70716 | R204: CAIXA DE PASSAGEM 80X80X110 CM FUNDO DE BRITA SEM TAMPA | S204: Un | T204: 1 | U204: 1
A205: S | B205: 3 | C205: S | D205: 0 | E205: 1 | F205: 7 | G205: 1 | H205: 0 | I205: 0 | J205: 0 | K205: 0 | L205: F | M205: Serviço | N205: Serviço | O205: 1.7.1.46. | P205: AGETOP | Q205: 81835 | R205: CAIXA DE AREIA - TAMPA EM GRELHA DE CONCRETO ARMADO 25MPA E=5CM | S205: m2 | T205: 3 | U205: 1
A206: S | B206: 3 | C206: S | D206: 0 | E206: 1 | F206: 7 | G206: 1 | H206: 0 | I206: 0 | J206: 0 | K206: 0 | L206: F | M206: Serviço | N206: Serviço | O206: 1.7.1.47. | P206: SINAPI | Q206: 94798 | R206: TORNEIRA DE BOIA, ROSCÁVEL, 1 1/4 , FORNECIDA E INSTALADA EM RESERVAÇÃO DE ÁGUA. AF_06/2016 | S206: UN | T206: 1 | U206: 1
... 485 more rows

Sheet Resumo
B3: UNIDADE ESCOLAR | G3: CÓDIGO INEP
B4: =Orçamento!$O$4 -> COLÉGIO ESTADUAL JUSCELINO KUBITSCHEK DE OLIVEIRA | G4: =Orçamento!X4 -> 52075583
B6: OBRA | G6: CIDADE
B7: =Orçamento!$O$7 -> REFORMA E IMPLANTAÇÃO | G7: =Orçamento!$X$7 -> ÁGUAS LINDAS DE GOIÁS
B9: ENDEREÇO | G9: CRE
B10: =Orçamento!$R$10 -> AREA ESPECIAL S/N, JARDIM SANTA LUCIA, CEP:72910-001 | G10: =Orçamento!$O$10 -> ÁGUAS LINDAS
B12: REFERÊNCIA | D12: DATA | G12: ÁREA TOTAL CONSTRUÍDA (M²)
B13: =CONCATENATE("AGETOP E SINAPI - ",Orçamento!$Y$10) -> AGETOP E SINAPI - DESONERADA | D13: =Orçamento!$S$7 -> 2020-07-07 | G13: =Orçamento!$S$13 -> 3074.09
A14: FILTRO
B15: RESUMO GERAL DO ORÇAMENTO
A16: ↓ | B16: ITEM | C16: DESCRIÇÃO DOS SERVIÇOS | G16: PREÇO SEM BDI | H16: PREÇO COM BDI | I16: PARTICIP. (%)
A17: =IF(G17>0,"F","") ->  | B17: 1. | C17: =Orçamento!$P671 -> REFORMA E IMPLANTAÇÃO | G17: =IFERROR(Orçamento!S671,"-") -> 0 | H17: =IFERROR(Orçamento!X671,"") -> 0 | I17: =Orçamento!AA671 -> 
A18: =IF(G18>0,"F","") ->  | B18: 2. | C18: =Orçamento!$P672 -> BLOCO 03 SALAS PADRÃO SEDUC 2019 - LAJE | G18: =IFERROR(Orçamento!S672,"-") -> 0 | H18: =IFERROR(Orçamento!X672,"") -> 0 | I18: =Orçamento!AA672 -> 
B19: 3. | C19: =Orçamento!$P673 -> BLOCO SANITÁRIO PADRÃO SEDUC 2013 | G19: =IFERROR(Orçamento!S673,"-") -> 0 | H19: =IFERROR(Orçamento!X673,"") -> 0 | I19: =Orçamento!AA673 -> 
B20: 4. | C20: =Orçamento!$P674 -> PASSARELA MODELO 01 - PADRÃO SÉC. XXI 2015 | G20: =IFERROR(Orçamento!S674,"-") -> 0 | H20: =IFERROR(Orçamento!X674,"") -> 0 | I20: =Orçamento!AA674 -> 
B21: 5. | C21: =Orçamento!$P675 -> PASSARELA MODELO 02 - PADRÃO SÉC. XXI 2015 | G21: =IFERROR(Orçamento!S675,"-") -> 0 | H21: =IFERROR(Orçamento!X675,"") -> 0 | I21: =Orçamento!AA675 -> 
B22: 6. | C22: =Orçamento!$P676 ->  | G22: =IFERROR(Orçamento!S676,"-") -> 0 | H22: =IFERROR(Orçamento!X676,"") -> 0 | I22: =Orçamento!AA676 -> 
B23: 7. | C23: =Orçamento!$P677 ->  | G23: =IFERROR(Orçamento!S677,"-") -> 0 | H23: =IFERROR(Orçamento!X677,"") -> 0 | I23: =Orçamento!AA677 -> 
B24: 8. | C24: =Orçamento!$P678 ->  | G24: =IFERROR(Orçamento!S678,"-") -> 0 | H24: =IFERROR(Orçamento!X678,"") -> 0 | I24: =Orçamento!AA678 -> 
B25: 9. | C25: =Orçamento!$P679 ->  | G25: =IFERROR(Orçamento!S679,"-") -> 0 | H25: =IFERROR(Orçamento!X679,"") -> 0 | I25: =Orçamento!AA679 -> 
B26: 10. | C26: =Orçamento!$P680 ->  | G26: =IFERROR(Orçamento!S680,"-") -> 0 | H26: =IFERROR(Orçamento!X680,"") -> 0 | I26: =Orçamento!AA680 -> 
B27: 11. | C27: =Orçamento!$P681 ->  | G27: =IFERROR(Orçamento!S681,"-") -> 0 | H27: =IFERROR(Orçamento!X681,"") -> 0 | I27: =Orçamento!AA681 -> 
B28: 12. | C28: =Orçamento!$P682 ->  | G28: =IFERROR(Orçamento!S682,"-") -> 0 | H28: =IFERROR(Orçamento!X682,"") -> 0 | I28: =Orçamento!AA682 -> 
B29: 13. | C29: =Orçamento!$P683 ->  | G29: =IFERROR(Orçamento!S683,"-") -> 0 | H29: =IFERROR(Orçamento!X683,"") -> 0 | I29: =Orçamento!AA683 -> 
B30: 14. | C30: =Orçamento!$P684 ->  | G30: =IFERROR(Orçamento!S684,"-") -> 0 | H30: =IFERROR(Orçamento!X684,"") -> 0 | I30: =Orçamento!AA684 -> 
B31: 15. | C31: =Orçamento!$P685 ->  | G31: =IFERROR(Orçamento!S685,"-") -> 0 | H31: =IFERROR(Orçamento!X685,"") -> 0 | I31: =Orçamento!AA685 -> 
B32: 16. | C32: =Orçamento!$P686 ->  | G32: =IFERROR(Orçamento!S686,"-") -> 0 | H32: =IFERROR(Orçamento!X686,"") -> 0 | I32: =Orçamento!AA686 -> 
B33: 17. | C33: =Orçamento!$P687 ->  | G33: =IFERROR(Orçamento!S687,"-") -> 0 | H33: =IFERROR(Orçamento!X687,"") -> 0 | I33: =Orçamento!AA687 -> 
B34: 18. | C34: =Orçamento!$P688 ->  | G34: =IFERROR(Orçamento!S688,"-") -> 0 | H34: =IFERROR(Orçamento!X688,"") -> 0 | I34: =Orçamento!AA688 -> 
B35: 19. | C35: =Orçamento!$P689 ->  | G35: =IFERROR(Orçamento!S689,"-") -> 0 | H35: =IFERROR(Orçamento!X689,"") -> 0 | I35: =Orçamento!AA689 -> 
B36: 20. | C36: =Orçamento!$P690 ->  | G36: =IFERROR(Orçamento!S690,"-") -> 0 | H36: =IFERROR(Orçamento!X690,"") -> 0 | I36: =Orçamento!AA690 -> 
A37: F | B37: TOTAL GERAL DO ORÇAMENTO (R$) | G37: =SUM(G17:G36) -> 0 | H37: 0 | I37: =SUM(I17:I36) -> 
A38: F
A39: F

Sheet Somatório
B3: UNIDADE ESCOLAR | E3: CÓDIGO INEP
B4: =Orçamento!$O$4 -> COLÉGIO ESTADUAL JUSCELINO KUBITSCHEK DE OLIVEIRA | E4: =Orçamento!X4 -> 52075583
B6: OBRA | E6: CIDADE
B7: =Orçamento!$O$7 -> REFORMA E IMPLANTAÇÃO | E7: =Orçamento!$X$7 -> ÁGUAS LINDAS DE GOIÁS
B9: ENDEREÇO | E9: CRE
B10: =Orçamento!$R$10 -> AREA ESPECIAL S/N, JARDIM SANTA LUCIA, CEP:72910-001 | E10: =Orçamento!$O$10 -> ÁGUAS LINDAS
B12: REFERÊNCIA | D12: DATA | E12: ÁREA TOTAL CONSTRUÍDA (M²)
B13: =CONCATENATE("AGETOP E SINAPI - ",Orçamento!$Y$10) -> AGETOP E SINAPI - DESONERADA | D13: =Orçamento!$S$7 -> 2020-07-07 | E13: =Orçamento!$S$13 -> 3074.09
A14: FILTRO
B15: SOMATÓRIO DE SERVIÇOS
A16: ↓ | B16: ITEM | C16: DESCRIÇÃO DOS SERVIÇOS | D16: PREÇO SEM BDI (R$) | E16: PREÇO COM BDI (R$) | F16: PARTIC. ( % )
A17: =IF(D17>0,"F","") ->  | B17: a. | C17: =Orçamento!P637 -> SERVIÇOS PRELIMINARES | D17: =Orçamento!S637 -> 0 | E17: =Orçamento!X637 -> 0 | F17: =Orçamento!AA637 -> 0 | G17: 5 | H17: 6 | I17: 7
A18: =IF(D18>0,"F","") ->  | B18: b. | C18: =Orçamento!P638 -> TRANSPORTES | D18: =Orçamento!S638 -> 0 | E18: =Orçamento!X638 -> 0 | F18: =Orçamento!AA638 -> 0 | G18: 0 | H18: 0 | I18: 1
B19: c. | C19: =Orçamento!P639 -> SERVIÇO EM TERRA | D19: =Orçamento!S639 -> 0 | E19: =Orçamento!X639 -> 0 | F19: =Orçamento!AA639 -> 0 | G19: 6 | H19: 6 | I19: 7
B20: d. | C20: =Orçamento!P640 -> FUNDAÇÕES E SONDAGENS | D20: =Orçamento!S640 -> 0 | E20: =Orçamento!X640 -> 0 | F20: =Orçamento!AA640 -> 0 | G20: 0 | H20: 2 | I20: 9
B21: e. | C21: =Orçamento!P641 -> ESTRUTURA | D21: =Orçamento!S641 -> 0 | E21: =Orçamento!X641 -> 0 | F21: =Orçamento!AA641 -> 0 | G21: 6 | H21: 0 | I21: 7
B22: f. | C22: =Orçamento!P642 -> INSTALAÇÕES ELÉTRICAS | D22: =Orçamento!S642 -> 0 | E22: =Orçamento!X642 -> 0 | F22: =Orçamento!AA642 -> 0 | G22: 9 | H22: 0 | I22: 7
B23: g. | C23: =Orçamento!P643 -> INSTALAÇÕES HIDROSSANITÁRIAS | D23: =Orçamento!S643 -> 0 | E23: =Orçamento!X643 -> 0 | F23: =Orçamento!AA643 -> 0 | G23: 0 | H23: 6 | I23: 4
B24: h | C24: =Orçamento!P644 -> INSTALAÇÕES ESPECIAIS | D24: =Orçamento!S644 -> 0 | E24: =Orçamento!X644 -> 0 | F24: =Orçamento!AA644 -> 0 | G24: 3 | H24: 8 | I24: 0
B25: i. | C25: =Orçamento!P645 -> ALVENARIAS E DIVISÓRIAS | D25: =Orçamento!S645 -> 0 | E25: =Orçamento!X645 -> 0 | F25: =Orçamento!AA645 -> 0 | G25: 9 | H25: 2 | I25: 1
B26: j. | C26: =Orçamento!P646 -> ALVENARIA AUTO-PORTANTE | D26: =Orçamento!S646 -> 0 | E26: =Orçamento!X646 -> 0 | F26: =Orçamento!AA646 -> 0
B27: k. | C27: =Orçamento!P647 -> IMPERMEABILIZAÇÃO | D27: =Orçamento!S647 -> 0 | E27: =Orçamento!X647 -> 0 | F27: =Orçamento!AA647 -> 0 | G27: 4 | H27: 7 | I27: 8
B28: l. | C28: =Orçamento!P648 -> ISOLAMENTO TÉRMICO E ACÚSTICO | D28: =Orçamento!S648 -> 0 | E28: =Orçamento!X648 -> 0 | F28: =Orçamento!AA648 -> 0
B29: m. | C29: =Orçamento!P649 -> ESTRUTURA DE MADEIRA | D29: =Orçamento!S649 -> 0 | E29: =Orçamento!X649 -> 0 | F29: =Orçamento!AA649 -> 0
B30: n. | C30: =Orçamento!P650 -> ESTRUTURAS METÁLICAS | D30: =Orçamento!S650 -> 0 | E30: =Orçamento!X650 -> 0 | F30: =Orçamento!AA650 -> 0 | G30: 2 | H30: 2 | I30: 0
B31: o. | C31: =Orçamento!P651 -> COBERTURAS | D31: =Orçamento!S651 -> 0 | E31: =Orçamento!X651 -> 0 | F31: =Orçamento!AA651 -> 0 | G31: 5 | H31: 6 | I31: 3
B32: p. | C32: =Orçamento!P652 -> ESQUADRIAS DE MADEIRA | D32: =Orçamento!S652 -> 0 | E32: =Orçamento!X652 -> 0 | F32: =Orçamento!AA652 -> 0
B33: q. | C33: =Orçamento!P653 -> ESQUADRIAS METÁLICAS | D33: =Orçamento!S653 -> 0 | E33: =Orçamento!X653 -> 0 | F33: =Orçamento!AA653 -> 0 | G33: 3 | H33: 4 | I33: 0
B34: r. | C34: =Orçamento!P654 -> VIDROS | D34: =Orçamento!S654 -> 0 | E34: =Orçamento!X654 -> 0 | F34: =Orçamento!AA654 -> 0 | G34: 2 | H34: 5 | I34: 5
B35: s. | C35: =Orçamento!P655 -> REVESTIMENTO DE PAREDE | D35: =Orçamento!S655 -> 0 | E35: =Orçamento!X655 -> 0 | F35: =Orçamento!AA655 -> 0 | G35: 1 | H35: 2 | I35: 1
B36: t. | C36: =Orçamento!P656 -> FORROS | D36: =Orçamento!S656 -> 0 | E36: =Orçamento!X656 -> 0 | F36: =Orçamento!AA656 -> 0 | G36: 2 | H36: 3 | I36: 6
B37: u. | C37: =Orçamento!P657 -> REVESTIMENTO DE PISO | D37: =Orçamento!S657 -> 0 | E37: =Orçamento!X657 -> 0 | F37: =Orçamento!AA657 -> 0 | G37: 5 | H37: 8 | I37: 0
B38: v. | C38: =Orçamento!P658 -> FERRAGENS | D38: =Orçamento!S658 -> 0 | E38: =Orçamento!X658 -> 0 | F38: =Orçamento!AA658 -> 0 | G38: 2 | H38: 3 | I38: 5
B39: w. | C39: =Orçamento!P659 -> MARCENARIA | D39: =Orçamento!S659 -> 0 | E39: =Orçamento!X659 -> 0 | F39: =Orçamento!AA659 -> 0 | G39: 3 | H39: 6 | I39: 2
B40: x. | C40: =Orçamento!P660 -> ADMINISTRAÇÃO | D40: =Orçamento!S660 -> 0 | E40: =Orçamento!X660 -> 0 | F40: =Orçamento!AA660 -> 0 | G40: 0 | H40: 5 | I40: 9
B41: y. | C41: =Orçamento!P661 -> PINTURA | D41: =Orçamento!S661 -> 0 | E41: =Orçamento!X661 -> 0 | F41: =Orçamento!AA661 -> 0 | G41: 2 | H41: 1 | I41: 1
B42: z. | C42: =Orçamento!P662 -> DIVERSOS | D42: =Orçamento!S662 -> 0 | E42: =Orçamento!X662 -> 0 | F42: =Orçamento!AA662 -> 0 | G42: 9 | H42: 9 | I42: 7
A43: F | B43: TOTAL GERAL DO ORÇAMENTO | D43: =SUM(D17:D42) -> 0 | E43: 0 | F43: 0 | G43: 78 | H43: 91 | I43: 90
B45: (*) Para itens da AGETOP, os vidros não estão inclusos nas esquadrias e já foram considerados os custos de contramarco para as esquadrias de alumínio;

Sheet Cronog_180_Dias
B3: UNIDADE ESCOLAR | I3: PRAZO
B4: =Orçamento!O4 -> COLÉGIO ESTADUAL JUSCELINO KUBITSCHEK DE OLIVEIRA | I4: 180 DIAS CORRIDOS
B6: OBRA | I6: DATA
B7: =Orçamento!O7 -> REFORMA E IMPLANTAÇÃO | I7: =Orçamento!S7 -> 2020-07-07
B9: LOCAL | I9: ÁREA TOTAL CONSTRUÍDA (M²)
A10: FILTRO | B10: =Orçamento!X7 -> ÁGUAS LINDAS DE GOIÁS | I10: =Orçamento!S13 -> 3074.09
B12: CRONOGRAMA - FÍSICO FINANCEIRO
A13: ↓ | B13: CUSTO TOTAL: | C13: =D93 -> 0 | D13: VALOR | E13: Dias: | F13: 30 | J13: 60 | N13: 90 | R13: 120 | V13: 150 | Z13: 180 | AD13: TOTAL
B14: DESCRIÇÃO DOS SERVIÇOS | E14: % | F14: 1ª PARCELA | J14: 2ª PARCELA | N14: 3ª PARCELA | R14: 4ª PARCELA | V14: 5ª PARCELA | Z14: 6ª PARCELA
A15: =IF(D15>0,"F","") ->  | B15: SERVIÇOS PRELIMINARES | D15: =Orçamento!X637 -> 0 | E15: =Orçamento!AA637 -> 0 | F15: =ROUND(F17*$D$15,2) -> 0 | J15: =ROUND(J17*$D$15,2) -> 0 | N15: =ROUND(N17*$D$15,2) -> 0 | R15: =ROUND(R17*$D$15,2) -> 0 | V15: =ROUND(V17*$D$15,2) -> 0 | Z15: =ROUND(Z17*$D$15,2) -> 0 | AD15: =SUM(F15:AC15) -> 0 | AE15: =IF(D15=AD15,"OK","ERRO") -> OK
A16: =IF(A15="F",A15,"") -> 
A17: =IF(A16="F",A16,"") ->  | F17: 1 | Z17: =100%-(SUM(F17:Y17)) -> 0 | AD17: =IFERROR(E15/100,"") -> 0 | AE17: =IF(E15=AD17*100,"OK","ERRO") -> OK
A18: =IF(D18>0,"F","") ->  | B18: TRANSPORTES | D18: =Orçamento!X638 -> 0 | E18: =Orçamento!AA638 -> 0 | F18: =ROUND(F20*$D$18,2) -> 0 | J18: =ROUND(J20*$D$18,2) -> 0 | N18: =ROUND(N20*$D$18,2) -> 0 | R18: =ROUND(R20*$D$18,2) -> 0 | V18: =ROUND(V20*$D$18,2) -> 0 | Z18: =ROUND(Z20*$D$18,2) -> 0 | AD18: =SUM(F18:AC18) -> 0 | AE18: =IF(D18=AD18,"OK","ERRO") -> OK
A19: =IF(A18="F",A18,"") -> 
A20: =IF(A19="F",A19,"") ->  | F20: 0.171 | J20: 0.16 | N20: 0.171 | R20: 0.172 | V20: 0.16 | Z20: =100%-(SUM(F20:Y20)) -> 0.166 | AD20: =IFERROR(E18/100,"") -> 0 | AE20: =IF(E18=AD20*100,"OK","ERRO") -> OK
A21: =IF(D21>0,"F","") ->  | B21: SERVIÇO EM TERRA | D21: =Orçamento!X639 -> 0 | E21: =Orçamento!AA639 -> 0 | F21: =ROUND(F23*$D$21,2) -> 0 | J21: =ROUND(J23*$D$21,2) -> 0 | N21: =ROUND(N23*$D$21,2) -> 0 | R21: =ROUND(R23*$D$21,2) -> 0 | V21: =ROUND(V23*$D$21,2) -> 0 | Z21: =ROUND(Z23*$D$21,2) -> 0 | AD21: =SUM(F21:AC21) -> 0 | AE21: =IF(D21=AD21,"OK","ERRO") -> OK
A22: =IF(A21="F",A21,"") -> 
A23: =IF(A22="F",A22,"") ->  | F23: 0.38 | J23: 0.62 | R23: 0 | V23: 0 | Z23: =100%-(SUM(F23:Y23)) -> 0 | AD23: =IFERROR(E21/100,"") -> 0 | AE23: =IF(E21=AD23*100,"OK","ERRO") -> OK
A24: =IF(D24>0,"F","") ->  | B24: FUNDAÇÕES E SONDAGENS | D24: =Orçamento!X640 -> 0 | E24: =Orçamento!AA640 -> 0 | F24: =ROUND(F26*$D$24,2) -> 0 | J24: =ROUND(J26*$D$24,2) -> 0 | N24: =ROUND(N26*$D$24,2) -> 0 | R24: =ROUND(R26*$D$24,2) -> 0 | V24: =ROUND(V26*$D$24,2) -> 0 | Z24: =ROUND(Z26*$D$24,2) -> 0 | AD24: =SUM(F24:AC24) -> 0 | AE24: =IF(D24=AD24,"OK","ERRO") -> OK
A25: =IF(A24="F",A24,"") -> 
A26: =IF(A25="F",A25,"") ->  | F26: 0.2499999 | J26: 0.75 | AD26: =IFERROR(E24/100,"") -> 0 | AE26: =IF(E24=AD26*100,"OK","ERRO") -> OK
A27: =IF(D27>0,"F","") ->  | B27: ESTRUTURA | D27: =Orçamento!X641 -> 0 | E27: =Orçamento!AA641 -> 0 | F27: =ROUND(F29*$D$27,2) -> 0 | J27: =ROUND(J29*$D$27,2) -> 0 | N27: =ROUND(N29*$D$27,2) -> 0 | R27: =ROUND(R29*$D$27,2) -> 0 | V27: =ROUND(V29*$D$27,2) -> 0 | Z27: =ROUND(Z29*$D$27,2) -> 0 | AD27: =SUM(F27:AC27) -> 0 | AE27: =IF(D27=AD27,"OK","ERRO") -> OK
A28: =IF(A27="F",A27,"") -> 
A29: =IF(A28="F",A28,"") ->  | J29: 0.55 | N29: 0.45 | Z29: =100%-(SUM(F29:Y29)) -> 0 | AD29: =IFERROR(E27/100,"") -> 0 | AE29: =IF(E27=AD29*100,"OK","ERRO") -> OK
A30: =IF(D30>0,"F","") ->  | B30: INST.ELET/TELEFÔNICA/CABEAMENTO ESTRUTURADO | D30: =Orçamento!X642 -> 0 | E30: =Orçamento!AA642 -> 0 | F30: =ROUND(F32*$D$30,2) -> 0 | J30: =ROUND(J32*$D$30,2) -> 0 | N30: =ROUND(N32*$D$30,2) -> 0 | R30: =ROUND(R32*$D$30,2) -> 0 | V30: =ROUND(V32*$D$30,2) -> 0 | Z30: =ROUND(Z32*$D$30,2) -> 0 | AD30: =SUM(F30:AC30) -> 0 | AE30: =IF(D30=AD30,"OK","ERRO") -> OK
A31: =IF(A30="F",A30,"") -> 
A32: =IF(A31="F",A31,"") ->  | J32: 0.17 | N32: 0.118 | R32: 0.24 | V32: 0.25 | Z32: =100%-(SUM(F32:Y32)) -> 0.222 | AD32: =IFERROR(E30/100,"") -> 0 | AE32: =IF(E30=AD32*100,"OK","ERRO") -> OK
A33: =IF(D33>0,"F","") ->  | B33: INSTALAÇÕES HIDROSSANITÁRIAS | D33: =Orçamento!X643 -> 0 | E33: =Orçamento!AA643 -> 0 | F33: =ROUND(F35*$D$33,2) -> 0 | J33: =ROUND(J35*$D$33,2) -> 0 | N33: =ROUND(N35*$D$33,2) -> 0 | R33: =ROUND(R35*$D$33,2) -> 0 | V33: =ROUND(V35*$D$33,2) -> 0 | Z33: =ROUND(Z35*$D$33,2) -> 0 | AD33: =SUM(F33:AC33) -> 0 | AE33: =IF(D33=AD33,"OK","ERRO") -> OK
A34: =IF(A33="F",A33,"") -> 
A35: =IF(A34="F",A34,"") ->  | J35: 0.125 | N35: 0.145 | R35: 0.234 | V35: 0.25 | Z35: =100%-(SUM(F35:Y35)) -> 0.246 | AD35: =IFERROR(E33/100,"") -> 0 | AE35: =IF(E33=AD35*100,"OK","ERRO") -> OK
A36: =IF(D36>0,"F","") ->  | B36: INSTALAÇÕES ESPECIAIS | D36: =Orçamento!X644 -> 0 | E36: =Orçamento!AA644 -> 0 | F36: =ROUND(F38*$D$36,2) -> 0 | J36: =ROUND(J38*$D$36,2) -> 0 | N36: =ROUND(N38*$D$36,2) -> 0 | R36: =ROUND(R38*$D$36,2) -> 0 | V36: =ROUND(V38*$D$36,2) -> 0 | Z36: =ROUND(Z38*$D$36,2) -> 0 | AD36: =SUM(F36:AC36) -> 0 | AE36: =IF(D36=AD36,"OK","ERRO") -> OK
A37: =IF(A36="F",A36,"") -> 
A38: =IF(A37="F",A37,"") ->  | V38: 1 | Z38: =100%-(SUM(F38:Y38)) -> 0 | AD38: =IFERROR(E36/100,"") -> 0 | AE38: =IF(E36=AD38*100,"OK","ERRO") -> OK
A39: =IF(D39>0,"F","") ->  | B39: ALVENARIA E DIVISÓRIAS | D39: =Orçamento!X645 -> 0 | E39: =Orçamento!AA645 -> 0 | F39: =ROUND(F41*$D$39,2) -> 0 | J39: =ROUND(J41*$D$39,2) -> 0 | N39: =ROUND(N41*$D$39,2) -> 0 | R39: =ROUND(R41*$D$39,2) -> 0 | V39: =ROUND(V41*$D$39,2) -> 0 | Z39: =ROUND(Z41*$D$39,2) -> 0 | AD39: =SUM(F39:AC39) -> 0 | AE39: =IF(D39=AD39,"OK","ERRO") -> OK
A40: =IF(A39="F",A39,"") -> 
A41: =IF(A40="F",A40,"") ->  | N41: 0.5 | R41: 0.3 | V41: 0.2 | Z41: =100%-(SUM(F41:Y41)) -> 0 | AD41: =IFERROR(E39/100,"") -> 0 | AE41: =IF(E39=AD41*100,"OK","ERRO") -> OK
A42: =IF(D42>0,"F","") ->  | B42: ALVENARIA AUTO-PORTANTE | D42: =Orçamento!X646 -> 0 | E42: =Orçamento!AA646 -> 0 | F42: =ROUND(F44*$D$42,2) -> 0 | J42: =ROUND(J44*$D$42,2) -> 0 | N42: =ROUND(N44*$D$42,2) -> 0 | R42: =ROUND(R44*$D$42,2) -> 0 | V42: =ROUND(V44*$D$42,2) -> 0 | Z42: =ROUND(Z44*$D$42,2) -> 0 | AD42: =SUM(F42:AC42) -> 0 | AE42: =IF(D42=AD42,"OK","ERRO") -> OK
A43: =IF(A42="F",A42,"") -> 
A44: =IF(A43="F",A43,"") ->  | R44: 1 | V44: 0 | Z44: =100%-(SUM(F44:Y44)) -> 0 | AD44: =IFERROR(E42/100,"") -> 0 | AE44: =IF(E42=AD44*100,"OK","ERRO") -> OK
A45: =IF(D45>0,"F","") ->  | B45: IMPERMEABILIZAÇÃO | D45: =Orçamento!X647 -> 0 | E45: =Orçamento!AA647 -> 0 | F45: =ROUND(F47*$D$45,2) -> 0 | J45: =ROUND(J47*$D$45,2) -> 0 | N45: =ROUND(N47*$D$45,2) -> 0 | R45: =ROUND(R47*$D$45,2) -> 0 | V45: =ROUND(V47*$D$45,2) -> 0 | Z45: =ROUND(Z47*$D$45,2) -> 0 | AD45: =SUM(F45:AC45) -> 0 | AE45: =IF(D45=AD45,"OK","ERRO") -> OK
A46: =IF(A45="F",A45,"") -> 
A47: =IF(A46="F",A46,"") ->  | J47: 0.65 | R47: 0.35 | V47: 0 | Z47: =100%-(SUM(F47:Y47)) -> 0 | AD47: =IFERROR(E45/100,"") -> 0 | AE47: =IF(E45=AD47*100,"OK","ERRO") -> OK
A48: =IF(D48>0,"F","") ->  | B48: ISOLAMENTO TÉRMICO E ACÚSTICO | D48: =Orçamento!X648 -> 0 | E48: =Orçamento!AA648 -> 0 | F48: =ROUND(F50*$D$48,2) -> 0 | J48: =ROUND(J50*$D$48,2) -> 0 | N48: =ROUND(N50*$D$48,2) -> 0 | R48: =ROUND(R50*$D$48,2) -> 0 | V48: =ROUND(V50*$D$48,2) -> 0 | Z48: =ROUND(Z50*$D$48,2) -> 0 | AD48: =SUM(F48:AC48) -> 0 | AE48: =IF(D48=AD48,"OK","ERRO") -> OK
A49: =IF(A48="F",A48,"") -> 
A50: =IF(A49="F",A49,"") ->  | R50: 1 | Z50: =100%-(SUM(F50:Y50)) -> 0 | AD50: =IFERROR(E48/100,"") -> 0 | AE50: =IF(E48=AD50*100,"OK","ERRO") -> OK
A51: =IF(D51>0,"F","") ->  | B51: ESTRUTURA DE MADEIRA | D51: =Orçamento!X649 -> 0 | E51: =Orçamento!AA649 -> 0 | F51: =ROUND(F53*$D$51,2) -> 0 | J51: =ROUND(J53*$D$51,2) -> 0 | N51: =ROUND(N53*$D$51,2) -> 0 | R51: =ROUND(R53*$D$51,2) -> 0 | V51: =ROUND(V53*$D$51,2) -> 0 | Z51: =ROUND(Z53*$D$51,2) -> 0 | AD51: =SUM(F51:AC51) -> 0 | AE51: =IF(D51=AD51,"OK","ERRO") -> OK
A52: =IF(A51="F",A51,"") -> 
A53: =IF(A52="F",A52,"") ->  | N53: 0.3 | R53: 0.7 | Z53: =100%-(SUM(F53:Y53)) -> 0 | AD53: =IFERROR(E51/100,"") -> 0 | AE53: =IF(E51=AD53*100,"OK","ERRO") -> OK
A54: =IF(D54>0,"F","") ->  | B54: ESTRUTURA METÁLICA | D54: =Orçamento!X650 -> 0 | E54: =Orçamento!AA650 -> 0 | F54: =ROUND(F56*$D$54,2) -> 0 | J54: =ROUND(J56*$D$54,2) -> 0 | N54: =ROUND(N56*$D$54,2) -> 0 | R54: =ROUND(R56*$D$54,2) -> 0 | V54: =ROUND(V56*$D$54,2) -> 0 | Z54: =ROUND(Z56*$D$54,2) -> 0 | AD54: =SUM(F54:AC54) -> 0 | AE54: =IF(D54=AD54,"OK","ERRO") -> OK
A55: =IF(A54="F",A54,"") -> 
A56: =IF(A55="F",A55,"") ->  | N56: 0.3 | R56: 0.7 | Z56: =100%-(SUM(F56:Y56)) -> 0 | AD56: =IFERROR(E54/100,"") -> 0 | AE56: =IF(E54=AD56*100,"OK","ERRO") -> OK
A57: =IF(D57>0,"F","") ->  | B57: COBERTURAS | D57: =Orçamento!X651 -> 0 | E57: =Orçamento!AA651 -> 0 | F57: =ROUND(F59*$D$57,2) -> 0 | J57: =ROUND(J59*$D$57,2) -> 0 | N57: =ROUND(N59*$D$57,2) -> 0 | R57: =ROUND(R59*$D$57,2) -> 0 | V57: =ROUND(V59*$D$57,2) -> 0 | Z57: =ROUND(Z59*$D$57,2) -> 0 | AD57: =SUM(F57:AC57) -> 0 | AE57: =IF(D57=AD57,"OK","ERRO") -> OK
A58: =IF(A57="F",A57,"") -> 
A59: =IF(A58="F",A58,"") ->  | R59: 0.36 | V59: 0.64 | Z59: =100%-(SUM(F59:Y59)) -> 0 | AD59: =IFERROR(E57/100,"") -> 0 | AE59: =IF(E57=AD59*100,"OK","ERRO") -> OK
A60: =IF(D60>0,"F","") ->  | B60: ESQUADRIAS DE MADEIRA | D60: =Orçamento!X652 -> 0 | E60: =Orçamento!AA652 -> 0 | F60: =ROUND(F62*$D$60,2) -> 0 | J60: =ROUND(J62*$D$60,2) -> 0 | N60: =ROUND(N62*$D$60,2) -> 0 | R60: =ROUND(R62*$D$60,2) -> 0 | V60: =ROUND(V62*$D$60,2) -> 0 | Z60: =ROUND(Z62*$D$60,2) -> 0 | AD60: =SUM(F60:AC60) -> 0 | AE60: =IF(D60=AD60,"OK","ERRO") -> OK
A61: =IF(A60="F",A60,"") -> 
A62: =IF(A61="F",A61,"") ->  | V62: 0.4 | Z62: =100%-(SUM(F62:Y62)) -> 0.6 | AD62: =IFERROR(E60/100,"") -> 0 | AE62: =IF(E60=AD62*100,"OK","ERRO") -> OK
A63: =IF(D63>0,"F","") ->  | B63: ESQUADRIAS METÁLICAS | D63: =Orçamento!X653 -> 0 | E63: =Orçamento!AA653 -> 0 | F63: =ROUND(F65*$D$63,2) -> 0 | J63: =ROUND(J65*$D$63,2) -> 0 | N63: =ROUND(N65*$D$63,2) -> 0 | R63: =ROUND(R65*$D$63,2) -> 0 | V63: =ROUND(V65*$D$63,2) -> 0 | Z63: =ROUND(Z65*$D$63,2) -> 0 | AD63: =SUM(F63:AC63) -> 0 | AE63: =IF(D63=AD63,"OK","ERRO") -> OK
A64: =IF(A63="F",A63,"") -> 
A65: =IF(A64="F",A64,"") ->  | V65: 0.4 | Z65: =100%-(SUM(F65:Y65)) -> 0.6 | AD65: =IFERROR(E63/100,"") -> 0 | AE65: =IF(E63=AD65*100,"OK","ERRO") -> OK
A66: =IF(D66>0,"F","") ->  | B66: VIDROS | D66: =Orçamento!X654 -> 0 | E66: =Orçamento!AA654 -> 0 | F66: =ROUND(F68*$D$66,2) -> 0 | J66: =ROUND(J68*$D$66,2) -> 0 | N66: =ROUND(N68*$D$66,2) -> 0 | R66: =ROUND(R68*$D$66,2) -> 0 | V66: =ROUND(V68*$D$66,2) -> 0 | Z66: =ROUND(Z68*$D$66,2) -> 0 | AD66: =SUM(F66:AC66) -> 0 | AE66: =IF(D66=AD66,"OK","ERRO") -> OK
A67: =IF(A66="F",A66,"") -> 
A68: =IF(A67="F",A67,"") ->  | Z68: =100%-(SUM(F68:Y68)) -> 1 | AD68: =IFERROR(E66/100,"") -> 0 | AE68: =IF(E66=AD68*100,"OK","ERRO") -> OK
A69: =IF(D69>0,"F","") ->  | B69: REVESTIMENTO DE PAREDE | D69: =Orçamento!X655 -> 0 | E69: =Orçamento!AA655 -> 0 | F69: =ROUND(F71*$D$69,2) -> 0 | J69: =ROUND(J71*$D$69,2) -> 0 | N69: =ROUND(N71*$D$69,2) -> 0 | R69: =ROUND(R71*$D$69,2) -> 0 | V69: =ROUND(V71*$D$69,2) -> 0 | Z69: =ROUND(Z71*$D$69,2) -> 0 | AD69: =SUM(F69:AC69) -> 0 | AE69: =IF(D69=AD69,"OK","ERRO") -> OK
A70: =IF(A69="F",A69,"") -> 
A71: =IF(A70="F",A70,"") ->  | R71: 1 | Z71: =100%-(SUM(F71:Y71)) -> 0 | AD71: =IFERROR(E69/100,"") -> 0 | AE71: =IF(E69=AD71*100,"OK","ERRO") -> OK
A72: =IF(D72>0,"F","") ->  | B72: FORROS | D72: =Orçamento!X656 -> 0 | E72: =Orçamento!AA656 -> 0 | F72: =ROUND(F74*$D$72,2) -> 0 | J72: =ROUND(J74*$D$72,2) -> 0 | N72: =ROUND(N74*$D$72,2) -> 0 | R72: =ROUND(R74*$D$72,2) -> 0 | V72: =ROUND(V74*$D$72,2) -> 0 | Z72: =ROUND(Z74*$D$72,2) -> 0 | AD72: =SUM(F72:AC72) -> 0 | AE72: =IF(D72=AD72,"OK","ERRO") -> OK
A73: =IF(A72="F",A72,"") -> 
A74: =IF(A73="F",A73,"") ->  | R74: 1 | Z74: =100%-(SUM(F74:Y74)) -> 0 | AD74: =IFERROR(E72/100,"") -> 0 | AE74: =IF(E72=AD74*100,"OK","ERRO") -> OK
A75: =IF(D75>0,"F","") ->  | B75: REVESTIMENTO DE PISO | D75: =Orçamento!X657 -> 0 | E75: =Orçamento!AA657 -> 0 | F75: =ROUND(F77*$D$75,2) -> 0 | J75: =ROUND(J77*$D$75,2) -> 0 | N75: =ROUND(N77*$D$75,2) -> 0 | R75: =ROUND(R77*$D$75,2) -> 0 | V75: =ROUND(V77*$D$75,2) -> 0 | Z75: =ROUND(Z77*$D$75,2) -> 0 | AD75: =SUM(F75:AC75) -> 0 | AE75: =IF(D75=AD75,"OK","ERRO") -> OK
A76: =IF(A75="F",A75,"") -> 
A77: =IF(A76="F",A76,"") ->  | N77: 0.15 | V77: 0.35 | Z77: =100%-(SUM(F77:Y77)) -> 0.5 | AD77: =IFERROR(E75/100,"") -> 0 | AE77: =IF(E75=AD77*100,"OK","ERRO") -> OK
A78: =IF(D78>0,"F","") ->  | B78: FERRAGENS | D78: =Orçamento!X658 -> 0 | E78: =Orçamento!AA658 -> 0 | F78: =ROUND(F80*$D$78,2) -> 0 | J78: =ROUND(J80*$D$78,2) -> 0 | N78: =ROUND(N80*$D$78,2) -> 0 | R78: =ROUND(R80*$D$78,2) -> 0 | V78: =ROUND(V80*$D$78,2) -> 0 | Z78: =ROUND(Z80*$D$78,2) -> 0 | AD78: =SUM(F78:AC78) -> 0 | AE78: =IF(D78=AD78,"OK","ERRO") -> OK
A79: =IF(A78="F",A78,"") -> 
A80: =IF(A79="F",A79,"") ->  | Z80: =100%-(SUM(F80:Y80)) -> 1 | AD80: =IFERROR(E78/100,"") -> 0 | AE80: =IF(E78=AD80*100,"OK","ERRO") -> OK
A81: =IF(D81>0,"F","") ->  | B81: MARCENARIA | D81: =Orçamento!X659 -> 0 | E81: =Orçamento!AA659 -> 0 | F81: =ROUND(F83*$D$81,2) -> 0 | J81: =ROUND(J83*$D$81,2) -> 0 | N81: =ROUND(N83*$D$81,2) -> 0 | R81: =ROUND(R83*$D$81,2) -> 0 | V81: =ROUND(V83*$D$81,2) -> 0 | Z81: =ROUND(Z83*$D$81,2) -> 0 | AD81: =SUM(F81:AC81) -> 0 | AE81: =IF(D81=AD81,"OK","ERRO") -> OK
A82: =IF(A81="F",A81,"") -> 
A83: =IF(A82="F",A82,"") ->  | Z83: =100%-(SUM(F83:Y83)) -> 1 | AD83: =IFERROR(E81/100,"") -> 0 | AE83: =IF(E81=AD83*100,"OK","ERRO") -> OK
A84: =IF(D84>0,"F","") ->  | B84: ADMINISTRAÇÃO - MENSALISTAS | D84: =Orçamento!X660 -> 0 | E84: =Orçamento!AA660 -> 0 | F84: =ROUND(F86*$D$84,2) -> 0 | J84: =ROUND(J86*$D$84,2) -> 0 | N84: =ROUND(N86*$D$84,2) -> 0 | R84: =ROUND(R86*$D$84,2) -> 0 | V84: =ROUND(V86*$D$84,2) -> 0 | Z84: =ROUND(Z86*$D$84,2) -> 0 | AD84: =SUM(F84:AC84) -> 0 | AE84: =IF(D84=AD84,"OK","ERRO") -> OK
A85: =IF(A84="F",A84,"") -> 
A86: =IF(A85="F",A85,"") ->  | F86: 0.17 | J86: 0.17 | N86: 0.17 | R86: 0.17 | V86: 0.17 | Z86: =100%-(SUM(F86:Y86)) -> 0.15 | AD86: =IFERROR(E84/100,"") -> 0 | AE86: =IF(E84=AD86*100,"OK","ERRO") -> OK
A87: =IF(D87>0,"F","") ->  | B87: PINTURA | D87: =Orçamento!X661 -> 0 | E87: =Orçamento!AA661 -> 0 | F87: =ROUND(F89*$D$87,2) -> 0 | J87: =ROUND(J89*$D$87,2) -> 0 | N87: =ROUND(N89*$D$87,2) -> 0 | R87: =ROUND(R89*$D$87,2) -> 0 | V87: =ROUND(V89*$D$87,2) -> 0 | Z87: =ROUND(Z89*$D$87,2) -> 0 | AD87: =SUM(F87:AC87) -> 0 | AE87: =IF(D87=AD87,"OK","ERRO") -> OK
A88: =IF(A87="F",A87,"") -> 
A89: =IF(A88="F",A88,"") ->  | V89: 0.31 | Z89: =100%-(SUM(F89:Y89)) -> 0.69 | AD89: =IFERROR(E87/100,"") -> 0 | AE89: =IF(E87=AD89*100,"OK","ERRO") -> OK
A90: =IF(D90>0,"F","") ->  | B90: DIVERSOS | D90: =Orçamento!X662 -> 0 | E90: =Orçamento!AA662 -> 0 | F90: =ROUND(F92*$D$90,2) -> 0 | J90: =ROUND(J92*$D$90,2) -> 0 | N90: =ROUND(N92*$D$90,2) -> 0 | R90: =ROUND(R92*$D$90,2) -> 0 | V90: =ROUND(V92*$D$90,2) -> 0 | Z90: =ROUND(Z92*$D$90,2) -> 0 | AD90: =SUM(F90:AC90) -> 0 | AE90: =IF(D90=AD90,"OK","ERRO") -> OK
A91: =IF(A90="F",A90,"") -> 
A92: =IF(A91="F",A91,"") ->  | F92: 0.166 | J92: 0.16 | N92: 0.17 | R92: 0.166 | V92: 0.167 | Z92: =100%-(SUM(F92:Y92)) -> 0.171 | AD92: =IFERROR(E90/100,"") -> 0 | AE92: =IF(E90=AD92*100,"OK","ERRO") -> OK
A93: F | B93: CUSTO DO ORÇAMENTO | D93: =SUM(D15:D92) -> 0 | E93: =SUM(E15:E92) -> 0 | F93: =F15+F18+F21+F24+F27+F30+F33+F36+F39+F42+F45+F48+F51+F54+F57+F60+F63+F66+F69+F72+F75+F78+F81+F84+F87+F90 -> 0 | J93: =J15+J18+J21+J24+J27+J30+J33+J36+J39+J42+J45+J48+J51+J54+J57+J60+J63+J66+J69+J72+J75+J78+J81+J84+J87+J90 -> 0 | N93: =N15+N18+N21+N24+N27+N30+N33+N36+N39+N42+N45+N48+N51+N54+N57+N60+N63+N66+N69+N72+N75+N78+N81+N84+N87+N90 -> 0 | R93: =R15+R18+R21+R24+R27+R30+R33+R36+R39+R42+R45+R48+R51+R54+R57+R60+R63+R66+R69+R72+R75+R78+R81+R84+R87+R90 -> 0 | V93: =V15+V18+V21+V24+V27+V30+V33+V36+V39+V42+V45+V48+V51+V54+V57+V60+V63+V66+V69+V72+V75+V78+V81+V84+V87+V90 -> 0 | Z93: =Z15+Z18+Z21+Z24+Z27+Z30+Z33+Z36+Z39+Z42+Z45+Z48+Z51+Z54+Z57+Z60+Z63+Z66+Z69+Z72+Z75+Z78+Z81+Z84+Z87+Z90 -> 0 | AD93: =AD15+AD18+AD21+AD24+AD27+AD30+AD33+AD36+AD39+AD42+AD45+AD48+AD51+AD54+AD57+AD60+AD63+AD66+AD69+AD72+AD75+AD78+AD81+AD84+AD87+AD90 -> 0
A94: F | B94: PERCENTUAIS: | F94: =IFERROR(F93/$D$93,"") ->  | J94: =IFERROR(J93/$D$93,"") ->  | N94: =IFERROR(N93/$D$93,"") ->  | R94: =IFERROR(R93/$D$93,"") ->  | V94: =IFERROR(V93/$D$93,"") ->  | Z94: =IFERROR(Z93/$D$93,"") ->  | AD94: =SUM(F94:AC94) -> 0
A95: F | B95: TOTAIS ACUMULADOS: | F95: =F93 -> 0 | J95: =J93+F95 -> 0 | N95: =N93+J95 -> 0 | R95: =R93+N95 -> 0 | V95: =V93+R95 -> 0 | Z95: =Z93+V95 -> 0
A96: F | B96: PERCENTUAIS ACUMULADOS: | F96: =F94 ->  | J96: =J94+F96 ->  | N96: =N94+J96 ->  | R96: =R94+N96 ->  | V96: =V94+R96 ->  | Z96: =Z94+V96 -> 
A97: F
A98: F | B98: OBSERVAÇÕES:
A99: F | B99: Os pagamentos somente poderão ser efetuados mediante medição e atesto pelos técnicos da Secretaria da Educação.

Sheet Composição BDI
A3: UNIDADE ESCOLAR
A4: =Orçamento!$O$4 -> COLÉGIO ESTADUAL JUSCELINO KUBITSCHEK DE OLIVEIRA
A6: OBRA
A7: =Orçamento!$O$7 -> REFORMA E IMPLANTAÇÃO
A9: ENDEREÇO
A10: =Orçamento!$R$10 -> AREA ESPECIAL S/N, JARDIM SANTA LUCIA, CEP:72910-001
A12: CIDADE
A13: =Orçamento!$X$7 -> ÁGUAS LINDAS DE GOIÁS
A15: CRE
A16: =Orçamento!$O$10 -> ÁGUAS LINDAS
A18: DETALHAMENTO DA COMPOSIÇÃO DE BDI
A19: COMPOSIÇÃO BDI PARA OBRAS CIVIS | F19: BDI CONSTRUÇÃO E REFORMA
A20: DESCRIÇÃO | B20: COEF. | C20: TAXA % (a.m) | D20: % no preço de venda | F20: Situação | G20: 1º Quartil | H20: Médio | I20: 3º Quartil
A21: 1) COFINS | B21: 1 | C21: 0.03 | D21: =C21 -> 0.03 | F21: =IF(OR(C21<G21,C21>I21),"FORA DO INTERVALO","OK") -> OK | G21: 0.03 | H21: 0.03 | I21: 0.03
A22: 2) PIS | B22: 1 | C22: 0.0065 | D22: =C22 -> 0.0065 | F22: =IF(OR(C22<G22,C22>I22),"FORA DO INTERVALO","OK") -> OK | G22: 0.0065 | H22: 0.0065 | I22: 0.0065
A23: 3) ISSQN | B23: 1 | C23: 0.03 | D23: =C23*B23 -> 0.03 | F23: OK | G23: 0.02 | H23: 0.035 | I23: 0.05
A24: 4) CPRB | B24: 1 | C24: 0.045 | D24: =C24 -> 0.045 | F24: OK | G24: 0.045 | H24: 0.045 | I24: 0.045
A25: 5) Administração Central | B25: 1 | C25: 0.035 | D25: 0.035 | F25: OK | G25: 0.03 | H25: 0.04 | I25: 0.055
A26: 6) Despesas Financeiras | B26: 1 | C26: 0.0056 | D26: 0.0056 | F26: FORA DO INTERVALO | G26: 0.0059 | H26: 0.0123 | I26: 0.0139
A27: 7) Seguros + Garantias | B27: 1 | C27: 0.0012 | D27: 0.0012 | F27: FORA DO INTERVALO | G27: 0.008 | H27: 0.008 | I27: 0.01
A28: 8) Risco | B28: 1 | C28: 0.0097 | D28: 0.0097 | F28: OK | G28: 0.0097 | H28: 0.0127 | I28: 0.0127
A29: 9) Lucro | B29: 1 | C29: 0.0681 | D29: 0.0681 | F29: OK | G29: 0.0616 | H29: 0.074 | I29: 0.0896
A30: BDI - FINAL | D30: =(((1+D25+D27+D28)*(1+D26)*(1+D29))/(1-(D21+D22+D23+D24))-1) -> 0.2643575627 | F30: =IF(OR(D30<G30,D30>I30),"FORA DO INTERVALO","OK") -> FORA DO INTERVALO | G30: 0.2034 | H30: 0.2212 | I30: 0.25
A32: Notas:
A33: (1) e (2) Alíquota definida por lei.
A34: (3) Alíquota e base de cálculo definidas pela legislação municipal.
A35: (4) Alíquota definida pelas leis 12.546/11, 12844/13 e 13.161/15 (CPRB – contribuição previdenciária sobre a receita bruta).
A36: (5) Valores definidos a partir dos limites no Acórdão nº 2.622/2013 - TCU – Plenário. Valores entre o 1º e 3º quartis.
A37: (6) Valor calculado pela expressão matemática do acórdão 2.369/2011 – TCU – Plenário e disponibilizado pela AGETOP em dezembro de 2018. (Foi utilizado para o cálculo a média da Taxa SELIC no período de 11/2017 a 10/2018)
A39: (7) Valores definidos pela AGETOP a partir dos limites no Acórdão nº 2.622/2013 - TCU – Plenário. Valores médios. Observação da AGETOP: (Seguros contra erros de execução, incêndio e explosão, danos da natureza (vendaval, destelhamento, alagamento, inundação, desmoronamento, geadas etc.), emprego de material defeituoso ou inadequado, roubo e/ou furto qualificado, quebra de equipamentos, desmoronamento de estrutura, nas modalidades de Obras Civis em Construção (OCC); Instalação e Montagem (IM); e Obras Civis em Construção e Instalação e Montagem (OCC/IM). Bem como coberturas adicionais para ampliação dessas coberturas básicas, como: cobertura de responsabilidade civil geral, cobertura de responsabilidade civil cruzada, cobertura de despesas extraordinárias, cobertura de tumultos, cobertura de desentulho do local, cobertura de riscos do fabricante, dentre outras, incluindo o seguro de vida em grupo regido pela convenção coletiva dos trabalhadores na indústria da construção civil). A partir de 24/02/2015 por intermédio da Portaria 449/2015 a Presidência da AGETOP, na pessoa do Senhor Jayme Eduardo Rincon, determinou a exclusão dos valores referentes aos Seguros de Risco de Engenharia e Responsabilidade Civil do Profissional na composição do cálculo do B.D.I..
A40: (8) Valores definidos a partir dos limites no Acórdão nº 2.622/2013 - TCU – Plenário. Valores entre 1º e 3° quartis.
A41: (9) Valores definidos a partir dos limites definidos no Acórdão nº 2.622/2013 - TCU – Plenário. Valores adotados e praticados no mercado ( “ ex ante ” ) ou aqueles entre os 1º e 3º quartis.
A43: (*) A fórmula para estipulação da taxa de BDI estimado adotado é a mesma que foi aplicada para a obtenção das tabelas contidas no Acórdão n. 2.622/2013 – TCUPlenário
A45: Obs.: Para obras com valores superiores a R$ 20.000.000,00 sugere-se recalcular o BDI, dimensionando as taxas de administração central e lucro para patamares inferiores ao estipulado acima.

Sheet Relatório CENTRAL
B3: UNIDADE ESCOLAR | D3: CIDADE
B4: =Orçamento!$O$4 -> COLÉGIO ESTADUAL JUSCELINO KUBITSCHEK DE OLIVEIRA | D4: =Orçamento!$X$7 -> ÁGUAS LINDAS DE GOIÁS
B6: OBRA | D6: CRE
B7: =Orçamento!$O$7 -> REFORMA E IMPLANTAÇÃO | D7: =Orçamento!$O$10 -> ÁGUAS LINDAS
B9: ENDEREÇO | D9: DATA
A10: FILTRO | B10: =Orçamento!$R$10 -> AREA ESPECIAL S/N, JARDIM SANTA LUCIA, CEP:72910-001 | D10: =Orçamento!$S$7 -> 2020-07-07
B12: RELATÓRIO CENTRAL
A13: ↓ | B13: CÓDIGO | C13: ETAPA | D13: PREÇO (R$) C/ BDI | E13: PARTIC ( % )
A14: =IF(D14>0,"F","") ->  | B14: =Orçamento!O637 -> a. | C14: =Orçamento!P637 -> SERVIÇOS PRELIMINARES | D14: =Orçamento!X637 -> 0 | E14: =Orçamento!AA637 -> 0 | F14: 6 | G14: 7
A15: =IF(D15>0,"F","") ->  | B15: =Orçamento!O638 -> b. | C15: =Orçamento!P638 -> TRANSPORTES | D15: =Orçamento!X638 -> 0 | E15: =Orçamento!AA638 -> 0 | F15: 0 | G15: 1
B16: =Orçamento!O639 -> c. | C16: =Orçamento!P639 -> SERVIÇO EM TERRA | D16: =Orçamento!X639 -> 0 | E16: =Orçamento!AA639 -> 0 | F16: 6 | G16: 7
B17: =Orçamento!O640 -> d. | C17: =Orçamento!P640 -> FUNDAÇÕES E SONDAGENS | D17: =Orçamento!X640 -> 0 | E17: =Orçamento!AA640 -> 0 | F17: 2 | G17: 9
B18: =Orçamento!O641 -> e. | C18: =Orçamento!P641 -> ESTRUTURA | D18: =Orçamento!X641 -> 0 | E18: =Orçamento!AA641 -> 0 | F18: 0 | G18: 7
B19: =Orçamento!O642 -> f. | C19: =Orçamento!P642 -> INSTALAÇÕES ELÉTRICAS | D19: =Orçamento!X642 -> 0 | E19: =Orçamento!AA642 -> 0 | F19: 0 | G19: 7
B20: =Orçamento!O643 -> g. | C20: =Orçamento!P643 -> INSTALAÇÕES HIDROSSANITÁRIAS | D20: =Orçamento!X643 -> 0 | E20: =Orçamento!AA643 -> 0 | F20: 6 | G20: 4
B21: =Orçamento!O644 -> h | C21: =Orçamento!P644 -> INSTALAÇÕES ESPECIAIS | D21: =Orçamento!X644 -> 0 | E21: =Orçamento!AA644 -> 0 | F21: 8 | G21: 0
B22: =Orçamento!O645 -> i. | C22: =Orçamento!P645 -> ALVENARIAS E DIVISÓRIAS | D22: =Orçamento!X645 -> 0 | E22: =Orçamento!AA645 -> 0 | F22: 2 | G22: 1
B23: =Orçamento!O646 -> j. | C23: =Orçamento!P646 -> ALVENARIA AUTO-PORTANTE | D23: =Orçamento!X646 -> 0 | E23: =Orçamento!AA646 -> 0
B24: =Orçamento!O647 -> k. | C24: =Orçamento!P647 -> IMPERMEABILIZAÇÃO | D24: =Orçamento!X647 -> 0 | E24: =Orçamento!AA647 -> 0 | F24: 7 | G24: 8
B25: =Orçamento!O648 -> l. | C25: =Orçamento!P648 -> ISOLAMENTO TÉRMICO E ACÚSTICO | D25: =Orçamento!X648 -> 0 | E25: =Orçamento!AA648 -> 0
B26: =Orçamento!O649 -> m. | C26: =Orçamento!P649 -> ESTRUTURA DE MADEIRA | D26: =Orçamento!X649 -> 0 | E26: =Orçamento!AA649 -> 0
B27: =Orçamento!O650 -> n. | C27: =Orçamento!P650 -> ESTRUTURAS METÁLICAS | D27: =Orçamento!X650 -> 0 | E27: =Orçamento!AA650 -> 0 | F27: 2 | G27: 0
B28: =Orçamento!O651 -> o. | C28: =Orçamento!P651 -> COBERTURAS | D28: =Orçamento!X651 -> 0 | E28: =Orçamento!AA651 -> 0 | F28: 6 | G28: 3
B29: =Orçamento!O652 -> p. | C29: =Orçamento!P652 -> ESQUADRIAS DE MADEIRA | D29: =Orçamento!X652 -> 0 | E29: =Orçamento!AA652 -> 0
B30: =Orçamento!O653 -> q. | C30: =Orçamento!P653 -> ESQUADRIAS METÁLICAS | D30: =Orçamento!X653 -> 0 | E30: =Orçamento!AA653 -> 0 | F30: 4 | G30: 0
B31: =Orçamento!O654 -> r. | C31: =Orçamento!P654 -> VIDROS | D31: =Orçamento!X654 -> 0 | E31: =Orçamento!AA654 -> 0 | F31: 5 | G31: 5
B32: =Orçamento!O655 -> s. | C32: =Orçamento!P655 -> REVESTIMENTO DE PAREDE | D32: =Orçamento!X655 -> 0 | E32: =Orçamento!AA655 -> 0 | F32: 2 | G32: 1
B33: =Orçamento!O656 -> t. | C33: =Orçamento!P656 -> FORROS | D33: =Orçamento!X656 -> 0 | E33: =Orçamento!AA656 -> 0 | F33: 3 | G33: 6
B34: =Orçamento!O657 -> u. | C34: =Orçamento!P657 -> REVESTIMENTO DE PISO | D34: =Orçamento!X657 -> 0 | E34: =Orçamento!AA657 -> 0 | F34: 8 | G34: 0
B35: =Orçamento!O658 -> v. | C35: =Orçamento!P658 -> FERRAGENS | D35: =Orçamento!X658 -> 0 | E35: =Orçamento!AA658 -> 0 | F35: 3 | G35: 5
B36: =Orçamento!O659 -> w. | C36: =Orçamento!P659 -> MARCENARIA | D36: =Orçamento!X659 -> 0 | E36: =Orçamento!AA659 -> 0 | F36: 6 | G36: 2
B37: =Orçamento!O660 -> x. | C37: =Orçamento!P660 -> ADMINISTRAÇÃO | D37: =Orçamento!X660 -> 0 | E37: =Orçamento!AA660 -> 0 | F37: 5 | G37: 9
B38: =Orçamento!O661 -> y. | C38: =Orçamento!P661 -> PINTURA | D38: =Orçamento!X661 -> 0 | E38: =Orçamento!AA661 -> 0 | F38: 1 | G38: 1
B39: =Orçamento!O662 -> z. | C39: =Orçamento!P662 -> DIVERSOS | D39: =Orçamento!X662 -> 0 | E39: =Orçamento!AA662 -> 0 | F39: 9 | G39: 7
A40: F | B40: TOTAL GERAL DO ORÇAMENTO (R$) C/BDI | D40: =SUM(D14:D39) -> 0 | E40: =SUM(E14:E39) -> 0 | F40: =SUM(F14:F39) -> 91 | G40: =SUM(G14:G39) -> 90

Sheet Parc Maior Relev
B3: UNIDADE ESCOLAR | E3: CÓDIGO INEP
B4: =Orçamento!$O$4 -> COLÉGIO ESTADUAL JUSCELINO KUBITSCHEK DE OLIVEIRA | E4: =Orçamento!$X$4 -> 52075583
B6: OBRA | E6: CIDADE
B7: =Orçamento!$O$7 -> REFORMA E IMPLANTAÇÃO | E7: =Orçamento!$X$7 -> ÁGUAS LINDAS DE GOIÁS
B9: CRE | E9: ÁREA TOTAL CONSTRUÍDA (M²)
B10: =Orçamento!$O$10 -> ÁGUAS LINDAS | E10: =Orçamento!$S$13 -> 3074.09
A11: FILTRO
B12: PARCELA DE MAIOR RELEVÂNCIA
B13: CÓDIGO | C13: SERVIÇO | D13: DESCRIÇÃO | E13: UNID | F13: QUANT | G13: PARC. MAIOR RELEV (100%)
A14: =IF(F14>0,"F","") ->  | B14: 70000 | C14: INSTALAÇÕES ELÉTRICAS | D14: SUBESTAÇÃO | E14: KVA | F14: =SUMIF(Orçamento!$R$20:$R$618,'Parc Maior Relev'!D14,Orçamento!$T$20:$T$618) -> 0 | G14: =F14 -> 0
B15: CÓDIGO | C15: SERVIÇO | D15: DESCRIÇÃO | E15: UNID | F15: QUANT | G15: PARC. MAIOR RELEV (50%)
B16: =Somatório!B22 -> f. | C16: INSTALAÇÕES ELÉTRICAS | D16: INSTALAÇÕES ELÉTRICAS | E16: KVA | F16: 62.96 | G16: =F16*0.5 -> 31.48
B17: =Somatório!B31 -> o. | C17: COBERTURAS | D17: TELHA CERÂMICA | E17: M2 | F17: =Orçamento!V279+Orçamento!V281 -> 0 | G17: 0
B18: 160000 | C18: COBERTURAS | D18: TELHA FIBROCIMENTO | E18: M2 | F18: =SUMIF(Orçamento!$R$20:$R$618,'Parc Maior Relev'!D18,Orçamento!$T$20:$T$618) -> 0 | G18: 0
B19: 160000 | C19: COBERTURAS | D19: TELHA METÁLICA | E19: M2 | F19: =SUMIF(Orçamento!$R$20:$R$618,'Parc Maior Relev'!D19,Orçamento!$T$20:$T$618) -> 0 | G19: 0
B20: 200000 | C20: REVESTIMENTO DE PAREDE | D20: REBOCO | E20: M2 | F20: =SUMIF(Orçamento!$R$20:$R$618,'Parc Maior Relev'!D20,Orçamento!$T$20:$T$618) -> 0 | G20: 0
B21: 200000 | C21: REVESTIMENTO DE PAREDE | D21: REVESTIMENTO CERÂMICO | E21: M2 | F21: =SUMIF(Orçamento!$R$20:$R$618,'Parc Maior Relev'!D21,Orçamento!$T$20:$T$618) -> 0 | G21: 0
B22: 210000 | C22: FORROS | D22: FORRO DE GESSO | E22: M2 | F22: =SUMIF(Orçamento!$R$20:$R$618,'Parc Maior Relev'!D22,Orçamento!$T$20:$T$618) -> 0 | G22: 0
B23: 210000 | C23: FORROS | D23: FORRO PVC | E23: M2 | F23: =SUMIF(Orçamento!$R$20:$R$618,'Parc Maior Relev'!D23,Orçamento!$T$20:$T$618) -> 0 | G23: 0
B24: 210000 | C24: FORROS | D24: FORRO ACARTONADO | E24: M2 | F24: =SUMIF(Orçamento!$R$20:$R$618,'Parc Maior Relev'!D24,Orçamento!$T$20:$T$618) -> 0 | G24: 0
B25: =Somatório!B37 -> u. | C25: REVESTIMENTO DE PISO | D25: PISO GRANITINA | E25: M2 | F25: =Orçamento!V415+Orçamento!V536 -> 0 | G25: 0
B26: 220000 | C26: REVESTIMENTO DE PISO | D26: PISO LAMINADO | E26: M2 | F26: =SUMIF(Orçamento!$R$20:$R$618,'Parc Maior Relev'!D26,Orçamento!$T$20:$T$618) -> 0 | G26: 0
B27: 220000 | C27: REVESTIMENTO DE PISO | D27: PISO CONCRETO DESEMPENADO | E27: M2 | F27: =SUMIF(Orçamento!$R$20:$R$618,'Parc Maior Relev'!D27,Orçamento!$T$20:$T$618) -> 0 | G27: 0
B28: 220000 | C28: REVESTIMENTO DE PISO | D28: PISO CERÂMICO | E28: M2 | F28: =SUMIF(Orçamento!$R$20:$R$618,'Parc Maior Relev'!D28,Orçamento!$T$20:$T$618) -> 0 | G28: 0
B29: 260000 | C29: PINTURA | D29: PINTURA | E29: M2 | F29: =SUMIF(Orçamento!$R$20:$R$618,'Parc Maior Relev'!D29,Orçamento!$T$20:$T$618) -> 0 | G29: 0
A30: F
A31: F | B31: (*) Para os fins do inciso I dp § 1º do Art. 30 da Lei Federal 8.666/93, são consideradas parcelas de maior relevância técnica as execuções apresentadas
A32: F

Sheet Composições
A4: UNIDADE ESCOLAR | H4: CÓDIGO INEP
A5: =Orçamento!$O$4 -> COLÉGIO ESTADUAL JUSCELINO KUBITSCHEK DE OLIVEIRA | H5: =Orçamento!$X$4 -> 52075583
A7: OBRA | H7: CIDADE
A8: =Orçamento!$O$7 -> REFORMA E IMPLANTAÇÃO | H8: =Orçamento!$X$7 -> ÁGUAS LINDAS DE GOIÁS
A10: CRE | D10: ENDEREÇO | H10: REFERÊNCIA AGETOP
A11: =Orçamento!$O$10 -> ÁGUAS LINDAS | D11: =Orçamento!$R$10 -> AREA ESPECIAL S/N, JARDIM SANTA LUCIA, CEP:72910-001 | H11: =Orçamento!$X$10 -> ABR/19 | I11: =Orçamento!$Y$10 -> DESONERADA
A13: DATA | D13: ÁREA TOTAL CONSTRUÍDA (M²) | H13: REFERÊNCIA SINAPI
A14: =Orçamento!$S$7 -> 2020-07-07 | D14: =Orçamento!$S$13 -> 3074.09 | H14: =Orçamento!$X$13 -> SET/19 | I14: =Orçamento!$Y$13 -> DESONERADA
A16: COMPOSIÇÕES DE CUSTOS UNITÁRIOS - SEE-GO
A17: 10 | B17: FONTE | C17: CÓDIGO | D17: DESCRIÇÃO | E17: UNIDADE | F17: COEFIC. | G17: CUSTO UNITÁRIO | I17: CUSTO TOTAL (A) + (B) + (C) + (D) + (E)
G18: DESONERADO | H18: NÃO DESONER. | I18: DESONERADO | J18: NÃO DESONER.
B19: COMPOSIÇÃO | C19: COMP 010_SEE | D19: DEMOLIÇÃO DE GRADE/GRELHA/GUARDA CORPO - METÁLICO | E19: M2 | G19: - | H19: - | I19: 3.82 | J19: 4.42
G20: 0 | H20: 0 | I20: 0 | J20: 0
G21: 0 | H21: 0 | I21: 0 | J21: 0
G22: 0 | H22: 0 | I22: 0 | J22: 0
B23: MÃO DE OBRA (B) - TOTAL | I23: 0 | J23: 0
B24: AGETOP | C24: 20106 | D24: RETIRADA DE JANELAS OU PORTAIS C/ TRANSP. ATÉ CB. E CARGA | E24: m2 | F24: 1 | G24: 3.82 | H24: 4.42 | I24: 3.82 | J24: 4.42
G25: 0 | H25: 0 | I25: 0 | J25: 0
G26: 0 | H26: 0 | I26: 0 | J26: 0
B27: MATERIAL (C) - TOTAL | I27: 3.82 | J27: 4.42
A29: 385 | B29: FONTE | C29: CÓDIGO | D29: DESCRIÇÃO | E29: UNIDADE | F29: COEFIC. | G29: CUSTO UNITÁRIO | I29: CUSTO TOTAL (A) + (B) + (C) + (D) + (E)
G30: DESONERADO | H30: NÃO DESONER. | I30: DESONERADO | J30: NÃO DESONER.
B31: COMPOSIÇÃO | C31: COMP 385_SEE | D31: DEMOLIÇÃO POSTE DE CONCRETO/METALICA ENTRE 10 E 15 METROS C/ REAPROVEITAMENTO C/ TRANSPORTE ATE CAÇAMBA E CARGA | E31: UN | I31: 138.2 | J31: 139.51
B32: AGETOP_I | C32: 8 | D32: AJUDANTE | E32: h | F32: 1 | G32: 8.2 | H32: 9.51 | I32: 8.2 | J32: 9.51
B33: MÃO DE OBRA (B) - TOTAL | I33: 8.2 | J33: 9.51
B34: AGETOP | C34: 72080 | D34: POSTE/TRAFO - CAMINHÃO MUNCK 12 TON. (MÍNIMO 4H/DIA) | E34: H | F34: 1 | G34: 130 | H34: 130 | I34: 130 | J34: 130
B35: MATERIAL (C) - TOTAL | I35: 130 | J35: 130
A37: 387 | B37: FONTE | C37: CÓDIGO | D37: DESCRIÇÃO | E37: UNIDADE | F37: COEFIC. | G37: CUSTO UNITÁRIO | I37: CUSTO TOTAL (A) + (B) + (C) + (D) + (E)
G38: DESONERADO | H38: NÃO DESONER. | I38: DESONERADO | J38: NÃO DESONER.
B39: COMPOSIÇÃO | C39: COMP 387_SEE | D39: LÂMPADA LED TUBULAR 18W | E39: UN | I39: 22.28 | J39: 22.33
B40: AGETOP_I | C40: 8 | D40: AJUDANTE | E40: h | F40: 0.015 | G40: 8.2 | H40: 9.51 | I40: 0.12 | J40: 0.14
B41: AGETOP_I | C41: 12 | D41: ELETRICISTA | E41: h | F41: 0.015 | G41: 13.4 | H41: 15.53 | I41: 0.2 | J41: 0.23
B42: MÃO DE OBRA (B) - TOTAL | I42: 0.32 | J42: 0.37
B43: COTAÇÃO | C43: COT 195_SEE | D43: LÂMPADA LED TUBULAR 18W | E43: UN | F43: 1 | G43: 21.96 | H43: 21.96 | I43: 21.96 | J43: 21.96
B44: MATERIAL (C) - TOTAL | I44: 21.96 | J44: 21.96
A46: 40 | B46: FONTE | C46: CÓDIGO | D46: DESCRIÇÃO | E46: UNIDADE | F46: COEFIC. | G46: CUSTO UNITÁRIO | I46: CUSTO TOTAL (A) + (B) + (C) + (D) + (E)
G47: DESONERADO | H47: NÃO DESONER. | I47: DESONERADO | J47: NÃO DESONER.
B48: COMPOSIÇÃO | C48: COMP 040_SEE | D48: CONJUNTO MOTOR-BOMBA ELÉTRICA TRIFÁSICO 380/220 V PARA VZ= 24,33 M³/H, HM= 46,24 M POTÊNCIA= 7,5 CV | E48: UN | I48: 3965.47 | J48: 3992.99
B49: AGETOP_I | C49: 8 | D49: AJUDANTE | E49: h | F49: 8 | G49: 8.2 | H49: 9.51 | I49: 65.6 | J49: 76.08
B50: AGETOP_I | C50: 11 | D50: ENCANADOR | E50: h | F50: 8 | G50: 13.4 | H50: 15.53 | I50: 107.2 | J50: 124.24
B51: MÃO DE OBRA (B) - TOTAL | I51: 172.8 | J51: 200.32
B52: COTAÇÃO | C52: COT 008_SEE | D52: CONJUNTO MOTOR-BOMBA ELÉTRICA TRIFÁSICO 380/220 V PARA VZ= 24,33 M³/H, HM= 46,24 M POTÊNCIA= 7,5 CV | E52: UN | F52: 1 | G52: 3792.666667 | H52: 3792.666667 | I52: 3792.67 | J52: 3792.67
B53: MATERIAL (C) - TOTAL | I53: 3792.67 | J53: 3792.67
A55: 17 | B55: FONTE | C55: CÓDIGO | D55: DESCRIÇÃO | E55: UNIDADE | F55: COEFIC. | G55: CUSTO UNITÁRIO | I55: CUSTO TOTAL (A) + (B) + (C) + (D) + (E)
G56: DESONERADO | H56: NÃO DESONER. | I56: DESONERADO | J56: NÃO DESONER.
B57: COMPOSIÇÃO | C57: COMP 017_SEE | D57: REDUCAO GIRATÓRIA TIPO STORZ LATAO P/ INST. PREDIAL COMBATE A INCENDIO ENGATE RAPIDO 2.1/2" X 1.1/2" | E57: UN | G57: - | H57: - | I57: 99.14 | J57: 99.69
B58: AGETOP_I | C58: 8 | D58: AJUDANTE | E58: h | F58: 0.16 | G58: 8.2 | H58: 9.51 | I58: 1.31 | J58: 1.52
B59: AGETOP_I | C59: 11 | D59: ENCANADOR | E59: h | F59: 0.16 | G59: 13.4 | H59: 15.53 | I59: 2.14 | J59: 2.48
B60: MÃO DE OBRA (B) - TOTAL | I60: 3.45 | J60: 4
B61: SINAPI_I | C61: 20972 | D61: REDUCAO FIXA TIPO STORZ, ENGATE RAPIDO 2.1/2" X 1.1/2", EM LATAO, PARA INSTALACAO PREDIAL COMBATE A INCENDIO PREDIAL | E61: UN | F61: 1 | G61: 95.69 | H61: 95.69 | I61: 95.69 | J61: 95.69
B62: MATERIAL (C) - TOTAL | I62: 95.69 | J62: 95.69
A64: 18 | B64: FONTE | C64: CÓDIGO | D64: DESCRIÇÃO | E64: UNIDADE | F64: COEFIC. | G64: CUSTO UNITÁRIO | I64: CUSTO TOTAL (A) + (B) + (C) + (D) + (E)
G65: DESONERADO | H65: NÃO DESONER. | I65: DESONERADO | J65: NÃO DESONER.
B66: COMPOSIÇÃO | C66: COMP 018_SEE | D66: CHAVE DUPLA P/ CONEXÕES TIPO STORZ EM LATÃO ENGATE RÁPIDO 1 1/2" X 2 1/2" | E66: UN | G66: - | H66: - | I66: 14.76 | J66: 15.08
B67: AGETOP_I | C67: 11 | D67: ENCANADOR | E67: h | F67: 0.15 | G67: 13.4 | H67: 15.53 | I67: 2.01 | J67: 2.33
B68: MÃO DE OBRA (B) - TOTAL | I68: 2.01 | J68: 2.33
B69: SINAPI_I | C69: 20971 | D69: CHAVE DUPLA PARA CONEXOES TIPO STORZ, ENGATE RAPIDO 1 1/2" X 2 1/2", EM LATAO, PARA INSTALACAO PREDIAL COMBATE A INCENDIO | E69: UN | F69: 1 | G69: 12.75 | H69: 12.75 | I69: 12.75 | J69: 12.75
B70: MATERIAL (C) - TOTAL | I70: 12.75 | J70: 12.75
A72: 87 | B72: FONTE | C72: CÓDIGO | D72: DESCRIÇÃO | E72: UNIDADE | F72: COEFIC. | G72: CUSTO UNITÁRIO | I72: CUSTO TOTAL (A) + (B) + (C) + (D) + (E)
G73: DESONERADO | H73: NÃO DESONER. | I73: DESONERADO | J73: NÃO DESONER.
B74: COMPOSIÇÃO | C74: COMP 087_SEE | D74: REGISTRO DE GAVETA COM HASTE ASCENDENTE DE BRONZE 2 1/2" | E74: UN | I74: 257.3 | J74: 261.26
B75: AGETOP_I | C75: 8 | D75: AJUDANTE | E75: h | F75: 1.15 | G75: 8.2 | H75: 9.51 | I75: 9.43 | J75: 10.94
B76: AGETOP_I | C76: 11 | D76: ENCANADOR | E76: h | F76: 1.15 | G76: 13.4 | H76: 15.53 | I76: 15.41 | J76: 17.86
B77: MÃO DE OBRA (B) - TOTAL | I77: 24.84 | J77: 28.8
B78: AGETOP_I | C78: H689 | D78: FITA VEDAROSCA 12 MM | E78: m | F78: 2.82 | G78: 0.28 | H78: 0.28 | I78: 0.79 | J78: 0.79
B79: COTAÇÃO | C79: COT 017_SEE | D79: REGISTRO DE GAVETA COM HASTE ASCENDENTE DE BRONZE 2 1/2" | E79: UN | F79: 1 | G79: 231.6666667 | H79: 231.6666667 | I79: 231.67 | J79: 231.67
B80: MATERIAL (C) - TOTAL | I80: 232.46 | J80: 232.46
A82: 19 | B82: FONTE | C82: CÓDIGO | D82: DESCRIÇÃO | E82: UNIDADE | F82: COEFIC. | G82: CUSTO UNITÁRIO | I82: CUSTO TOTAL (A) + (B) + (C) + (D) + (E)
G83: DESONERADO | H83: NÃO DESONER. | I83: DESONERADO | J83: NÃO DESONER.
B84: COMPOSIÇÃO | C84: COMP 019_SEE | D84: TAMPÃO LATAO C/ CORRENTE P/ INSTALAÇÃO PREDIAL COMBATE A INCÊNDIO ENGATE RÁPIDO 1 1/2" | E84: UN | G84: - | H84: - | I84: 55.55 | J84: 56.07
B85: AGETOP_I | C85: 11 | D85: ENCANADOR | E85: h | F85: 0.15 | G85: 13.4 | H85: 15.53 | I85: 2.01 | J85: 2.33
B86: AGETOP_I | C86: 8 | D86: AJUDANTE | E86: h | F86: 0.15 | G86: 8.2 | H86: 9.51 | I86: 1.23 | J86: 1.43
B87: MÃO DE OBRA (B) - TOTAL | I87: 3.24 | J87: 3.76
B88: SINAPI_I | C88: 20964 | D88: TAMPAO COM CORRENTE, EM LATAO, ENGATE RAPIDO 1 1/2", PARA INSTALACAO PREDIAL DE COMBATE A INCENDIO | E88: UN | F88: 1 | G88: 52.31 | H88: 52.31 | I88: 52.31 | J88: 52.31
B89: MATERIAL (C) - TOTAL | I89: 52.31 | J89: 52.31
A91: 88 | B91: FONTE | C91: CÓDIGO | D91: DESCRIÇÃO | E91: UNIDADE | F91: COEFIC. | G91: CUSTO UNITÁRIO | I91: CUSTO TOTAL (A) + (B) + (C) + (D) + (E)
G92: DESONERADO | H92: NÃO DESONER. | I92: DESONERADO | J92: NÃO DESONER.
B93: COMPOSIÇÃO | C93: COMP 088_SEE | D93: TE DE FERRO GALVANIZADO 90º X 2.1/2" X 1" | E93: UN | I93: 86.89 | J93: 89.03
B94: AGETOP_I | C94: 8 | D94: AJUDANTE | E94: h | F94: 0.624 | G94: 8.2 | H94: 9.51 | I94: 5.12 | J94: 5.93
B95: AGETOP_I | C95: 11 | D95: ENCANADOR | E95: h | F95: 0.624 | G95: 13.4 | H95: 15.53 | I95: 8.36 | J95: 9.69
B96: MÃO DE OBRA (B) - TOTAL | I96: 13.48 | J96: 15.62
B97: AGETOP_I | C97: H689 | D97: FITA VEDAROSCA 12 MM | E97: m | F97: 1.2 | G97: 0.28 | H97: 0.28 | I97: 0.34 | J97: 0.34
B98: SINAPI_I | C98: 6307 | D98: TE DE REDUCAO DE FERRO GALVANIZADO, COM ROSCA BSP, DE 2 1/2" X 1" | E98: UN | F98: 1 | G98: 73.07 | H98: 73.07 | I98: 73.07 | J98: 73.07
B99: MATERIAL (C) - TOTAL | I99: 73.41 | J99: 73.41
A101: 30 | B101: FONTE | C101: CÓDIGO | D101: DESCRIÇÃO | E101: UNIDADE | F101: COEFIC. | G101: CUSTO UNITÁRIO | I101: CUSTO TOTAL (A) + (B) + (C) + (D) + (E)
G102: DESONERADO | H102: NÃO DESONER. | I102: DESONERADO | J102: NÃO DESONER.
B103: COMPOSIÇÃO | C103: COMP 030_SEE | D103: COTOVELO DE FERRO GALV. 90° X 2 1/2" | E103: UN | I103: 69.16 | J103: 72.33
B104: AGETOP_I | C104: 8 | D104: AJUDANTE | E104: h | F104: 0.92 | G104: 8.2 | H104: 9.51 | I104: 7.54 | J104: 8.75
B105: AGETOP_I | C105: 11 | D105: ENCANADOR | E105: h | F105: 0.92 | G105: 13.4 | H105: 15.53 | I105: 12.33 | J105: 14.29
B106: MÃO DE OBRA (B) - TOTAL | I106: 19.87 | J106: 23.04
B107: SINAPI_I | C107: 3470 | D107: COTOVELO 90 GRAUS DE FERRO GALVANIZADO, COM ROSCA BSP, DE 2 1/2" | E107: UN | F107: 1 | G107: 48.73 | H107: 48.73 | I107: 48.73 | J107: 48.73
B108: AGETOP_I | C108: H689 | D108: FITA VEDAROSCA 12 MM | E108: m | F108: 2 | G108: 0.28 | H108: 0.28 | I108: 0.56 | J108: 0.56
B109: MATERIAL (C) - TOTAL | I109: 49.29 | J109: 49.29
A111: 77 | B111: FONTE | C111: CÓDIGO | D111: DESCRIÇÃO | E111: UNIDADE | F111: COEFIC. | G111: CUSTO UNITÁRIO | I111: CUSTO TOTAL (A) + (B) + (C) + (D) + (E)
G112: DESONERADO | H112: NÃO DESONER. | I112: DESONERADO | J112: NÃO DESONER.
B113: COMPOSIÇÃO | C113: COMP 077_SEE | D113: UNIAO FERRO GALV C/ASSENTO CONICO BRONZE 2 1/2" | E113: UN | I113: 148.3 | J113: 149.67
B114: AGETOP_I | C114: 8 | D114: AJUDANTE | E114: h | F114: 0.4 | G114: 8.2 | H114: 9.51 | I114: 3.28 | J114: 3.8
B115: AGETOP_I | C115: 11 | D115: ENCANADOR | E115: h | F115: 0.4 | G115: 13.4 | H115: 15.53 | I115: 5.36 | J115: 6.21
B116: MÃO DE OBRA (B) - TOTAL | I116: 8.64 | J116: 10.01
B117: AGETOP_I | C117: H689 | D117: FITA VEDAROSCA 12 MM | E117: m | F117: 2.4 | G117: 0.28 | H117: 0.28 | I117: 0.67 | J117: 0.67
B118: SINAPI_I | C118: 12427 | D118: UNIAO COM ASSENTO CONICO DE BRONZE, DIAMETRO 2 1/2" | E118: UN | F118: 1 | G118: 138.99 | H118: 138.99 | I118: 138.99 | J118: 138.99
B119: MATERIAL (C) - TOTAL | I119: 139.66 | J119: 139.66
A121: 76 | B121: FONTE | C121: CÓDIGO | D121: DESCRIÇÃO | E121: UNIDADE | F121: COEFIC. | G121: CUSTO UNITÁRIO | I121: CUSTO TOTAL (A) + (B) + (C) + (D) + (E)
G122: DESONERADO | H122: NÃO DESONER. | I122: DESONERADO | J122: NÃO DESONER.
B123: COMPOSIÇÃO | C123: COMP 076_SEE | D123: CURVA FERRO GALVANIZADO 45G ROSCA MACHO/FEMEA REF. 2 1/2" | E123: UN | I123: 116.73 | J123: 119.9
B124: AGETOP_I | C124: 8 | D124: AJUDANTE | E124: h | F124: 0.92 | G124: 8.2 | H124: 9.51 | I124: 7.54 | J124: 8.75
B125: AGETOP_I | C125: 11 | D125: ENCANADOR | E125: h | F125: 0.92 | G125: 13.4 | H125: 15.53 | I125: 12.33 | J125: 14.29
B126: MÃO DE OBRA (B) - TOTAL | I126: 19.87 | J126: 23.04
B127: SINAPI_I | C127: 3148 | D127: FITA VEDA ROSCA EM ROLOS DE 18 MM X 50 M (L X C) | E127: UN | F127: 0.0491 | G127: 14.49 | H127: 14.49 | I127: 0.71 | J127: 0.71
B128: SINAPI_I | C128: 1784 | D128: CURVA 45 GRAUS DE FERRO GALVANIZADO, COM ROSCA BSP MACHO/FEMEA, DE 2 1/2" | E128: UN | F128: 1 | G128: 96.15 | H128: 96.15 | I128: 96.15 | J128: 96.15
B129: MATERIAL (C) - TOTAL | I129: 96.86 | J129: 96.86
A131: 22 | B131: FONTE | C131: CÓDIGO | D131: DESCRIÇÃO | E131: UNIDADE | F131: COEFIC. | G131: CUSTO UNITÁRIO | I131: CUSTO TOTAL (A) + (B) + (C) + (D) + (E)
G132: DESONERADO | H132: NÃO DESONER. | I132: DESONERADO | J132: NÃO DESONER.
B133: COMPOSIÇÃO | C133: COMP 022_SEE | D133: TAMPÃO FOFO 40X50CM C/INSCRIÇÃO | E133: UN | G133: - | H133: - | I133: 199.83 | J133: 200.15
B134: AGETOP_I | C134: 11 | D134: ENCANADOR | E134: h | F134: 0.15 | G134: 13.4 | H134: 15.53 | I134: 2.01 | J134: 2.33
B135: MÃO DE OBRA (B) - TOTAL | I135: 2.01 | J135: 2.33
B136: SINAPI_I | C136: 11293 | D136: TAMPAO FOFO SIMPLES COM BASE, CLASSE A15 CARGA MAX 1,5 T, 400 X 500 MM, COM INSCRICAO INCENDIO | E136: UN | F136: 1 | G136: 197.82 | H136: 197.82 | I136: 197.82 | J136: 197.82
B137: MATERIAL (C) - TOTAL | I137: 197.82 | J137: 197.82
A139: 24 | B139: FONTE | C139: CÓDIGO | D139: DESCRIÇÃO | E139: UNIDADE | F139: COEFIC. | G139: CUSTO UNITÁRIO | I139: CUSTO TOTAL (A) + (B) + (C) + (D) + (E)
G140: DESONERADO | H140: NÃO DESONER. | I140: DESONERADO | J140: NÃO DESONER.
B141: COMPOSIÇÃO | C141: COMP 024_SEE | D141: SINALIZADOR FOTOLUMINESCENTE PARA EXTINTOR | E141: UN | G141: - | H141: - | I141: 25.27 | J141: 25.39
B142: AGETOP_I | C142: 5 | D142: SERVENTE | E142: h | F142: 0.09 | G142: 8.2 | H142: 9.51 | I142: 0.74 | J142: 0.86
B143: MÃO DE OBRA (B) - TOTAL | I143: 0.74 | J143: 0.86
B144: AGETOP_I | C144: 3070 | D144: BUCHA DE NYLON S-6 | E144: un | F144: 2 | G144: 0.04 | H144: 0.04 | I144: 0.08 | J144: 0.08
B145: AGETOP_I | C145: 3393 | D145: PARAFUSO P/BUCHA S-6 | E145: un | F145: 2 | G145: 0.08 | H145: 0.08 | I145: 0.16 | J145: 0.16
B146: SINAPI_I | C146: 37556 | D146: PLACA DE SINALIZACAO DE SEGURANCA CONTRA INCENDIO, FOTOLUMINESCENTE, QUADRADA, *20 X 20* CM, EM PVC *2* MM ANTI-CHAMAS (SIMBOLOS, CORES E PICTOGRAMAS CONFORME NBR 13434) | E146: UN | F146: 1 | G146: 24.29 | H146: 24.29 | I146: 24.29 | J146: 24.29
B147: MATERIAL (C) - TOTAL | I147: 24.53 | J147: 24.53
A149: 186 | B149: FONTE | C149: CÓDIGO | D149: DESCRIÇÃO | E149: UNIDADE | F149: COEFIC. | G149: CUSTO UNITÁRIO | I149: CUSTO TOTAL (A) + (B) + (C) + (D) + (E)
G150: DESONERADO | H150: NÃO DESONER. | I150: DESONERADO | J150: NÃO DESONER.
B151: COMPOSIÇÃO | C151: COMP 186_SEE | D151: BOTOEIRA BOMBA DE INCÊNDIO C/ MARTELO CONVENCIONAL/ ANALÓGICA | E151: UN | I151: 85.1 | J151: 88.54
B152: AGETOP_I | C152: 8 | D152: AJUDANTE | E152: h | F152: 1 | G152: 8.2 | H152: 9.51 | I152: 8.2 | J152: 9.51
B153: AGETOP_I | C153: 12 | D153: ELETRICISTA | E153: h | F153: 1 | G153: 13.4 | H153: 15.53 | I153: 13.4 | J153: 15.53
B154: MÃO DE OBRA (B) - TOTAL | I154: 21.6 | J154: 25.04
B155: COTAÇÃO | C155: COT 088_SEE | D155: BOTOEIRA BOMBA DE INCÊNDIO C/ MARTELO CONVENCIONAL/ ANALÓGICA | E155: UN | F155: 1 | G155: 63.5 | H155: 63.5 | I155: 63.5 | J155: 63.5
B156: MATERIAL (C) - TOTAL | I156: 63.5 | J156: 63.5
A158: 188 | B158: FONTE | C158: CÓDIGO | D158: DESCRIÇÃO | E158: UNIDADE | F158: COEFIC. | G158: CUSTO UNITÁRIO | I158: CUSTO TOTAL (A) + (B) + (C) + (D) + (E)
G159: DESONERADO | H159: NÃO DESONER. | I159: DESONERADO | J159: NÃO DESONER.
B160: COMPOSIÇÃO | C160: COMP 188_SEE | D160: ACIONADOR MANUAL DE ALARME | E160: UN | I160: 100.61 | J160: 103.36
B161: AGETOP_I | C161: 8 | D161: AJUDANTE | E161: h | F161: 0.8 | G161: 8.2 | H161: 9.51 | I161: 6.56 | J161: 7.61
B162: AGETOP_I | C162: 12 | D162: ELETRICISTA | E162: h | F162: 0.8 | G162: 13.4 | H162: 15.53 | I162: 10.72 | J162: 12.42
B163: MÃO DE OBRA (B) - TOTAL | I163: 17.28 | J163: 20.03
B164: COTAÇÃO | C164: COT 090_SEE | D164: ACIONADOR MANUAL DE ALARME | E164: UN | F164: 1 | G164: 83.33333333 | H164: 83.33333333 | I164: 83.33 | J164: 83.33
B165: MATERIAL (C) - TOTAL | I165: 83.33 | J165: 83.33
A167: 190 | B167: FONTE | C167: CÓDIGO | D167: DESCRIÇÃO | E167: UNIDADE | F167: COEFIC. | G167: CUSTO UNITÁRIO | I167: CUSTO TOTAL (A) + (B) + (C) + (D) + (E)
G168: DESONERADO | H168: NÃO DESONER. | I168: DESONERADO | J168: NÃO DESONER.
B169: COMPOSIÇÃO | C169: COMP 190_SEE | D169: CENTRAL DE DETECÇÃO E ALARME DE 40 SETORES COM BATERIA | E169: UN | I169: 1136.13 | J169: 1163.65
B170: AGETOP_I | C170: 8 | D170: AJUDANTE | E170: h | F170: 8 | G170: 8.2 | H170: 9.51 | I170: 65.6 | J170: 76.08
B171: AGETOP_I | C171: 12 | D171: ELETRICISTA | E171: h | F171: 8 | G171: 13.4 | H171: 15.53 | I171: 107.2 | J171: 124.24
B172: MÃO DE OBRA (B) - TOTAL | I172: 172.8 | J172: 200.32
B173: COTAÇÃO | C173: COT 092_SEE | D173: CENTRAL DE DETECÇÃO E ALARME DE 40 SETORES COM BATERIA (PREÇO MÉDIO) | E173: UN | F173: 1 | G173: 963.3333333 | H173: 963.3333333 | I173: 963.33 | J173: 963.33
B174: MATERIAL (C) - TOTAL | I174: 963.33 | J174: 963.33
A176: 25 | B176: FONTE | C176: CÓDIGO | D176: DESCRIÇÃO | E176: UNIDADE | F176: COEFIC. | G176: CUSTO UNITÁRIO | I176: CUSTO TOTAL (A) + (B) + (C) + (D) + (E)
G177: DESONERADO | H177: NÃO DESONER. | I177: DESONERADO | J177: NÃO DESONER.
B178: COMPOSIÇÃO | C178: COMP 025_SEE | D178: SINALIZADOR FOTOLUMINESCENTE DE EMERGÊNCIA | E178: UN | G178: - | H178: - | I178: 25.27 | J178: 25.39
B179: AGETOP_I | C179: 5 | D179: SERVENTE | E179: h | F179: 0.09 | G179: 8.2 | H179: 9.51 | I179: 0.74 | J179: 0.86
B180: MÃO DE OBRA (B) - TOTAL | I180: 0.74 | J180: 0.86
B181: AGETOP_I | C181: 3070 | D181: BUCHA DE NYLON S-6 | E181: un | F181: 2 | G181: 0.04 | H181: 0.04 | I181: 0.08 | J181: 0.08
B182: AGETOP_I | C182: 3393 | D182: PARAFUSO P/BUCHA S-6 | E182: un | F182: 2 | G182: 0.08 | H182: 0.08 | I182: 0.16 | J182: 0.16
B183: SINAPI_I | C183: 37556 | D183: PLACA DE SINALIZACAO DE SEGURANCA CONTRA INCENDIO, FOTOLUMINESCENTE, QUADRADA, *20 X 20* CM, EM PVC *2* MM ANTI-CHAMAS (SIMBOLOS, CORES E PICTOGRAMAS CONFORME NBR 13434) | E183: UN | F183: 1 | G183: 24.29 | H183: 24.29 | I183: 24.29 | J183: 24.29
B184: MATERIAL (C) - TOTAL | I184: 24.53 | J184: 24.53
A186: 277 | B186: FONTE | C186: CÓDIGO | D186: DESCRIÇÃO | E186: UNIDADE | F186: COEFIC. | G186: CUSTO UNITÁRIO | I186: CUSTO TOTAL (A) + (B) + (C) + (D) + (E)
G187: DESONERADO | H187: NÃO DESONER. | I187: DESONERADO | J187: NÃO DESONER.
B188: COMPOSIÇÃO | C188: COMP 277_SEE | D188: MARCAÇÃO NO PISO - 1X1 M PARA EXTINTOR | E188: M2 | I188: 29.52 | J188: 29.6
B189: AGETOP_I | C189: 5 | D189: SERVENTE | E189: h | F189: 0.0333 | G189: 8.2 | H189: 9.51 | I189: 0.27 | J189: 0.32
B190: MÃO DE OBRA (B) - TOTAL | I190: 0.27 | J190: 0.32
B191: SINAPI_I | C191: 5318 | D191: SOLVENTE DILUENTE A BASE DE AGUARRAS | E191: L | F191: 0.13 | G191: 11 | H191: 11 | I191: 1.43 | J191: 1.43
B192: SINAPI | C192: 5824 | D192: CAMINHÃO TOCO, PBT 16.000 KG, CARGA ÚTIL MÁX. 10.685 KG, DIST. ENTRE EIXOS 4,8 M, POTÊNCIA 189 CV, INCLUSIVE CARROCERIA FIXA ABERTA DE MADEIRA P/ TRANSPORTE GERAL DE CARGA SECA, DIMEN. APROX. 2,5 X 7,00 X 0,50 M - CHP DIURNO. AF_06/2014 | E192: CHP | F192: 0.0033 | G192: 122.72 | H192: 125.93 | I192: 0.4 | J192: 0.42
B193: SINAPI_I | C193: 7343 | D193: TINTA A BASE DE RESINA ACRILICA, PARA SINALIZACAO HORIZONTAL VIARIA (NBR 11862) | E193: L | F193: 0.6 | G193: 12.55 | H193: 12.55 | I193: 7.53 | J193: 7.53
B194: SINAPI_I | C194: 7348 | D194: TINTA ACRILICA PREMIUM PARA PISO | E194: L | F194: 0.03 | G194: 13 | H194: 13 | I194: 0.39 | J194: 0.39
B195: SINAPI_I | C195: 25972 | D195: MICROESFERAS DE VIDRO PARA SINALIZACAO HORIZONTAL VIARIA, TIPO I-B (PREMIX) - NBR 16184 | E195: KG | F195: 2.14 | G195: 8.94 | H195: 8.94 | I195: 19.13 | J195: 19.13
B196: SINAPI | C196: 95133 | D196: MÁQUINA DEMARCADORA DE FAIXA DE TRÁFEGO À FRIO, AUTOPROPELIDA, POTÊNCIA 38 HP - CHP DIURNO. AF_07/2016 | E196: CHP | F196: 0.0033 | G196: 111.93 | H196: 115.51 | I196: 0.37 | J196: 0.38
B197: MATERIAL (C) - TOTAL | I197: 29.25 | J197: 29.28
A199: 80 | B199: FONTE | C199: CÓDIGO | D199: DESCRIÇÃO | E199: UNIDADE | F199: COEFIC. | G199: CUSTO UNITÁRIO | I199: CUSTO TOTAL (A) + (B) + (C) + (D) + (E)
G200: DESONERADO | H200: NÃO DESONER. | I200: DESONERADO | J200: NÃO DESONER.
B201: COMPOSIÇÃO | C201: COMP 080_SEE | D201: BUCHA REDUCAO FERRO GALV ROSCA REF. 2 1/2"X1" | E201: UN | I201: 30.39 | J201: 31.35
B202: AGETOP_I | C202: 8 | D202: AJUDANTE | E202: h | F202: 0.28 | G202: 8.2 | H202: 9.51 | I202: 2.3 | J202: 2.66
B203: AGETOP_I | C203: 11 | D203: ENCANADOR | E203: h | F203: 0.28 | G203: 13.4 | H203: 15.53 | I203: 3.75 | J203: 4.35
B204: MÃO DE OBRA (B) - TOTAL | I204: 6.05 | J204: 7.01
B205: SINAPI_I | C205: 3148 | D205: FITA VEDA ROSCA EM ROLOS DE 18 MM X 50 M (L X C) | E205: UN | F205: 0.0245 | G205: 14.49 | H205: 14.49 | I205: 0.36 | J205: 0.36
B206: SINAPI_I | C206: 773 | D206: BUCHA DE REDUCAO DE FERRO GALVANIZADO, COM ROSCA BSP, DE 2 1/2" X 1" | E206: UN | F206: 1 | G206: 23.98 | H206: 23.98 | I206: 23.98 | J206: 23.98
B207: MATERIAL (C) - TOTAL | I207: 24.34 | J207: 24.34
A209: 89 | B209: FONTE | C209: CÓDIGO | D209: DESCRIÇÃO | E209: UNIDADE | F209: COEFIC. | G209: CUSTO UNITÁRIO | I209: CUSTO TOTAL (A) + (B) + (C) + (D) + (E)
G210: DESONERADO | H210: NÃO DESONER. | I210: DESONERADO | J210: NÃO DESONER.
B211: COMPOSIÇÃO | C211: COMP 089_SEE | D211: TE DE REDUCAO 90 GRAUS SOLDAVEL 60 X 50 MM | E211: UN | I211: 69.54 | J211: 70.75
B212: AGETOP_I | C212: 8 | D212: AJUDANTE | E212: h | F212: 0.35 | G212: 8.2 | H212: 9.51 | I212: 2.87 | J212: 3.33
B213: AGETOP_I | C213: 11 | D213: ENCANADOR | E213: h | F213: 0.35 | G213: 13.4 | H213: 15.53 | I213: 4.69 | J213: 5.44
B214: MÃO DE OBRA (B) - TOTAL | I214: 7.56 | J214: 8.77
B215: COTAÇÃO | C215: COT 018_SEE | D215: TE DE REDUCAO 90 GRAUS SOLDAVEL 60 X 50 MM | E215: UN | F215: 1 | G215: 61.98 | H215: 61.98 | I215: 61.98 | J215: 61.98
B216: MATERIAL (C) - TOTAL | I216: 61.98 | J216: 61.98
A218: 382 | B218: FONTE | C218: CÓDIGO | D218: DESCRIÇÃO | E218: UNIDADE | F218: COEFIC. | G218: CUSTO UNITÁRIO | I218: CUSTO TOTAL (A) + (B) + (C) + (D) + (E)
G219: DESONERADO | H219: NÃO DESONER. | I219: DESONERADO | J219: NÃO DESONER.
B220: COMPOSIÇÃO | C220: COMP 382_SEE | D220: TE DE REDUCAO DE FERRO GALVANIZADO, COM ROSCA BSP, DE 3/4" X 1/2" | E220: UN | I220: 21.93 | J220: 24.02
B221: AGETOP_I | C221: 8 | D221: AJUDANTE | E221: h | F221: 0.6 | G221: 8.2 | H221: 9.51 | I221: 4.92 | J221: 5.71
B222: AGETOP_I | C222: 11 | D222: ENCANADOR | E222: h | F222: 0.6105 | G222: 13.4 | H222: 15.53 | I222: 8.18 | J222: 9.48
B223: MÃO DE OBRA (B) - TOTAL | I223: 13.1 | J223: 15.19
B224: SINAPI_I | C224: 3146 | D224: FITA VEDA ROSCA EM ROLOS DE 18 MM X 10 M (L X C) | E224: UN | F224: 0.120754717 | G224: 3.93 | H224: 3.93 | I224: 0.47 | J224: 0.47
B225: SINAPI_I | C225: 6302 | D225: TE DE REDUCAO DE FERRO GALVANIZADO, COM ROSCA BSP, DE 3/4" X 1/2" | E225: UN | F225: 1 | G225: 8.36 | H225: 8.36 | I225: 8.36 | J225: 8.36
B226: MATERIAL (C) - TOTAL | I226: 8.83 | J226: 8.83
A228: 383 | B228: FONTE | C228: CÓDIGO | D228: DESCRIÇÃO | E228: UNIDADE | F228: COEFIC. | G228: CUSTO UNITÁRIO | I228: CUSTO TOTAL (A) + (B) + (C) + (D) + (E)
G229: DESONERADO | H229: NÃO DESONER. | I229: DESONERADO | J229: NÃO DESONER.
... 192 more rows

Sheet Cotações
A4: UNIDADE ESCOLAR | H4: CÓDIGO INEP
A5: =Orçamento!$O$4 -> COLÉGIO ESTADUAL JUSCELINO KUBITSCHEK DE OLIVEIRA | H5: =Orçamento!$X$4 -> 52075583
A7: OBRA | H7: CIDADE
A8: =Orçamento!$O$7 -> REFORMA E IMPLANTAÇÃO | H8: =Orçamento!$X$7 -> ÁGUAS LINDAS DE GOIÁS
A10: CRE | D10: ENDEREÇO | H10: REFERÊNCIA AGETOP
A11: =Orçamento!$O$10 -> ÁGUAS LINDAS | D11: =Orçamento!$R$10 -> AREA ESPECIAL S/N, JARDIM SANTA LUCIA, CEP:72910-001 | H11: =Orçamento!$X$10 -> ABR/19 | I11: =Orçamento!$Y$10 -> DESONERADA
A13: DATA | D13: ÁREA TOTAL CONSTRUÍDA (M²) | H13: REFERÊNCIA SINAPI
A14: =Orçamento!$S$7 -> 2020-07-07 | D14: =Orçamento!$S$13 -> 3074.09 | H14: =Orçamento!$X$13 -> SET/19 | I14: =Orçamento!$Y$13 -> DESONERADA
A16: COTAÇÕES DE PREÇOS - SEE-GO
B17: FONTE | C17: CÓDIGO | D17: DESCRIÇÃO | E17: UNIDADE | F17: MÉDIA | H17: ÍNDICE RETROAÇÃO
F18: DESONERADA | G18: ONERADA
A19: 195 | B19: COTAÇÃO | C19: COT 195_SEE | D19: LÂMPADA LED TUBULAR 18W | E19: UN | F19: 21.96 | G19: 21.96
C20: EMPRESA | D20: NOME DA EMPRESA | F20: COTAÇÕES | H20: DATA COTAÇÃO
C21: E030 - AJEL M... | D21: AJEL MATERIAIS ELÉTRICOS | F21: 19.89 | G21: 19.89
C22: E013 - ELETRO... | D22: ELETROTRANSOL | F22: 25.99 | G22: 25.99
C23: E014 - MAKRO ... | D23: MAKRO SERVICE | F23: 20 | G23: 20
C26: OBSERVAÇÕES:
B28: FONTE | C28: CÓDIGO | D28: DESCRIÇÃO | E28: UNIDADE | F28: MÉDIA | H28: ÍNDICE RETROAÇÃO
F29: DESONERADA | G29: ONERADA
A30: 8 | B30: COTAÇÃO | C30: COT 008_SEE | D30: CONJUNTO MOTOR-BOMBA ELÉTRICA TRIFÁSICO 380/220 V PARA VZ= 24,33 M³/H, HM= 46,24 M POTÊNCIA= 7,5 CV | E30: UN | F30: 3792.666667 | G30: 3792.666667
C31: EMPRESA | D31: NOME DA EMPRESA | F31: COTAÇÕES | H31: DATA COTAÇÃO
C32: E036 - TECNOB... | D32: TECNOBOMBAS | F32: 4200 | G32: 4200 | H32: 05.02.2019
C33: E039 - ESPÍND... | D33: ESPÍNDOLA E ANDRADE LTDA-ME | F33: 3178 | G33: 3178 | H33: 05.02.2019
C34: E054 - R M D ... | D34: R M D DE SOUZA EIRELI - ME | F34: 4000 | G34: 4000 | H34: 06.02.2019
C37: OBSERVAÇÕES:
B39: FONTE | C39: CÓDIGO | D39: DESCRIÇÃO | E39: UNIDADE | F39: MÉDIA | H39: ÍNDICE RETROAÇÃO
F40: DESONERADA | G40: ONERADA
A41: 17 | B41: COTAÇÃO | C41: COT 017_SEE | D41: REGISTRO DE GAVETA COM HASTE ASCENDENTE DE BRONZE 2 1/2" | E41: UN | F41: 231.6666667 | G41: 231.6666667
C42: EMPRESA | D42: NOME DA EMPRESA | F42: COTAÇÕES | H42: DATA COTAÇÃO
C43: E034 - VALK T... | D43: VALK TUBOS | F43: 220 | G43: 220
C44: E035 - ACIONA... | D44: ACIONAR SERVIÇOS E EQUIPAMENTOS CONTRA INCÊNDIO | F44: 250 | G44: 250
C45: E038 - CENTER... | D45: CENTER FIRE | F45: 225 | G45: 225
C48: OBSERVAÇÕES:
B50: FONTE | C50: CÓDIGO | D50: DESCRIÇÃO | E50: UNIDADE | F50: MÉDIA | H50: ÍNDICE RETROAÇÃO
F51: DESONERADA | G51: ONERADA
A52: 88 | B52: COTAÇÃO | C52: COT 088_SEE | D52: BOTOEIRA BOMBA DE INCÊNDIO C/ MARTELO CONVENCIONAL/ ANALÓGICA | E52: UN | F52: 63.5 | G52: 63.5
C53: EMPRESA | D53: NOME DA EMPRESA | F53: COTAÇÕES | H53: DATA COTAÇÃO
C54: E034 - VALK T... | D54: VALK TUBOS | F54: 58 | G54: 58
C55: E035 - ACIONA... | D55: ACIONAR SERVIÇOS E EQUIPAMENTOS CONTRA INCÊNDIO | F55: 67.5 | G55: 67.5
C56: E038 - CENTER... | D56: CENTER FIRE | F56: 65 | G56: 65
C59: OBSERVAÇÕES:
B61: FONTE | C61: CÓDIGO | D61: DESCRIÇÃO | E61: UNIDADE | F61: MÉDIA | H61: ÍNDICE RETROAÇÃO
F62: DESONERADA | G62: ONERADA
A63: 90 | B63: COTAÇÃO | C63: COT 090_SEE | D63: ACIONADOR MANUAL DE ALARME | E63: UN | F63: 83.33333333 | G63: 83.33333333
C64: EMPRESA | D64: NOME DA EMPRESA | F64: COTAÇÕES | H64: DATA COTAÇÃO
C65: E034 - VALK T... | D65: VALK TUBOS | F65: 120 | G65: 120
C66: E035 - ACIONA... | D66: ACIONAR SERVIÇOS E EQUIPAMENTOS CONTRA INCÊNDIO | F66: 65 | G66: 65
C67: E038 - CENTER... | D67: CENTER FIRE | F67: 65 | G67: 65
C70: OBSERVAÇÕES:
B72: FONTE | C72: CÓDIGO | D72: DESCRIÇÃO | E72: UNIDADE | F72: MÉDIA | H72: ÍNDICE RETROAÇÃO
F73: DESONERADA | G73: ONERADA
A74: 92 | B74: COTAÇÃO | C74: COT 092_SEE | D74: CENTRAL DE DETECÇÃO E ALARME DE 40 SETORES COM BATERIA (PREÇO MÉDIO) | E74: UN | F74: 963.3333333 | G74: 963.3333333
C75: EMPRESA | D75: NOME DA EMPRESA | F75: COTAÇÕES | H75: DATA COTAÇÃO
C76: E034 - VALK T... | D76: VALK TUBOS | F76: 840 | G76: 840
C77: E035 - ACIONA... | D77: ACIONAR SERVIÇOS E EQUIPAMENTOS CONTRA INCÊNDIO | F77: 980 | G77: 980
C78: E038 - CENTER... | D78: CENTER FIRE | F78: 1070 | G78: 1070
C81: OBSERVAÇÕES:
B83: FONTE | C83: CÓDIGO | D83: DESCRIÇÃO | E83: UNIDADE | F83: MÉDIA | H83: ÍNDICE RETROAÇÃO
F84: DESONERADA | G84: ONERADA
A85: 18 | B85: COTAÇÃO | C85: COT 018_SEE | D85: TE DE REDUCAO 90 GRAUS SOLDAVEL 60 X 50 MM | E85: UN | F85: 61.98 | G85: 61.98
C86: EMPRESA | D86: NOME DA EMPRESA | F86: COTAÇÕES | H86: DATA COTAÇÃO
C87: E085 - CIA DA... | D87: CIA DAS BOMBAS | F87: 60 | G87: 60 | H87: 08/05/2019
C88: E087 - SAFRA ... | D88: SAFRA IRRIGAÇÃO | F88: 63.96 | G88: 63.96 | H88: 09/05/2019
C92: OBSERVAÇÕES:
B94: FONTE | C94: CÓDIGO | D94: DESCRIÇÃO | E94: UNIDADE | F94: MÉDIA | H94: ÍNDICE RETROAÇÃO
F95: DESONERADA | G95: ONERADA
A96: 103 | B96: COTAÇÃO | C96: COT 103_SEE | D96: NIPLE DE REDUÇÃO 1/2" X 1/4" BSP | E96: UN | F96: 6.053333333 | G96: 6.053333333
C97: EMPRESA | D97: NOME DA EMPRESA | F97: COTAÇÕES | H97: DATA COTAÇÃO
C98: E070 - FOCO R... | D98: FOCO REPRESENTAÇÃO E CONSULTORIA LTDA-ME | F98: 4.46 | G98: 4.46 | H98: 12/02/2019
C99: E071 - CASA D... | D99: CASA DAS PEÇAS COM E INDUSTRIA DE FOGOES LTDA | F99: 3.9 | G99: 3.9 | H99: 11/02/2019
C100: E072 - AMIG I... | D100: AMIG INSTALAÇÃO DE REDE DE GÁS E INCÊNDIO | F100: 9.8 | G100: 9.8 | H100: 08/02/2019
C103: OBSERVAÇÕES:
B105: FONTE | C105: CÓDIGO | D105: DESCRIÇÃO | E105: UNIDADE | F105: MÉDIA | H105: ÍNDICE RETROAÇÃO
F106: DESONERADA | G106: ONERADA
A107: 104 | B107: COTAÇÃO | C107: COT 104_SEE | D107: NIPLE DE REDUÇÃO 3/4" X 1/2" BSP | E107: UN | F107: 9.71 | G107: 9.71
C108: EMPRESA | D108: NOME DA EMPRESA | F108: COTAÇÕES | H108: DATA COTAÇÃO
C109: E070 - FOCO R... | D109: FOCO REPRESENTAÇÃO E CONSULTORIA LTDA-ME | F109: 10.93 | G109: 10.93 | H109: 12/02/2019
C110: E071 - CASA D... | D110: CASA DAS PEÇAS COM E INDUSTRIA DE FOGOES LTDA | F110: 5.5 | G110: 5.5 | H110: 11/02/2019
C111: E072 - AMIG I... | D111: AMIG INSTALAÇÃO DE REDE DE GÁS E INCÊNDIO | F111: 12.7 | G111: 12.7 | H111: 08/02/2019
C114: OBSERVAÇÕES:
B116: FONTE | C116: CÓDIGO | D116: DESCRIÇÃO | E116: UNIDADE | F116: MÉDIA | H116: ÍNDICE RETROAÇÃO
F117: DESONERADA | G117: ONERADA
A118: 281 | B118: COTAÇÃO | C118: COT 281_SEE | D118: VÁLVULA UGV 3/4" (S) LATÃO | E118: UN | F118: 15.83666667 | G118: 15.83666667
C119: EMPRESA | D119: NOME DA EMPRESA | F119: COTAÇÕES | H119: DATA COTAÇÃO
C120: E070 - FOCO R... | D120: FOCO REPRESENTAÇÃO E CONSULTORIA LTDA-ME | F120: 12.51 | G120: 12.51 | H120: 12/02/2019
C121: E071 - CASA D... | D121: CASA DAS PEÇAS COM E INDUSTRIA DE FOGOES LTDA | F121: 17.5 | G121: 17.5 | H121: 11/02/2019
C122: E072 - AMIG I... | D122: AMIG INSTALAÇÃO DE REDE DE GÁS E INCÊNDIO | F122: 17.5 | G122: 17.5 | H122: 08/02/2019
C125: OBSERVAÇÕES:
B127: FONTE | C127: CÓDIGO | D127: DESCRIÇÃO | E127: UNIDADE | F127: MÉDIA | H127: ÍNDICE RETROAÇÃO
F128: DESONERADA | G128: ONERADA
A129: 282 | B129: COTAÇÃO | C129: COT 282_SEE | D129: VÁLVULA UGV 1/2" (S) LATÃO | E129: UN | F129: 15.16666667 | G129: 15.16666667
C130: EMPRESA | D130: NOME DA EMPRESA | F130: COTAÇÕES | H130: DATA COTAÇÃO
C131: E070 - FOCO R... | D131: FOCO REPRESENTAÇÃO E CONSULTORIA LTDA-ME | F131: 11.2 | G131: 11.2 | H131: 12/02/2019
C132: E071 - CASA D... | D132: CASA DAS PEÇAS COM E INDUSTRIA DE FOGOES LTDA | F132: 17.5 | G132: 17.5 | H132: 11/02/2019
C133: E072 - AMIG I... | D133: AMIG INSTALAÇÃO DE REDE DE GÁS E INCÊNDIO | F133: 16.8 | G133: 16.8 | H133: 08/02/2019
C136: OBSERVAÇÕES:
B138: FONTE | C138: CÓDIGO | D138: DESCRIÇÃO | E138: UNIDADE | F138: MÉDIA | H138: ÍNDICE RETROAÇÃO
F139: DESONERADA | G139: ONERADA
A140: 102 | B140: COTAÇÃO | C140: COT 102_SEE | D140: REGULADOR DE 2º ESTÁGIO 5KG/H | E140: UN | F140: 59.83333333 | G140: 59.83333333
C141: EMPRESA | D141: NOME DA EMPRESA | F141: COTAÇÕES | H141: DATA COTAÇÃO
C142: E070 - FOCO R... | D142: FOCO REPRESENTAÇÃO E CONSULTORIA LTDA-ME | F142: 38.9 | G142: 38.9 | H142: 12/02/2019
C143: E071 - CASA D... | D143: CASA DAS PEÇAS COM E INDUSTRIA DE FOGOES LTDA | F143: 55.6 | G143: 55.6 | H143: 11/02/2019
C144: E072 - AMIG I... | D144: AMIG INSTALAÇÃO DE REDE DE GÁS E INCÊNDIO | F144: 85 | G144: 85 | H144: 08/02/2019
C147: OBSERVAÇÕES: | D147: AMIG enviou cotação de regulador de 2º estágio de 12kg/h.
B149: FONTE | C149: CÓDIGO | D149: DESCRIÇÃO | E149: UNIDADE | F149: MÉDIA | H149: ÍNDICE RETROAÇÃO
F150: DESONERADA | G150: ONERADA
A151: 101 | B151: COTAÇÃO | C151: COT 101_SEE | D151: REGULADOR DE 1º ESTÁGIO 60KG/H MODELO AP-40 COM MANÔMETRO | E151: UN | F151: 205.5766667 | G151: 205.5766667
C152: EMPRESA | D152: NOME DA EMPRESA | F152: COTAÇÕES | H152: DATA COTAÇÃO
C153: E070 - FOCO R... | D153: FOCO REPRESENTAÇÃO E CONSULTORIA LTDA-ME | F153: 148.73 | G153: 148.73 | H153: 12/02/2019
C154: E071 - CASA D... | D154: CASA DAS PEÇAS COM E INDUSTRIA DE FOGOES LTDA | F154: 198 | G154: 198 | H154: 11/02/2019
C155: E072 - AMIG I... | D155: AMIG INSTALAÇÃO DE REDE DE GÁS E INCÊNDIO | F155: 270 | G155: 270 | H155: 08/02/2019
C158: OBSERVAÇÕES:
B160: FONTE | C160: CÓDIGO | D160: DESCRIÇÃO | E160: UNIDADE | F160: MÉDIA | H160: ÍNDICE RETROAÇÃO
F161: DESONERADA | G161: ONERADA
A162: 195 | B162: COTAÇÃO | C162: COT 195_SEE | D162: LÂMPADA LED TUBULAR 18W | E162: UN | F162: 21.96 | G162: 21.96
C163: EMPRESA | D163: NOME DA EMPRESA | F163: COTAÇÕES | H163: DATA COTAÇÃO
C164: E030 - AJEL M... | D164: AJEL MATERIAIS ELÉTRICOS | F164: 19.89 | G164: 19.89
C165: E013 - ELETRO... | D165: ELETROTRANSOL | F165: 25.99 | G165: 25.99
C166: E014 - MAKRO ... | D166: MAKRO SERVICE | F166: 20 | G166: 20
C169: OBSERVAÇÕES:
B171: FONTE | C171: CÓDIGO | D171: DESCRIÇÃO | E171: UNIDADE | F171: MÉDIA | H171: ÍNDICE RETROAÇÃO
F172: DESONERADA | G172: ONERADA
A173: 4 | B173: COTAÇÃO | C173: COT 004_SEE | D173: PRESILHA LATÃO 16/35MM 5MM+PARAF FENDA 1/4''X1.1/4'' | E173: UN | F173: 1.593333333 | G173: 1.593333333
C174: EMPRESA | D174: NOME DA EMPRESA | F174: COTAÇÕES | H174: DATA COTAÇÃO
C175: E013 - ELETRO... | D175: ELETROTRANSOL | F175: 0.83 | G175: 0.83 | H175: 29/04/2019
C176: E018 - ELETRO... | D176: ELETRO ENERGIA | F176: 2.45 | G176: 2.45 | H176: 29/04/2019
C177: E016 - ADEEL... | D177: ADEEL | F177: 1.5 | G177: 1.5 | H177: 02/05/2019
C180: OBSERVAÇÕES:
B182: FONTE | C182: CÓDIGO | D182: DESCRIÇÃO | E182: UNIDADE | F182: MÉDIA | H182: ÍNDICE RETROAÇÃO
F183: DESONERADA | G183: ONERADA
A184: 7 | B184: COTAÇÃO | C184: COT 007_SEE | D184: MOLDE GRAF CGT 5/8 50MM C | E184: UN | F184: 138.7175 | G184: 138.7175
C185: EMPRESA | D185: NOME DA EMPRESA | F185: COTAÇÕES | H185: DATA COTAÇÃO
C186: E013 - ELETRO... | D186: ELETROTRANSOL | F186: 175.68 | G186: 175.68 | H186: 29/04/2019
C187: E030 - AJEL M... | D187: AJEL MATERIAIS ELÉTRICOS | F187: 111.19 | G187: 111.19 | H187: 29/04/2019
C188: E018 - ELETRO... | D188: ELETRO ENERGIA | F188: 110 | G188: 110 | H188: 29/04/2019
C189: E016 - ADEEL... | D189: ADEEL | F189: 158 | G189: 158 | H189: 02/05/2019
C191: OBSERVAÇÕES:
B193: FONTE | C193: CÓDIGO | D193: DESCRIÇÃO | E193: UNIDADE | F193: MÉDIA | H193: ÍNDICE RETROAÇÃO
F194: DESONERADA | G194: ONERADA
A195: 292 | B195: COTAÇÃO | C195: COT 292_SEE | D195: ALIC P/MOLDE C-84 | E195: UN | F195: 87.465 | G195: 87.465
C196: EMPRESA | D196: NOME DA EMPRESA | F196: COTAÇÕES | H196: DATA COTAÇÃO
C197: E013 - ELETRO... | D197: ELETROTRANSOL | F197: 85.19 | G197: 85.19 | H197: 29/04/2019
C198: E030 - AJEL M... | D198: AJEL MATERIAIS ELÉTRICOS | F198: 89.67 | G198: 89.67 | H198: 29/04/2019
C199: E018 - ELETRO... | D199: ELETRO ENERGIA | F199: 85 | G199: 85 | H199: 29/04/2019
C200: E016 - ADEEL... | D200: ADEEL | F200: 90 | G200: 90 | H200: 02/05/2019
C202: OBSERVAÇÕES:
B204: FONTE | C204: CÓDIGO | D204: DESCRIÇÃO | E204: UNIDADE | F204: MÉDIA | H204: ÍNDICE RETROAÇÃO
F205: DESONERADA | G205: ONERADA
A206: 12 | B206: COTAÇÃO | C206: COT 012_SEE | D206: HASTE ROSQUEADA "TIRANTE" 3/8" | E206: M | F206: 5.383333333 | G206: 5.383333333
C207: EMPRESA | D207: NOME DA EMPRESA | F207: COTAÇÕES | H207: DATA COTAÇÃO
C208: E013 - ELETRO... | D208: ELETROTRANSOL | F208: 5.383333333 | G208: 5.383333333 | H208: 06/02/2019
C213: OBSERVAÇÕES:
